Workbook

Sheet Inicio EGC
A23: Descargue la versión Kindle
K32: Miguel Cervantes Jiménez

Sheet Caja EGC (hidden)
B2: INTERCAMBIO PURO
B4: CAJA DE EDGEWORTH
C9: Individuo A | D9: Individuo B | E9: Total
B10: Dotación bien 1 | C10: 45.0 | D10: 20.0 | E10: ='Oculto EG'!F43 -> 65.0
B11: Dotación bien 2 | C11: 15.0 | D11: 60.0 | E11: ='Oculto EG'!F44 -> 75.0
B12: Utilidad | C12: ='Oculto EG'!D45 -> 26.0 | D12: ='Oculto EG'!E45 -> 34.6
B13: RMgS | C13: ='Oculto EG'!G43 -> 0.3 | D13: ='Oculto EG'!G44 -> 3.0
B15: Demanda bruta bien 1 | C15: ='Oculto EG'!D46 -> 29.0 | D15: ='Oculto EG'!E46 -> 36.0 | E15: ='Oculto EG'!F46 -> 65.0
B16: Demanda bruta bien 2 | C16: ='Oculto EG'!D47 -> 33.5 | D16: ='Oculto EG'!E47 -> 41.5 | E16: ='Oculto EG'!F47 -> 75.0
B17: Utilidad | C17: ='Oculto EG'!D48 -> 31.2 | D17: ='Oculto EG'!E48 -> 38.7
B18: RMgS | C18: ='Oculto EG'!G46 -> 1.2 | D18: ='Oculto EG'!G47 -> 1.2
B20: Demanda neta bien 1 | C20: ='Oculto EG'!D49 -> (16.0) | D20: ='Oculto EG'!D50 -> 16.0
B21: Demanda neta bien 2 | C21: ='Oculto EG'!E49 -> 18.5 | D21: ='Oculto EG'!E50 -> (18.5)
B22: Mejora en la utilidad | C22: =C17-C12 -> 5.2 | D22: =D17-D12 -> 4.0
B24: a | C24: 0.5
B25: 1-a | C25: ='Oculto EG'!D53 -> 0.5
B26: b | D26: 0.5
B27: 1-b | D27: ='Oculto EG'!E55 -> 0.5
B29: P1/P2 | E29: ='Oculto EG'!E58 -> 1.2
B30: P2/P1 | E30: ='Oculto EG'!E57 -> 0.9
B33: Títulos
B34: Resultados
B35: Insertar datos
B36: Cantidad de equilibrio

Sheet Optimo Pareto EGC (hidden)
B2: INTERCAMBIO
B4: ÓPTIMO DE PARETO: ENFOQUE CENTRALIZADO
C9: Individuo A | D9: Individuo B | E9: Total
B10: Dotación bien 1 | C10: 50.0 | D10: 70.0 | E10: ='Oculto EG'!F97 -> 120.00
B11: Dotación bien 2 | C11: 140.0 | D11: 120.0 | E11: ='Oculto EG'!F98 -> 260.00
B12: Utilidad | C12: ='Oculto EG'!D99 -> 113.95 | D12: ='Oculto EG'!E99 -> 91.65
B13: RMgS | C13: ='Oculto EG'!G97 -> 0.70 | D13: ='Oculto EG'!G98 -> 1.71
B15: Demanda bruta bien 1 | C15: ='Oculto EG'!D100 -> 33.9 | D15: ='Oculto EG'!E100 -> 86.1 | E15: ='Oculto EG'!F100 -> 120.0
B16: Demanda bruta bien 2 | C16: ='Oculto EG'!D101 -> 158.9 | D16: ='Oculto EG'!E101 -> 101.1 | E16: ='Oculto EG'!F101 -> 260.0
B17: Utilidad | C17: ='Oculto EG'!D102 -> 116.66 | D17: ='Oculto EG'!E102 -> 93.30
B18: RMgS | C18: ='Oculto EG'!G100 -> 1.17 | D18: ='Oculto EG'!G101 -> 1.17
B20: Demanda neta bien 1 | C20: ='Oculto EG'!D103 -> (16.14) | D20: ='Oculto EG'!D104 -> 16.14
B21: Demanda neta bien 2 | C21: ='Oculto EG'!E103 -> 18.93 | D21: ='Oculto EG'!E104 -> (18.93)
B22: Mejora en la utilidad | C22: =C17-C12 -> 2.71 | D22: =D17-D12 -> 1.65
B24: a | C24: 0.2
B25: 1-a | C25: ='Oculto EG'!D107 -> 0.8
B26: b | D26: 0.5
B27: 1-b | D27: ='Oculto EG'!E109 -> 0.5
B34: Títulos
B35: Resultados
B36: Insertar datos
B37: Cantidad de equilibrio

Sheet Demandas Netas EGC (hidden)
B2: INTERCAMBIO
B4: DEMANDA BRUTA Y NETA
C9: Individuo A | D9: Individuo B | E9: Total
B10: Dotación bien 1 | C10: 60.0 | D10: 60.0 | E10: ='Oculto EG'!F151 -> 120.00
B11: Dotación bien 2 | C11: 50.0 | D11: 20.0 | E11: ='Oculto EG'!F152 -> 70.00
B12: Utilidad | C12: ='Oculto EG'!D153 -> 54.77 | D12: ='Oculto EG'!E153 -> 34.64
B13: RMgS | C13: ='Oculto EG'!G151 -> 0.83 | D13: ='Oculto EG'!G152 -> 0.33
B15: Demanda bruta bien 1 | C15: ='Oculto EG'!D154 -> 72.9 | D15: ='Oculto EG'!E154 -> 47.1 | E15: ='Oculto EG'!F154 -> 120.0
B16: Demanda bruta bien 2 | C16: ='Oculto EG'!D155 -> 42.5 | D16: ='Oculto EG'!E155 -> 27.5 | E16: ='Oculto EG'!F155 -> 70.0
B17: Utilidad | C17: ='Oculto EG'!D156 -> 55.65 | D17: ='Oculto EG'!E156 -> 36.01
B18: RMgS | C18: ='Oculto EG'!G154 -> 0.58 | D18: ='Oculto EG'!G155 -> 0.58
B20: Demanda neta bien 1 | C20: ='Oculto EG'!D157 -> 12.86 | D20: ='Oculto EG'!E157 -> (12.86)
B21: Demanda neta bien 2 | C21: ='Oculto EG'!D158 -> (7.50) | D21: ='Oculto EG'!E158 -> 7.50
B22: Mejora en la utilidad | C22: =C17-C12 -> 0.87 | D22: =D17-D12 -> 1.36
B24: a | C24: 0.5
B25: 1-a | C25: ='Oculto EG'!D161 -> 0.5
B26: b | D26: 0.5
B27: 1-b | D27: ='Oculto EG'!E163 -> 0.5
B29: P1/P2 | E29: ='Oculto EG'!E166 -> 0.58
B30: P2/P1 | E30: ='Oculto EG'!E165 -> 1.71
B34: Títulos
B35: Resultados
B36: Insertar datos
B37: Cantidad de equilibrio

Sheet FPU (hidden)
B2: INTERCAMBIO
B4: CAJA DE EDGEWORTH Y
B5: FRONTERA DE POSIBILIDADES DE UTILIDAD
C9: Individuo A | D9: Individuo B | E9: Total
B10: Dotación bien 1 | C10: 25.0 | D10: 25.0 | E10: ='Oculto EG'!F43 -> 65.0
B11: Dotación bien 2 | C11: 75.0 | D11: 20.0 | E11: ='Oculto EG'!F44 -> 75.0
B12: Utilidad | C12: ='Oculto EG'!D229 -> 43.30 | D12: ='Oculto EG'!E229 -> 22.36
B13: RMgS | C13: ='Oculto EG'!G227 -> 3.00 | D13: ='Oculto EG'!G228 -> 0.80
B15: Demanda bruta bien 1 | C15: ='Oculto EG'!D230 -> 32.2 | D15: ='Oculto EG'!E230 -> 17.8 | E15: ='Oculto EG'!F230 -> 50.0
B16: Demanda bruta bien 2 | C16: ='Oculto EG'!D47 -> 33.5 | D16: ='Oculto EG'!E47 -> 41.5 | E16: ='Oculto EG'!F47 -> 75.0
B17: Utilidad | C17: ='Oculto EG'!D232 -> 44.44 | D17: ='Oculto EG'!E232 -> 24.48
B18: RMgS | C18: ='Oculto EG'!G230 -> 1.90 | D18: ='Oculto EG'!G231 -> 1.90
B20: Demanda neta bien 1 | C20: ='Oculto EG'!D233 -> 7.24 | D20: ='Oculto EG'!D234 -> (7.24)
B21: Demanda neta bien 2 | C21: ='Oculto EG'!E233 -> (13.75) | D21: ='Oculto EG'!E234 -> 13.75
B22: Mejora en la utilidad | C22: =C17-C12 -> 1.13 | D22: =D17-D12 -> 2.12
B24: a | C24: 0.5
B25: 1-a | C25: ='Oculto EG'!D237 -> 0.5
B26: b | D26: 0.5
B27: 1-b | D27: ='Oculto EG'!E239 -> 0.5
B29: P1/P2 | E29: ='Oculto EG'!E242 -> 1.90
B30: P2/P1 | E30: ='Oculto EG'!E241 -> 0.53
B33: Títulos
B34: Resultados
B35: Insertar datos
B36: Cantidad de equilibrio

Sheet Optimo Pareto EGDESC (hidden)
B2: INTERCAMBIO
B4: ÓPTIMO DE PARETO: ENFOQUE DESCENTRALIZADO
C9: Individuo A | D9: Individuo B | E9: Total
B10: Dotación bien 1 | C10: 30.0 | D10: 100.0 | E10: ='Oculto EG'!F288 -> 130.00
B11: Dotación bien 2 | C11: 100.0 | D11: 240.0 | E11: ='Oculto EG'!F289 -> 340.00
B12: Utilidad | C12: ='Oculto EG'!D290 -> 69.68 | D12: ='Oculto EG'!E290 -> 119.14
B13: RMgS | C13: ='Oculto EG'!G288 -> 1.43 | D13: ='Oculto EG'!G289 -> 9.60
B15: Demanda bruta bien 1 | C15: ='Oculto EG'!D291 -> 14.5 | D15: ='Oculto EG'!E291 -> 115.5 | E15: ='Oculto EG'!F291 -> 130.0
B16: Demanda bruta bien 2 | C16: ='Oculto EG'!D292 -> 183.7 | D16: ='Oculto EG'!E292 -> 156.3 | E16: ='Oculto EG'!F292 -> 340.0
B17: Utilidad | C17: ='Oculto EG'!D293 -> 85.83 | D17: ='Oculto EG'!E293 -> 122.67
B18: RMgS | C18: ='Oculto EG'!G291 -> 5.41 | D18: ='Oculto EG'!G292 -> 5.41
B20: Demanda neta bien 1 | C20: ='Oculto EG'!D294 -> (15.46) | D20: ='Oculto EG'!E294 -> 15.46
B21: Demanda neta bien 2 | C21: ='Oculto EG'!D295 -> 83.71 | D21: ='Oculto EG'!E295 -> (83.71)
B22: Mejora en la utilidad | C22: =C17-C12 -> 16.15 | D22: =D17-D12 -> 3.53
B24: a | C24: 0.3
B25: 1-a | C25: ='Oculto EG'!D298 -> 0.7
B26: b | D26: 0.8
B27: 1-b | D27: ='Oculto EG'!E300 -> 0.2
B29: P1/P2 | C29: ='Oculto EG'!E302 -> 5.41
B30: P2/P1 | C30: ='Oculto EG'!E303 -> 0.18
B32: P1 | C32: =C29 -> 5.41
B33: P2 | C33: 1.00
B35: Títulos
B36: Resultados
B37: Insertar datos
B38: Cantidad de equilibrio

Sheet Oculto EG (hidden)
C1: CAJA DE EDGEWORTH
G2: =POWER((F58/(F44^D53)),1/D52) -> 12.93846154 | H2: =($F$58/($G2^($D$52)))^(1/$D$53) -> 75 | I2: =POWER((K50/(K44^D53)),1/D52) -> 3.234615385 | J2: =($K$50/($I2^($D$52)))^(1/$D$53) -> 75 | K2: =POWER((K61/(K55^D53)),1/D52) -> 8.280615385 | L2: =($K$61/($K2^($D$52)))^(1/$D$53) -> 75 | M2: =POWER((Q50/(Q44^D53)),1/D52) -> 26.36861538 | N2: =($Q$50/($M2^($D$52)))^(1/$D$53) -> 75 | O2: =POWER((Q61/(Q55^D53)),1/D52) -> 46.20061538 | P2: =($Q$61/($O2^($D$52)))^(1/$D$53) -> 75 | Q2: =POWER((D45/(F44^D53)),1/D52) -> 9 | R2: =($D$45/($Q2^($D$52)))^(1/$D$53) -> 75 | AA2: ORIGINAL | AH2: MENOS 2 | AO2: MENOS 1 | AW2: MAS 1 | BD2: MAS 2 | BK2: DOTACIÓN
A3: Original | B3: Original | F3: Original | H3: Original | I3: menos 2 | J3: menos 2 | K3: menos 1 | L3: menos 1 | M3: mas 1 | N3: mas 1 | O3: masn2 | P3: masn2 | T3: DOTACIÓN | X3: OPTIMO | AB3: CAJA | AF3: ORIGINAL | AG3: ORIGINAL | AH3: NEGATIVO | AI3: NEGATIVO | AJ3: TRANSFORMADA | AM3: ORIGINAL | AN3: ORIGINAL | AO3: NEGATIVO | AP3: NEGATIVO | AQ3: TRANSFORMADA | AT3: ORIGINAL | AU3: ORIGINAL | AV3: NEGATIVO | AW3: NEGATIVO | AX3: TRANSFORMADA | BB3: ORIGINAL | BC3: ORIGINAL | BD3: NEGATIVO | BE3: NEGATIVO | BF3: TRANSFORMADA | BI3: ORIGINAL | BJ3: ORIGINAL | BK3: NEGATIVO | BL3: NEGATIVO | BM3: TRANSFORMADA | BP3: ORIGINAL | BQ3: ORIGINAL | BR3: NEGATIVO | BS3: NEGATIVO | BT3: TRANSFORMADA
A4: x1 | B4: x2 | C4: Unidades | D4: ponderador | F4: x1 | G4: x1 | H4: x2 | I4: x1 | J4: x2 | K4: x1 | L4: x2 | M4: x1 | N4: x2 | O4: x1 | P4: x2 | Q4: DOTA | R4: DOTA | T4: x1linedotación | V4: x2line | X4: x1linedotación | Z4: x2line | AF4: x1 | AG4: x2 | AH4: MENOS X1 | AI4: MENOS X2 | AJ4: x1 | AK4: x2 | AM4: x1 | AN4: x2 | AO4: MENOS X1 | AP4: MENOS X2 | AQ4: x1 | AR4: x2 | AT4: x1 | AU4: x2 | AV4: MENOS X1 | AW4: MENOS X2 | AX4: x1 | AY4: x2 | BB4: x1 | BC4: x2 | BD4: MENOS X1 | BE4: MENOS X2 | BF4: x1 | BG4: x2 | BI4: x1 | BJ4: x2 | BK4: MENOS X1 | BL4: MENOS X2 | BM4: x1 | BN4: x2 | BP4: x1 | BQ4: x2 | BR4: MENOS X1 | BS4: MENOS X2 | BT4: x1 | BU4: x2
A5: =$D$46*E5 -> 0.29 | B5: =($F$58/($A5^($D$52)))^(1/$D$53) -> 3,346.15 | C5: 1 | D5: 0 | E5: 0.01 | F5: =IF($D$46*E5>$F$43,$F$43,$D$46*E5) -> 0.29 | G5: =IF(($F$58/($F5^($D$52)))^(1/$D$53)>$F$44,$G$2,$F5) -> 12.94 | H5: =($F$58/($G5^($D$52)))^(1/$D$53) -> 75.00 | I5: =IF(($K$50/($F5^($D$52)))^(1/$D$53)>$F$44,$I$2,F5) -> 3.23 | J5: =($K$50/($I5^($D$52)))^(1/$D$53) -> 75.00 | K5: =IF(($K$61/($F5^($D$52)))^(1/$D$53)>$F$44,$K$2,F5) -> 8.28 | L5: =($K$61/($K5^($D$52)))^(1/$D$53) -> 75.00 | M5: =IF(($Q$50/($F5^($D$52)))^(1/$D$53)>$F$44,$M$2,F5) -> 26.37 | N5: =($Q$50/(M5^($D$52)))^(1/$D$53) -> 75.00 | O5: =IF(($Q$61/($F5^($D$52)))^(1/$D$53)>$F$44,$O$2,F5) -> 46.20 | P5: =($Q$61/($O5^($D$52)))^(1/$D$53) -> 75.00 | Q5: =IF(($D$45/($F5^($D$52)))^(1/$D$53)>$F$44,$Q$2,F5) -> 9 | R5: =($D$45/($Q5^($D$52)))^(1/$D$53) -> 75.00 | S5: =IF(B5>$F$44,1,0) -> 1 | T5: =D5*$F$43 -> 0 | U5: =$D$44 -> 15.00 | V5: =$D$43 -> 45.00 | W5: =$F$44*D5 -> 0 | X5: =$D$47 -> 33.46 | Y5: =$D$46 -> 29.00 | Z5: =$D$43 -> 45.00 | AA5: =$F$44*J5 -> 5,625.00 | AB5: =$F$43 -> 65.00 | AC5: =$F$44 -> 75.00 | AD5: 0 | AF5: =$E5*$E$46 -> 0.36 | AG5: =(($E$48)/(AF5^($E$54)))^(1/$E$55) -> 4,153.85 | AH5: =AF5*-1 -> (0.36) | AI5: =AG5*-1 -> (4,153.85) | AJ5: =AH5+($AF$15*2)+($D$46-$E$46) -> 64.64 | AK5: =AI5+($E$47*2)+($D$47-$E$47) -> (4,078.85) | AM5: =$E5*$AM$48 -> 0.51 | AN5: =(($AM$50)/(AM5^($E$54)))^(1/$E$55) -> 5,826.92 | AO5: =AM5*-1 -> (0.51) | AP5: =AN5*-1 -> (5,826.92) | AQ5: =AO5+($AM$15*2)+($AL$48-$AM$48) -> 64.50 | AR5: =AP5+($AN$15*2)+($AL$49-$AM$49) -> (5,751.92) | AT5: =$E5*$AM$59 -> 0.42 | AU5: =(($AM$61)/(AT5^($E$54)))^(1/$E$55) -> 4,823.08 | AV5: =AT5*-1 -> (0.42) | AW5: =AU5*-1 -> (4,823.08) | AX5: =AV5+($AT$15*2)+($AL$59-$AM$59) -> 64.58 | AY5: =AW5+($AU$15*2)+($AL$60-$AM$60) -> (4,748.08) | BB5: =$E5*$BC$48 -> 0.24 | BC5: =(($BC$50)/(BB5^($E$54)))^(1/$E$55) -> 2,723.08 | BD5: =BB5*-1 -> (0.24) | BE5: =BC5*-1 -> (2,723.08) | BF5: =BD5+($BB$15*2)+($BB$48-$BC$48) -> 64.76 | BG5: =BE5+($BC$15*2)+($BB$49-$BC$49) -> (2,648.08) | BI5: =$E5*$BC$59 -> 0.10 | BJ5: =(($BC$61)/(BI5^($E$54)))^(1/$E$55) -> 1,176.92 | BK5: =BI5*-1 -> (0.10) | BL5: =BJ5*-1 -> (1,176.92) | BM5: =BK5+($BI$15*2)+($BB$59-$BC$59) -> 64.90 | BN5: =BL5+($BJ$15*2)+($BB$60-$BC$60) -> (1,101.92) | BP5: =E5*BL46 -> 0.20 | BQ5: =(($BL$48)/(BP5^($E$54)))^(1/$E$55) -> 6,000.00 | BR5: =BP5*-1 -> (0.20) | BS5: =BQ5*-1 -> (6,000.00) | BT5: =BR5+($BP$15*2)+($BK$46-$BL$46) -> 64.80 | BU5: =BS5+($BQ$15*2)+($BK$47-$BL$47) -> (5,925.00)
A6: 2.90 | B6: 334.62 | C6: 2 | D6: 0.01 | E6: 0.10 | F6: 2.90 | G6: 12.94 | H6: 75.00 | I6: =IF(($K$50/($F6^($D$52)))^(1/$D$53)>$F$44,$I$2,F6) -> 3.23 | J6: 75.00 | K6: =IF(($K$61/($F6^($D$52)))^(1/$D$53)>$F$44,$K$2,F6) -> 8.28 | L6: 75.00 | M6: =IF(($Q$50/($F6^($D$52)))^(1/$D$53)>$F$44,$M$2,F6) -> 26.37 | N6: 75.00 | O6: =IF(($Q$61/($F6^($D$52)))^(1/$D$53)>$F$44,$O$2,F6) -> 46.20 | P6: 75.00 | Q6: =IF(($D$45/($F6^($D$52)))^(1/$D$53)>$F$44,$Q$2,F6) -> 9 | R6: 75.00 | S6: 1 | T6: 0.65 | U6: 15.00 | V6: 45.00 | W6: 0.75 | X6: =$D$47 -> 33.46 | Y6: 29.00 | Z6: 45.00 | AA6: 5,625.00 | AB6: 65.00 | AC6: 75.00 | AD6: 0 | AF6: 3.60 | AG6: 415.38 | AH6: (3.60) | AI6: (415.38) | AJ6: 61.40 | AK6: (340.38) | AM6: 5.05 | AN6: 582.69 | AO6: (5.05) | AP6: (582.69) | AQ6: 59.95 | AR6: (507.69) | AT6: 4.18 | AU6: 482.31 | AV6: (4.18) | AW6: (482.31) | AX6: 60.82 | AY6: (407.31) | BB6: 2.36 | BC6: 272.31 | BD6: (2.36) | BE6: (272.31) | BF6: 62.64 | BG6: (197.31) | BI6: 1.02 | BJ6: 117.69 | BK6: (1.02) | BL6: (117.69) | BM6: 63.98 | BN6: (42.69) | BP6: =E6*$BL$46 -> 2.00 | BQ6: 600.00 | BR6: (2.00) | BS6: (600.00) | BT6: 63.00 | BU6: (525.00)
A7: 5.80 | B7: 167.31 | C7: 3 | D7: 0.10 | E7: 0.20 | F7: 5.80 | G7: 12.94 | H7: 75.00 | I7: 5.80 | J7: 41.83 | K7: 8.28 | L7: 75.00 | M7: 26.37 | N7: 75.00 | O7: 46.20 | P7: 75.00 | Q7: 9 | R7: 75.00 | S7: 1 | T7: 6.50 | U7: 15.00 | V7: 45.00 | W7: 7.50 | X7: 33.46 | Y7: 29.00 | Z7: 45.00 | AA7: 3,137.02 | AB7: 65.00 | AC7: 75.00 | AD7: 0 | AF7: 7.20 | AG7: 207.69 | AH7: (7.20) | AI7: (207.69) | AJ7: 57.80 | AK7: (132.69) | AM7: 10.10 | AN7: 291.35 | AO7: (10.10) | AP7: (291.35) | AQ7: 54.90 | AR7: (216.35) | AT7: 8.36 | AU7: 241.15 | AV7: (8.36) | AW7: (241.15) | AX7: 56.64 | AY7: (166.15) | BB7: 4.72 | BC7: 136.15 | BD7: (4.72) | BE7: (136.15) | BF7: 60.28 | BG7: (61.15) | BI7: 2.04 | BJ7: 58.85 | BK7: (2.04) | BL7: (58.85) | BM7: 62.96 | BN7: 16.15 | BP7: 4.00 | BQ7: 300.00 | BR7: (4.00) | BS7: (300.00) | BT7: 61.00 | BU7: (225.00)
A8: 8.70 | B8: 111.54 | C8: 4 | D8: 0.15 | E8: 0.30 | F8: 8.70 | G8: 12.94 | H8: 75.00 | I8: 8.70 | J8: 27.88 | K8: 8.70 | L8: 71.38 | M8: 26.37 | N8: 75.00 | O8: 46.20 | P8: 75.00 | Q8: 9 | R8: 75.00 | S8: 1 | T8: 9.75 | U8: 15.00 | V8: 45.00 | W8: 11.25 | X8: 33.46 | Y8: 29.00 | Z8: 45.00 | AA8: 2,091.35 | AB8: 65.00 | AC8: 75.00 | AD8: 0 | AF8: 10.80 | AG8: 138.46 | AH8: (10.80) | AI8: (138.46) | AJ8: 54.20 | AK8: (63.46) | AM8: 15.15 | AN8: 194.23 | AO8: (15.15) | AP8: (194.23) | AQ8: 49.85 | AR8: (119.23) | AT8: 12.54 | AU8: 160.77 | AV8: (12.54) | AW8: (160.77) | AX8: 52.46 | AY8: (85.77) | BB8: 7.08 | BC8: 90.77 | BD8: (7.08) | BE8: (90.77) | BF8: 57.92 | BG8: (15.77) | BI8: 3.06 | BJ8: 39.23 | BK8: (3.06) | BL8: (39.23) | BM8: 61.94 | BN8: 35.77 | BP8: 6.00 | BQ8: 200.00 | BR8: (6.00) | BS8: (200.00) | BT8: 59.00 | BU8: (125.00)
A9: 11.60 | B9: 83.65 | C9: 5 | D9: 0.20 | E9: 0.40 | F9: 11.60 | G9: 12.94 | H9: 75.00 | I9: 11.60 | J9: 20.91 | K9: 11.60 | L9: 53.54 | M9: 26.37 | N9: 75.00 | O9: 46.20 | P9: 75.00 | Q9: 11.6 | R9: 58.19 | S9: 1 | T9: 13.00 | U9: 15.00 | V9: 45.00 | W9: 15.00 | X9: 33.46 | Y9: 29.00 | Z9: 45.00 | AA9: 1,568.51 | AB9: 65.00 | AC9: 75.00 | AD9: 0 | AF9: 14.40 | AG9: 103.85 | AH9: (14.40) | AI9: (103.85) | AJ9: 50.60 | AK9: (28.85) | AM9: 20.20 | AN9: 145.67 | AO9: (20.20) | AP9: (145.67) | AQ9: 44.80 | AR9: (70.67) | AT9: 16.72 | AU9: 120.58 | AV9: (16.72) | AW9: (120.58) | AX9: 48.28 | AY9: (45.58) | BB9: 9.44 | BC9: 68.08 | BD9: (9.44) | BE9: (68.08) | BF9: 55.56 | BG9: 6.92 | BI9: 4.08 | BJ9: 29.42 | BK9: (4.08) | BL9: (29.42) | BM9: 60.92 | BN9: 45.58 | BP9: 8.00 | BQ9: 150.00 | BR9: (8.00) | BS9: (150.00) | BT9: 57.00 | BU9: (75.00)
A10: 14.50 | B10: 66.92 | C10: 6 | D10: 0.25 | E10: 0.50 | F10: 14.50 | G10: 14.50 | H10: 66.92 | I10: 14.50 | J10: 16.73 | K10: 14.50 | L10: 42.83 | M10: 26.37 | N10: 75.00 | O10: 46.20 | P10: 75.00 | Q10: 14.5 | R10: 46.55 | S10: 0 | T10: 16.25 | U10: 15.00 | V10: 45.00 | W10: 18.75 | X10: 33.46 | Y10: 29.00 | Z10: 45.00 | AA10: 1,254.81 | AB10: 65.00 | AC10: 75.00 | AD10: 0 | AF10: 18.00 | AG10: 83.08 | AH10: (18.00) | AI10: (83.08) | AJ10: 47.00 | AK10: (8.08) | AM10: 25.25 | AN10: 116.54 | AO10: (25.25) | AP10: (116.54) | AQ10: 39.75 | AR10: (41.54) | AT10: 20.90 | AU10: 96.46 | AV10: (20.90) | AW10: (96.46) | AX10: 44.10 | AY10: (21.46) | BB10: 11.80 | BC10: 54.46 | BD10: (11.80) | BE10: (54.46) | BF10: 53.20 | BG10: 20.54 | BI10: 5.10 | BJ10: 23.54 | BK10: (5.10) | BL10: (23.54) | BM10: 59.90 | BN10: 51.46 | BP10: 10.00 | BQ10: 120.00 | BR10: (10.00) | BS10: (120.00) | BT10: 55.00 | BU10: (45.00)
A11: 17.40 | B11: 55.77 | C11: 7 | D11: 0.30 | E11: 0.60 | F11: 17.40 | G11: 17.40 | H11: 55.77 | I11: 17.40 | J11: 13.94 | K11: 17.40 | L11: 35.69 | M11: 26.37 | N11: 75.00 | O11: 46.20 | P11: 75.00 | Q11: 17.4 | R11: 38.79 | S11: 0 | T11: 19.50 | U11: 15.00 | V11: 45.00 | W11: 22.50 | X11: 33.46 | Y11: 29.00 | Z11: 45.00 | AA11: 1,045.67 | AB11: 65.00 | AC11: 75.00 | AD11: 0 | AF11: 21.60 | AG11: 69.23 | AH11: (21.60) | AI11: (69.23) | AJ11: 43.40 | AK11: 5.77 | AM11: 30.30 | AN11: 97.12 | AO11: (30.30) | AP11: (97.12) | AQ11: 34.70 | AR11: (22.12) | AT11: 25.08 | AU11: 80.38 | AV11: (25.08) | AW11: (80.38) | AX11: 39.92 | AY11: (5.38) | BB11: 14.16 | BC11: 45.38 | BD11: (14.16) | BE11: (45.38) | BF11: 50.84 | BG11: 29.62 | BI11: 6.12 | BJ11: 19.62 | BK11: (6.12) | BL11: (19.62) | BM11: 58.88 | BN11: 55.38 | BP11: 12.00 | BQ11: 100.00 | BR11: (12.00) | BS11: (100.00) | BT11: 53.00 | BU11: (25.00)
A12: 20.30 | B12: 47.80 | C12: 8 | D12: 0.35 | E12: 0.70 | F12: 20.30 | G12: 20.30 | H12: 47.80 | I12: 20.30 | J12: 11.95 | K12: 20.30 | L12: 30.59 | M12: 26.37 | N12: 75.00 | O12: 46.20 | P12: 75.00 | Q12: 20.3 | R12: 33.25 | S12: 0 | T12: 22.75 | U12: 15.00 | V12: 45.00 | W12: 26.25 | X12: 33.46 | Y12: 29.00 | Z12: 45.00 | AA12: 896.29 | AB12: 65.00 | AC12: 75.00 | AD12: 0 | AF12: 25.20 | AG12: 59.34 | AH12: (25.20) | AI12: (59.34) | AJ12: 39.80 | AK12: 15.66 | AM12: 35.35 | AN12: 83.24 | AO12: (35.35) | AP12: (83.24) | AQ12: 29.65 | AR12: (8.24) | AT12: 29.26 | AU12: 68.90 | AV12: (29.26) | AW12: (68.90) | AX12: 35.74 | AY12: 6.10 | BB12: 16.52 | BC12: 38.90 | BD12: (16.52) | BE12: (38.90) | BF12: 48.48 | BG12: 36.10 | BI12: 7.14 | BJ12: 16.81 | BK12: (7.14) | BL12: (16.81) | BM12: 57.86 | BN12: 58.19 | BP12: 14.00 | BQ12: 85.71 | BR12: (14.00) | BS12: (85.71) | BT12: 51.00 | BU12: (10.71)
A13: 23.20 | B13: 41.83 | C13: 9 | D13: 0.40 | E13: 0.80 | F13: 23.20 | G13: 23.20 | H13: 41.83 | I13: 23.20 | J13: 10.46 | K13: 23.20 | L13: 26.77 | M13: 26.37 | N13: 75.00 | O13: 46.20 | P13: 75.00 | Q13: 23.2 | R13: 29.09 | S13: 0 | T13: 26.00 | U13: 15.00 | V13: 45.00 | W13: 30.00 | X13: 33.46 | Y13: 29.00 | Z13: 45.00 | AA13: 784.25 | AB13: 65.00 | AC13: 75.00 | AD13: 0 | AF13: 28.80 | AG13: 51.92 | AH13: (28.80) | AI13: (51.92) | AJ13: 36.20 | AK13: 23.08 | AM13: 40.40 | AN13: 72.84 | AO13: (40.40) | AP13: (72.84) | AQ13: 24.60 | AR13: 2.16 | AT13: 33.44 | AU13: 60.29 | AV13: (33.44) | AW13: (60.29) | AX13: 31.56 | AY13: 14.71 | BB13: 18.88 | BC13: 34.04 | BD13: (18.88) | BE13: (34.04) | BF13: 46.12 | BG13: 40.96 | BI13: 8.16 | BJ13: 14.71 | BK13: (8.16) | BL13: (14.71) | BM13: 56.84 | BN13: 60.29 | BP13: 16.00 | BQ13: 75.00 | BR13: (16.00) | BS13: (75.00) | BT13: 49.00 | BU13: 0
A14: 26.10 | B14: =($F$58/($A14^($D$52)))^(1/$D$53) -> 37.18 | C14: 10 | D14: 0.45 | E14: 0.90 | F14: 26.10 | G14: 26.10 | H14: 37.18 | I14: 26.10 | J14: 9.29 | K14: 26.10 | L14: 23.79 | M14: 26.37 | N14: 75.00 | O14: 46.20 | P14: 75.00 | Q14: 26.1 | R14: 25.86 | S14: =IF(B14>$F$44,1,0) -> 0 | T14: 29.25 | U14: 15.00 | V14: 45.00 | W14: 33.75 | X14: 33.46 | Y14: 29.00 | Z14: 45.00 | AA14: 697.12 | AB14: 65.00 | AC14: 75.00 | AD14: 0 | AF14: 32.40 | AG14: 46.15 | AH14: (32.40) | AI14: (46.15) | AJ14: 32.60 | AK14: 28.85 | AM14: 45.45 | AN14: 64.74 | AO14: (45.45) | AP14: (64.74) | AQ14: 19.55 | AR14: 10.26 | AT14: 37.62 | AU14: 53.59 | AV14: (37.62) | AW14: (53.59) | AX14: 27.38 | AY14: 21.41 | BB14: 21.24 | BC14: 30.26 | BD14: (21.24) | BE14: (30.26) | BF14: 43.76 | BG14: 44.74 | BI14: 9.18 | BJ14: 13.08 | BK14: (9.18) | BL14: (13.08) | BM14: 55.82 | BN14: 61.92 | BP14: 18.00 | BQ14: 66.67 | BR14: (18.00) | BS14: (66.67) | BT14: 47.00 | BU14: 8.33
A15: 29.00 | B15: =($F$58/($F15^($D$52)))^(1/$D$53) -> 33.46 | C15: 11 | D15: 0.50 | E15: 1.00 | F15: 29.00 | G15: 29.00 | H15: 33.46 | I15: 29.00 | J15: 8.37 | K15: 29.00 | L15: 21.42 | M15: 29.00 | N15: 68.19 | O15: 46.20 | P15: 75.00 | Q15: 29 | R15: 23.28 | T15: 32.50 | U15: 15.00 | V15: 45.00 | W15: 37.50 | X15: 33.46 | Y15: 29.00 | Z15: 45.00 | AA15: 627.40 | AB15: 65.00 | AC15: 75.00 | AD15: 0 | AF15: =$E15*$E$46 -> 36.00 | AG15: =(($E$48)/(AF15^($E$54)))^(1/$E$55) -> 41.54 | AH15: =AF15*-1 -> (36.00) | AI15: =AG15*-1 -> (41.54) | AJ15: 29.00 | AK15: =AI15+($E$47*2)+($D$47-$E$47) -> 33.46 | AM15: 50.50 | AN15: 58.27 | AO15: =AM15*-1 -> (50.50) | AP15: =AN15*-1 -> (58.27) | AQ15: 14.50 | AR15: 16.73 | AT15: 41.80 | AU15: 48.23 | AV15: =AT15*-1 -> (41.80) | AW15: =AU15*-1 -> (48.23) | AX15: 23.20 | AY15: 26.77 | BB15: 23.60 | BC15: 27.23 | BD15: =BB15*-1 -> (23.60) | BE15: =BC15*-1 -> (27.23) | BF15: 41.40 | BG15: 47.77 | BI15: 10.20 | BJ15: 11.77 | BK15: =BI15*-1 -> (10.20) | BL15: =BJ15*-1 -> (11.77) | BM15: 54.80 | BN15: 63.23 | BP15: 20.00 | BQ15: 60.00 | BR15: =BP15*-1 -> (20.00) | BS15: =BQ15*-1 -> (60.00) | BT15: 45.00 | BU15: 15.00
A16: 31.90 | B16: 30.42 | C16: 12 | D16: 0.55 | E16: 1.10 | F16: 31.90 | G16: 31.90 | H16: 30.42 | I16: 31.90 | J16: 7.60 | K16: 31.90 | L16: 19.47 | M16: 31.90 | N16: 62.00 | O16: 46.20 | P16: 75.00 | Q16: 31.9 | R16: 21.16 | T16: 35.75 | U16: 15.00 | V16: 45.00 | W16: 41.25 | X16: 33.46 | Y16: 29.00 | Z16: 45.00 | AA16: 570.37 | AB16: 65.00 | AC16: 75.00 | AD16: 0 | AF16: =$E16*$E$46 -> 39.60 | AG16: =(($E$48)/(AF16^($E$54)))^(1/$E$55) -> 37.76 | AH16: =AF16*-1 -> (39.60) | AI16: =AG16*-1 -> (37.76) | AJ16: 25.40 | AK16: =AI16+($E$47*2)+($D$47-$E$47) -> 37.24 | AM16: 55.55 | AN16: 52.97 | AO16: =AM16*-1 -> (55.55) | AP16: =AN16*-1 -> (52.97) | AQ16: 9.45 | AR16: 22.03 | AT16: 45.98 | AU16: 43.85 | AV16: =AT16*-1 -> (45.98) | AW16: =AU16*-1 -> (43.85) | AX16: 19.02 | AY16: 31.15 | BB16: 25.96 | BC16: 24.76 | BD16: =BB16*-1 -> (25.96) | BE16: =BC16*-1 -> (24.76) | BF16: 39.04 | BG16: 50.24 | BI16: 11.22 | BJ16: 10.70 | BK16: =BI16*-1 -> (11.22) | BL16: =BJ16*-1 -> (10.70) | BM16: 53.78 | BN16: 64.30 | BP16: 22.00 | BQ16: 54.55 | BR16: =BP16*-1 -> (22.00) | BS16: =BQ16*-1 -> (54.55) | BT16: 43.00 | BU16: 20.45
A17: 34.80 | B17: 27.88 | C17: 13 | D17: 0.60 | E17: 1.20 | F17: =IF($D$46*E17>$F$43,$F$43,$D$46*E17) -> 34.80 | G17: 34.80 | H17: 27.88 | I17: 34.80 | J17: 6.97 | K17: 34.80 | L17: 17.85 | M17: 34.80 | N17: 56.83 | O17: 46.20 | P17: 75.00 | Q17: 34.8 | R17: 19.40 | T17: 39.00 | U17: 15.00 | V17: 45.00 | W17: 45.00 | X17: 33.46 | Y17: 29.00 | Z17: 45.00 | AA17: 522.84 | AB17: 65.00 | AC17: 75.00 | AD17: 0 | AF17: 43.20 | AG17: 34.62 | AH17: (43.20) | AI17: (34.62) | AJ17: 21.80 | AK17: 40.38 | AM17: 60.60 | AN17: 48.56 | AO17: (60.60) | AP17: (48.56) | AQ17: 4.40 | AR17: 26.44 | AT17: 50.16 | AU17: 40.19 | AV17: (50.16) | AW17: (40.19) | AX17: 14.84 | AY17: 34.81 | BB17: 28.32 | BC17: 22.69 | BD17: (28.32) | BE17: (22.69) | BF17: 36.68 | BG17: 52.31 | BI17: 12.24 | BJ17: 9.81 | BK17: (12.24) | BL17: (9.81) | BM17: 52.76 | BN17: 65.19 | BP17: 24.00 | BQ17: 50.00 | BR17: (24.00) | BS17: (50.00) | BT17: 41.00 | BU17: 25.00
A18: 37.70 | B18: 25.74 | C18: 14 | D18: 0.65 | E18: 1.30 | F18: 37.70 | G18: 37.70 | H18: 25.74 | I18: 37.70 | J18: 6.43 | K18: 37.70 | L18: 16.47 | M18: 37.70 | N18: 52.46 | O18: 46.20 | P18: 75.00 | Q18: 37.7 | R18: 17.90 | T18: 42.25 | U18: 15.00 | V18: 45.00 | W18: 48.75 | X18: 33.46 | Y18: 29.00 | Z18: 45.00 | AA18: 482.62 | AB18: 65.00 | AC18: 75.00 | AD18: 0 | AF18: 46.80 | AG18: 31.95 | AH18: (46.80) | AI18: (31.95) | AJ18: 18.20 | AK18: 43.05 | AM18: 65.65 | AN18: 44.82 | AO18: (65.65) | AP18: (44.82) | AQ18: (0.65) | AR18: 30.18 | AT18: 54.34 | AU18: 37.10 | AV18: (54.34) | AW18: (37.10) | AX18: 10.66 | AY18: 37.90 | BB18: 30.68 | BC18: 20.95 | BD18: (30.68) | BE18: (20.95) | BF18: 34.32 | BG18: 54.05 | BI18: 13.26 | BJ18: 9.05 | BK18: (13.26) | BL18: (9.05) | BM18: 51.74 | BN18: 65.95 | BP18: 26.00 | BQ18: 46.15 | BR18: (26.00) | BS18: (46.15) | BT18: 39.00 | BU18: 28.85
A19: 40.60 | B19: 23.90 | C19: 15 | D19: 0.70 | E19: 1.40 | F19: 40.60 | G19: 40.60 | H19: 23.90 | I19: 40.60 | J19: 5.98 | K19: 40.60 | L19: 15.30 | M19: 40.60 | N19: 48.71 | O19: 46.20 | P19: 75.00 | Q19: 40.6 | R19: 16.63 | T19: 45.50 | U19: 15.00 | V19: 45.00 | W19: 52.50 | X19: 33.46 | Y19: 29.00 | Z19: 45.00 | AA19: 448.15 | AB19: 65.00 | AC19: 75.00 | AD19: 0 | AF19: 50.40 | AG19: 29.67 | AH19: (50.40) | AI19: (29.67) | AJ19: 14.60 | AK19: 45.33 | AM19: 70.70 | AN19: 41.62 | AO19: (70.70) | AP19: (41.62) | AQ19: (5.70) | AR19: 33.38 | AT19: 58.52 | AU19: 34.45 | AV19: (58.52) | AW19: (34.45) | AX19: 6.48 | AY19: 40.55 | BB19: 33.04 | BC19: 19.45 | BD19: (33.04) | BE19: (19.45) | BF19: 31.96 | BG19: 55.55 | BI19: 14.28 | BJ19: 8.41 | BK19: (14.28) | BL19: (8.41) | BM19: 50.72 | BN19: 66.59 | BP19: 28.00 | BQ19: 42.86 | BR19: (28.00) | BS19: (42.86) | BT19: 37.00 | BU19: 32.14
A20: 43.50 | B20: 22.31 | C20: 16 | D20: 0.75 | E20: 1.50 | F20: 43.50 | G20: 43.50 | H20: 22.31 | I20: 43.50 | J20: 5.58 | K20: 43.50 | L20: 14.28 | M20: 43.50 | N20: 45.46 | O20: 46.20 | P20: 75.00 | Q20: 43.5 | R20: 15.52 | T20: 48.75 | U20: 15.00 | V20: 45.00 | W20: 56.25 | X20: 33.46 | Y20: 29.00 | Z20: 45.00 | AA20: 418.27 | AB20: 65.00 | AC20: 75.00 | AD20: 0 | AF20: 54.00 | AG20: 27.69 | AH20: (54.00) | AI20: (27.69) | AJ20: 11.00 | AK20: 47.31 | AM20: 75.75 | AN20: 38.85 | AO20: (75.75) | AP20: (38.85) | AQ20: (10.75) | AR20: 36.15 | AT20: 62.70 | AU20: 32.15 | AV20: (62.70) | AW20: (32.15) | AX20: 2.30 | AY20: 42.85 | BB20: 35.40 | BC20: 18.15 | BD20: (35.40) | BE20: (18.15) | BF20: 29.60 | BG20: 56.85 | BI20: 15.30 | BJ20: 7.85 | BK20: (15.30) | BL20: (7.85) | BM20: 49.70 | BN20: 67.15 | BP20: 30.00 | BQ20: 40.00 | BR20: (30.00) | BS20: (40.00) | BT20: 35.00 | BU20: 35.00
A21: 46.40 | B21: 20.91 | C21: 17 | D21: 0.80 | E21: 1.60 | F21: 46.40 | G21: 46.40 | H21: 20.91 | I21: 46.40 | J21: 5.23 | K21: 46.40 | L21: 13.38 | M21: 46.40 | N21: 42.62 | O21: 46.40 | P21: 74.68 | Q21: 46.4 | R21: 14.55 | T21: 52.00 | U21: 15.00 | V21: 45.00 | W21: 60.00 | X21: 33.46 | Y21: 29.00 | Z21: 45.00 | AA21: 392.13 | AB21: 65.00 | AC21: 75.00 | AD21: 0 | AF21: 57.60 | AG21: 25.96 | AH21: (57.60) | AI21: (25.96) | AJ21: 7.40 | AK21: 49.04 | AM21: 80.80 | AN21: 36.42 | AO21: (80.80) | AP21: (36.42) | AQ21: (15.80) | AR21: 38.58 | AT21: 66.88 | AU21: 30.14 | AV21: (66.88) | AW21: (30.14) | AX21: (1.88) | AY21: 44.86 | BB21: 37.76 | BC21: 17.02 | BD21: (37.76) | BE21: (17.02) | BF21: 27.24 | BG21: 57.98 | BI21: 16.32 | BJ21: 7.36 | BK21: (16.32) | BL21: (7.36) | BM21: 48.68 | BN21: 67.64 | BP21: 32.00 | BQ21: 37.50 | BR21: (32.00) | BS21: (37.50) | BT21: 33.00 | BU21: 37.50
A22: 49.30 | B22: 19.68 | C22: 18 | D22: 0.85 | E22: 1.70 | F22: 49.30 | G22: 49.30 | H22: 19.68 | I22: 49.30 | J22: 4.92 | K22: 49.30 | L22: 12.60 | M22: 49.30 | N22: 40.11 | O22: 49.30 | P22: 70.28 | Q22: 49.3 | R22: 13.69 | T22: 55.25 | U22: 15.00 | V22: 45.00 | W22: 63.75 | X22: 33.46 | Y22: 29.00 | Z22: 45.00 | AA22: 369.06 | AB22: 65.00 | AC22: 75.00 | AD22: 0 | AF22: 61.20 | AG22: 24.43 | AH22: (61.20) | AI22: (24.43) | AJ22: 3.80 | AK22: 50.57 | AM22: 85.85 | AN22: 34.28 | AO22: (85.85) | AP22: (34.28) | AQ22: (20.85) | AR22: 40.72 | AT22: 71.06 | AU22: 28.37 | AV22: (71.06) | AW22: (28.37) | AX22: (6.06) | AY22: 46.63 | BB22: 40.12 | BC22: 16.02 | BD22: (40.12) | BE22: (16.02) | BF22: 24.88 | BG22: 58.98 | BI22: 17.34 | BJ22: 6.92 | BK22: (17.34) | BL22: (6.92) | BM22: 47.66 | BN22: 68.08 | BP22: 34.00 | BQ22: 35.29 | BR22: (34.00) | BS22: (35.29) | BT22: 31.00 | BU22: 39.71
A23: 52.20 | B23: 18.59 | C23: 19 | D23: 0.90 | E23: 1.80 | F23: 52.20 | G23: 52.20 | H23: 18.59 | I23: 52.20 | J23: 4.65 | K23: 52.20 | L23: 11.90 | M23: 52.20 | N23: 37.89 | O23: 52.20 | P23: 66.38 | Q23: 52.2 | R23: 12.93 | T23: 58.50 | U23: 15.00 | V23: 45.00 | W23: 67.50 | X23: 33.46 | Y23: 29.00 | Z23: 45.00 | AA23: 348.56 | AB23: 65.00 | AC23: 75.00 | AD23: 0 | AF23: 64.80 | AG23: 23.08 | AH23: (64.80) | AI23: (23.08) | AJ23: 0.20 | AK23: 51.92 | AM23: 90.90 | AN23: 32.37 | AO23: (90.90) | AP23: (32.37) | AQ23: (25.90) | AR23: 42.63 | AT23: 75.24 | AU23: 26.79 | AV23: (75.24) | AW23: (26.79) | AX23: (10.24) | AY23: 48.21 | BB23: 42.48 | BC23: 15.13 | BD23: (42.48) | BE23: (15.13) | BF23: 22.52 | BG23: 59.87 | BI23: 18.36 | BJ23: 6.54 | BK23: (18.36) | BL23: (6.54) | BM23: 46.64 | BN23: 68.46 | BP23: 36.00 | BQ23: 33.33 | BR23: (36.00) | BS23: (33.33) | BT23: 29.00 | BU23: 41.67
A24: 55.10 | B24: 17.61 | C24: 20 | D24: 0.95 | E24: 1.90 | F24: 55.10 | G24: 55.10 | H24: 17.61 | I24: 55.10 | J24: 4.40 | K24: 55.10 | L24: 11.27 | M24: 55.10 | N24: 35.89 | O24: 55.10 | P24: 62.89 | Q24: 55.1 | R24: 12.25 | T24: 61.75 | U24: 15.00 | V24: 45.00 | W24: 71.25 | X24: 33.46 | Y24: 29.00 | Z24: 45.00 | AA24: 330.21 | AB24: 65.00 | AC24: 75.00 | AD24: 0 | AF24: 68.40 | AG24: 21.86 | AH24: (68.40) | AI24: (21.86) | AJ24: (3.40) | AK24: 53.14 | AM24: 95.95 | AN24: 30.67 | AO24: (95.95) | AP24: (30.67) | AQ24: (30.95) | AR24: 44.33 | AT24: 79.42 | AU24: 25.38 | AV24: (79.42) | AW24: (25.38) | AX24: (14.42) | AY24: 49.62 | BB24: 44.84 | BC24: 14.33 | BD24: (44.84) | BE24: (14.33) | BF24: 20.16 | BG24: 60.67 | BI24: 19.38 | BJ24: 6.19 | BK24: (19.38) | BL24: (6.19) | BM24: 45.62 | BN24: 68.81 | BP24: 38.00 | BQ24: 31.58 | BR24: (38.00) | BS24: (31.58) | BT24: 27.00 | BU24: 43.42
A25: 58.00 | B25: 16.73 | C25: 21 | D25: 1.00 | E25: 2.00 | F25: 58.00 | G25: 58.00 | H25: 16.73 | I25: 58.00 | J25: 4.18 | K25: 58.00 | L25: 10.71 | M25: 58.00 | N25: 34.10 | O25: 58.00 | P25: 59.74 | Q25: 58 | R25: 11.64 | T25: 65.00 | U25: 15.00 | V25: 45.00 | W25: 75.00 | X25: 33.46 | Y25: 29.00 | Z25: 45.00 | AA25: 313.70 | AB25: 65.00 | AC25: 75.00 | AD25: 0 | AF25: 72.00 | AG25: 20.77 | AH25: (72.00) | AI25: (20.77) | AJ25: (7.00) | AK25: 54.23 | AM25: 101.00 | AN25: 29.13 | AO25: (101.00) | AP25: (29.13) | AQ25: (36.00) | AR25: 45.87 | AT25: 83.60 | AU25: 24.12 | AV25: (83.60) | AW25: (24.12) | AX25: (18.60) | AY25: 50.88 | BB25: 47.20 | BC25: 13.62 | BD25: (47.20) | BE25: (13.62) | BF25: 17.80 | BG25: 61.38 | BI25: 20.40 | BJ25: 5.88 | BK25: (20.40) | BL25: (5.88) | BM25: 44.60 | BN25: 69.12 | BP25: 40.00 | BQ25: 30.00 | BR25: (40.00) | BS25: (30.00) | BT25: 25.00 | BU25: 45.00
A26: 60.90 | B26: 15.93 | C26: 22 | D26: 1.05 | E26: 2.10 | F26: 60.90 | G26: 60.90 | H26: 15.93 | I26: 60.90 | J26: 3.98 | K26: 60.90 | L26: 10.20 | M26: 60.90 | N26: 32.47 | O26: 60.90 | P26: 56.90 | Q26: 60.9 | R26: 11.08 | T26: =D26*$F$43 -> 68.25 | U26: 15.00 | V26: 45.00 | W26: =$F$44*D26 -> 78.75 | X26: 33.46 | Y26: 29.00 | Z26: 45.00 | AA26: =$F$44*J26 -> 298.76 | AB26: 65.00 | AC26: 75.00 | AD26: 0 | AF26: 75.60 | AG26: 19.78 | AH26: =AF26*-1 -> (75.60) | AI26: =AG26*-1 -> (19.78) | AJ26: (10.60) | AK26: =AI26+($E$47*2)+($D$47-$E$47) -> 55.22 | AM26: 106.05 | AN26: 27.75 | AO26: =AM26*-1 -> (106.05) | AP26: =AN26*-1 -> (27.75) | AQ26: (41.05) | AR26: 47.25 | AT26: 87.78 | AU26: 22.97 | AV26: =AT26*-1 -> (87.78) | AW26: =AU26*-1 -> (22.97) | AX26: (22.78) | AY26: 52.03 | BB26: 49.56 | BC26: 12.97 | BD26: =BB26*-1 -> (49.56) | BE26: =BC26*-1 -> (12.97) | BF26: 15.44 | BG26: 62.03 | BI26: 21.42 | BJ26: 5.60 | BK26: =BI26*-1 -> (21.42) | BL26: =BJ26*-1 -> (5.60) | BM26: 43.58 | BN26: 69.40 | BP26: 42.00 | BQ26: 28.57 | BR26: =BP26*-1 -> (42.00) | BS26: =BQ26*-1 -> (28.57) | BT26: 23.00 | BU26: 46.43
A27: 63.80 | B27: 15.21 | C27: 23 | D27: 1.10 | E27: 2.20 | F27: 63.80 | G27: 63.80 | H27: 15.21 | I27: 63.80 | J27: 3.80 | K27: 63.80 | L27: 9.73 | M27: 63.80 | N27: 31.00 | O27: 63.80 | P27: 54.31 | Q27: 63.8 | R27: 10.58 | T27: 71.50 | U27: 15.00 | V27: 45.00 | W27: 82.50 | X27: 33.46 | Y27: 29.00 | Z27: 45.00 | AA27: 285.18 | AB27: 65.00 | AC27: 75.00 | AD27: 0 | AF27: 79.20 | AG27: 18.88 | AH27: (79.20) | AI27: (18.88) | AJ27: (14.20) | AK27: 56.12 | AM27: 111.10 | AN27: 26.49 | AO27: (111.10) | AP27: (26.49) | AQ27: (46.10) | AR27: 48.51 | AT27: 91.96 | AU27: 21.92 | AV27: (91.96) | AW27: (21.92) | AX27: (26.96) | AY27: 53.08 | BB27: 51.92 | BC27: 12.38 | BD27: (51.92) | BE27: (12.38) | BF27: 13.08 | BG27: 62.62 | BI27: 22.44 | BJ27: 5.35 | BK27: (22.44) | BL27: (5.35) | BM27: 42.56 | BN27: 69.65 | BP27: 44.00 | BQ27: 27.27 | BR27: (44.00) | BS27: (27.27) | BT27: 21.00 | BU27: 47.73
A28: 66.70 | B28: 14.93 | C28: 24 | D28: 1.15 | E28: 2.30 | F28: 65.00 | G28: 65.00 | H28: 14.93 | I28: 65.00 | J28: 3.73 | K28: 65.00 | L28: 9.55 | M28: 65.00 | N28: 30.43 | O28: 65.00 | P28: 53.31 | Q28: 65 | R28: 10.38 | T28: 74.75 | U28: 15.00 | V28: 45.00 | W28: 86.25 | X28: 33.46 | Y28: 29.00 | Z28: 45.00 | AA28: 279.92 | AB28: 65.00 | AC28: 75.00 | AD28: 0 | AF28: 82.80 | AG28: 18.06 | AH28: (82.80) | AI28: (18.06) | AJ28: (17.80) | AK28: 56.94 | AM28: 116.15 | AN28: 25.33 | AO28: (116.15) | AP28: (25.33) | AQ28: (51.15) | AR28: 49.67 | AT28: 96.14 | AU28: 20.97 | AV28: (96.14) | AW28: (20.97) | AX28: (31.14) | AY28: 54.03 | BB28: 54.28 | BC28: 11.84 | BD28: (54.28) | BE28: (11.84) | BF28: 10.72 | BG28: 63.16 | BI28: 23.46 | BJ28: 5.12 | BK28: (23.46) | BL28: (5.12) | BM28: 41.54 | BN28: 69.88 | BP28: 46.00 | BQ28: 26.09 | BR28: (46.00) | BS28: (26.09) | BT28: 19.00 | BU28: 48.91
A29: 69.60 | B29: =($F$58/($F29^($D$52)))^(1/$D$53) -> 14.93 | C29: 25 | D29: 1.20 | E29: 2.40 | F29: =IF($D$46*E29>$F$43,$F$43,$D$46*E29) -> 65.00 | G29: 65.00 | H29: 14.93 | I29: 65.00 | J29: 3.73 | K29: 65.00 | L29: 9.55 | M29: 65.00 | N29: 30.43 | O29: 65.00 | P29: 53.31 | Q29: 65 | R29: 10.38 | T29: 78.00 | U29: 15.00 | V29: 45.00 | W29: 90.00 | X29: 33.46 | Y29: 29.00 | Z29: 45.00 | AA29: 279.92 | AB29: 65.00 | AC29: 75.00 | AD29: 0 | AF29: 86.40 | AG29: 17.31 | AH29: (86.40) | AI29: (17.31) | AJ29: (21.40) | AK29: 57.69 | AM29: 121.20 | AN29: 24.28 | AO29: (121.20) | AP29: (24.28) | AQ29: (56.20) | AR29: 50.72 | AT29: 100.32 | AU29: 20.10 | AV29: (100.32) | AW29: (20.10) | AX29: (35.32) | AY29: 54.90 | BB29: 56.64 | BC29: 11.35 | BD29: (56.64) | BE29: (11.35) | BF29: 8.36 | BG29: 63.65 | BI29: 24.48 | BJ29: 4.90 | BK29: (24.48) | BL29: (4.90) | BM29: 40.52 | BN29: 70.10 | BP29: 48.00 | BQ29: 25.00 | BR29: (48.00) | BS29: (25.00) | BT29: 17.00 | BU29: 50.00
A30: 72.50 | B30: 14.93 | C30: 26 | D30: 1.25 | E30: 2.50 | F30: 65.00 | G30: 65.00 | H30: 14.93 | I30: 65.00 | J30: 3.73 | K30: 65.00 | L30: 9.55 | M30: 65.00 | N30: 30.43 | O30: 65.00 | P30: 53.31 | Q30: 65 | R30: 10.38 | T30: 81.25 | U30: 15.00 | V30: 45.00 | W30: 93.75 | X30: 33.46 | Y30: 29.00 | Z30: 45.00 | AA30: 279.92 | AB30: 65.00 | AC30: 75.00 | AD30: 0 | AF30: 90.00 | AG30: 16.62 | AH30: (90.00) | AI30: (16.62) | AJ30: (25.00) | AK30: 58.38 | AM30: 126.25 | AN30: 23.31 | AO30: (126.25) | AP30: (23.31) | AQ30: (61.25) | AR30: 51.69 | AT30: 104.50 | AU30: 19.29 | AV30: (104.50) | AW30: (19.29) | AX30: (39.50) | AY30: 55.71 | BB30: 59.00 | BC30: 10.89 | BD30: (59.00) | BE30: (10.89) | BF30: 6.00 | BG30: 64.11 | BI30: 25.50 | BJ30: 4.71 | BK30: (25.50) | BL30: (4.71) | BM30: 39.50 | BN30: 70.29 | BP30: 50.00 | BQ30: 24.00 | BR30: (50.00) | BS30: (24.00) | BT30: 15.00 | BU30: 51.00
A31: 75.40 | B31: 14.93 | C31: 27 | D31: 1.30 | E31: 2.60 | F31: 65.00 | G31: 65.00 | H31: 14.93 | I31: 65.00 | J31: 3.73 | K31: 65.00 | L31: 9.55 | M31: 65.00 | N31: 30.43 | O31: 65.00 | P31: 53.31 | Q31: 65 | R31: 10.38 | T31: 84.50 | U31: 15.00 | V31: 45.00 | W31: 97.50 | X31: 33.46 | Y31: 29.00 | Z31: 45.00 | AA31: 279.92 | AB31: 65.00 | AC31: 75.00 | AD31: 0 | AF31: 93.60 | AG31: 15.98 | AH31: (93.60) | AI31: (15.98) | AJ31: (28.60) | AK31: 59.02 | AM31: 131.30 | AN31: 22.41 | AO31: (131.30) | AP31: (22.41) | AQ31: (66.30) | AR31: 52.59 | AT31: 108.68 | AU31: 18.55 | AV31: (108.68) | AW31: (18.55) | AX31: (43.68) | AY31: 56.45 | BB31: 61.36 | BC31: 10.47 | BD31: (61.36) | BE31: (10.47) | BF31: 3.64 | BG31: 64.53 | BI31: 26.52 | BJ31: 4.53 | BK31: (26.52) | BL31: (4.53) | BM31: 38.48 | BN31: 70.47 | BP31: 52.00 | BQ31: 23.08 | BR31: (52.00) | BS31: (23.08) | BT31: 13.00 | BU31: 51.92
A32: 78.30 | B32: 14.93 | C32: 28 | D32: 1.35 | E32: 2.70 | F32: 65.00 | G32: 65.00 | H32: 14.93 | I32: 65.00 | J32: 3.73 | K32: 65.00 | L32: 9.55 | M32: 65.00 | N32: 30.43 | O32: 65.00 | P32: 53.31 | Q32: 65 | R32: 10.38 | T32: 87.75 | U32: 15.00 | V32: 45.00 | W32: 101.25 | X32: 33.46 | Y32: 29.00 | Z32: 45.00 | AA32: 279.92 | AB32: 65.00 | AC32: 75.00 | AD32: 0 | AF32: 97.20 | AG32: 15.38 | AH32: (97.20) | AI32: (15.38) | AJ32: (32.20) | AK32: 59.62 | AM32: 136.35 | AN32: 21.58 | AO32: (136.35) | AP32: (21.58) | AQ32: (71.35) | AR32: 53.42 | AT32: 112.86 | AU32: 17.86 | AV32: (112.86) | AW32: (17.86) | AX32: (47.86) | AY32: 57.14 | BB32: 63.72 | BC32: 10.09 | BD32: (63.72) | BE32: (10.09) | BF32: 1.28 | BG32: 64.91 | BI32: 27.54 | BJ32: 4.36 | BK32: (27.54) | BL32: (4.36) | BM32: 37.46 | BN32: 70.64 | BP32: 54.00 | BQ32: 22.22 | BR32: (54.00) | BS32: (22.22) | BT32: 11.00 | BU32: 52.78
A33: 81.20 | B33: 14.93 | C33: 29 | D33: 1.40 | E33: 2.80 | F33: 65.00 | G33: 65.00 | H33: 14.93 | I33: 65.00 | J33: 3.73 | K33: 65.00 | L33: 9.55 | M33: 65.00 | N33: 30.43 | O33: 65.00 | P33: 53.31 | Q33: 65 | R33: 10.38 | T33: 91.00 | U33: 15.00 | V33: 45.00 | W33: 105.00 | X33: 33.46 | Y33: 29.00 | Z33: 45.00 | AA33: 279.92 | AB33: 65.00 | AC33: 75.00 | AD33: 0 | AF33: 100.80 | AG33: 14.84 | AH33: (100.80) | AI33: (14.84) | AJ33: (35.80) | AK33: 60.16 | AM33: 141.40 | AN33: 20.81 | AO33: (141.40) | AP33: (20.81) | AQ33: (76.40) | AR33: 54.19 | AT33: 117.04 | AU33: 17.23 | AV33: (117.04) | AW33: (17.23) | AX33: (52.04) | AY33: 57.77 | BB33: 66.08 | BC33: 9.73 | BD33: (66.08) | BE33: (9.73) | BF33: (1.08) | BG33: 65.27 | BI33: 28.56 | BJ33: 4.20 | BK33: (28.56) | BL33: (4.20) | BM33: 36.44 | BN33: 70.80 | BP33: 56.00 | BQ33: 21.43 | BR33: (56.00) | BS33: (21.43) | BT33: 9.00 | BU33: 53.57
A34: 84.10 | B34: 14.93 | C34: 30 | D34: 1.45 | E34: 2.90 | F34: 65.00 | G34: 65.00 | H34: 14.93 | I34: 65.00 | J34: 3.73 | K34: 65.00 | L34: 9.55 | M34: 65.00 | N34: 30.43 | O34: 65.00 | P34: 53.31 | Q34: 65 | R34: 10.38 | T34: 94.25 | U34: 15.00 | V34: 45.00 | W34: 108.75 | X34: 33.46 | Y34: 29.00 | Z34: 45.00 | AA34: 279.92 | AB34: 65.00 | AC34: 75.00 | AD34: 0 | AF34: 104.40 | AG34: 14.32 | AH34: (104.40) | AI34: (14.32) | AJ34: (39.40) | AK34: 60.68 | AM34: 146.45 | AN34: 20.09 | AO34: (146.45) | AP34: (20.09) | AQ34: (81.45) | AR34: 54.91 | AT34: 121.22 | AU34: 16.63 | AV34: (121.22) | AW34: (16.63) | AX34: (56.22) | AY34: 58.37 | BB34: 68.44 | BC34: 9.39 | BD34: (68.44) | BE34: (9.39) | BF34: (3.44) | BG34: 65.61 | BI34: 29.58 | BJ34: 4.06 | BK34: (29.58) | BL34: (4.06) | BM34: 35.42 | BN34: 70.94 | BP34: 58.00 | BQ34: 20.69 | BR34: (58.00) | BS34: (20.69) | BT34: 7.00 | BU34: 54.31
A35: 87.00 | B35: 14.93 | C35: 31 | D35: 1.50 | E35: 3.00 | F35: 65.00 | G35: 65.00 | H35: 14.93 | I35: 65.00 | J35: 3.73 | K35: 65.00 | L35: 9.55 | M35: 65.00 | N35: 30.43 | O35: 65.00 | P35: 53.31 | Q35: 65 | R35: 10.38 | T35: 97.50 | U35: 15.00 | V35: 45.00 | W35: 112.50 | X35: 33.46 | Y35: 29.00 | Z35: 45.00 | AA35: 279.92 | AB35: 65.00 | AC35: 75.00 | AD35: 0 | AF35: 108.00 | AG35: 13.85 | AH35: (108.00) | AI35: (13.85) | AJ35: (43.00) | AK35: 61.15 | AM35: 151.50 | AN35: 19.42 | AO35: (151.50) | AP35: (19.42) | AQ35: (86.50) | AR35: 55.58 | AT35: 125.40 | AU35: 16.08 | AV35: (125.40) | AW35: (16.08) | AX35: (60.40) | AY35: 58.92 | BB35: 70.80 | BC35: 9.08 | BD35: (70.80) | BE35: (9.08) | BF35: (5.80) | BG35: 65.92 | BI35: 30.60 | BJ35: 3.92 | BK35: (30.60) | BL35: (3.92) | BM35: 34.40 | BN35: 71.08 | BP35: 60.00 | BQ35: 20.00 | BR35: (60.00) | BS35: (20.00) | BT35: 5.00 | BU35: 55.00
A36: 89.90 | B36: 14.93 | C36: 32 | D36: 1.55 | E36: 3.10 | F36: 65.00 | G36: 65.00 | H36: 14.93 | I36: 65.00 | J36: 3.73 | K36: 65.00 | L36: 9.55 | M36: 65.00 | N36: 30.43 | O36: 65.00 | P36: 53.31 | Q36: 65 | R36: 10.38 | T36: 100.75 | U36: 15.00 | V36: 45.00 | W36: 116.25 | X36: 33.46 | Y36: 29.00 | Z36: 45.00 | AA36: 279.92 | AB36: 65.00 | AC36: 75.00 | AD36: 0 | AF36: 111.60 | AG36: 13.40 | AH36: (111.60) | AI36: (13.40) | AJ36: (46.60) | AK36: 61.60 | AM36: 156.55 | AN36: 18.80 | AO36: (156.55) | AP36: (18.80) | AQ36: (91.55) | AR36: 56.20 | AT36: 129.58 | AU36: 15.56 | AV36: (129.58) | AW36: (15.56) | AX36: (64.58) | AY36: 59.44 | BB36: 73.16 | BC36: 8.78 | BD36: (73.16) | BE36: (8.78) | BF36: (8.16) | BG36: 66.22 | BI36: 31.62 | BJ36: 3.80 | BK36: (31.62) | BL36: (3.80) | BM36: 33.38 | BN36: 71.20 | BP36: 62.00 | BQ36: 19.35 | BR36: (62.00) | BS36: (19.35) | BT36: 3.00 | BU36: 55.65
A37: 92.80 | B37: 14.93 | C37: 33 | D37: 1.60 | E37: 3.20 | F37: 65.00 | G37: 65.00 | H37: 14.93 | I37: 65.00 | J37: 3.73 | K37: 65.00 | L37: 9.55 | M37: 65.00 | N37: 30.43 | O37: 65.00 | P37: 53.31 | Q37: 65 | R37: 10.38 | T37: 104.00 | U37: 15.00 | V37: 45.00 | W37: 120.00 | X37: 33.46 | Y37: 29.00 | Z37: 45.00 | AA37: 279.92 | AB37: 65.00 | AC37: 75.00 | AD37: 0 | AF37: 115.20 | AG37: 12.98 | AH37: (115.20) | AI37: (12.98) | AJ37: (50.20) | AK37: 62.02 | AM37: 161.60 | AN37: 18.21 | AO37: (161.60) | AP37: (18.21) | AQ37: (96.60) | AR37: 56.79 | AT37: 133.76 | AU37: 15.07 | AV37: (133.76) | AW37: (15.07) | AX37: (68.76) | AY37: 59.93 | BB37: 75.52 | BC37: 8.51 | BD37: (75.52) | BE37: (8.51) | BF37: (10.52) | BG37: 66.49 | BI37: 32.64 | BJ37: 3.68 | BK37: (32.64) | BL37: (3.68) | BM37: 32.36 | BN37: 71.32 | BP37: 64.00 | BQ37: 18.75 | BR37: (64.00) | BS37: (18.75) | BT37: 1.00 | BU37: 56.25
A38: 95.70 | B38: 14.93 | C38: 34 | D38: 1.65 | E38: 3.30 | F38: 65.00 | G38: 65.00 | H38: 14.93 | I38: 65.00 | J38: 3.73 | K38: 65.00 | L38: 9.55 | M38: 65.00 | N38: 30.43 | O38: 65.00 | P38: 53.31 | Q38: 65 | R38: 10.38 | T38: 107.25 | U38: 15.00 | V38: 45.00 | W38: 123.75 | X38: 33.46 | Y38: 29.00 | Z38: 45.00 | AA38: 279.92 | AB38: 65.00 | AC38: 75.00 | AD38: 0 | AF38: 118.80 | AG38: 12.59 | AH38: (118.80) | AI38: (12.59) | AJ38: (53.80) | AK38: 62.41 | AM38: 166.65 | AN38: 17.66 | AO38: (166.65) | AP38: (17.66) | AQ38: (101.65) | AR38: 57.34 | AT38: 137.94 | AU38: 14.62 | AV38: (137.94) | AW38: (14.62) | AX38: (72.94) | AY38: 60.38 | BB38: 77.88 | BC38: 8.25 | BD38: (77.88) | BE38: (8.25) | BF38: (12.88) | BG38: 66.75 | BI38: 33.66 | BJ38: 3.57 | BK38: (33.66) | BL38: (3.57) | BM38: 31.34 | BN38: 71.43 | BP38: 66.00 | BQ38: 18.18 | BR38: (66.00) | BS38: (18.18) | BT38: (1.00) | BU38: 56.82
A39: 98.60 | B39: 14.93 | C39: 35 | D39: 1.70 | E39: 3.40 | F39: 65.00 | G39: 65.00 | H39: 14.93 | I39: 65.00 | J39: 3.73 | K39: 65.00 | L39: 9.55 | M39: 65.00 | N39: 30.43 | O39: 65.00 | P39: 53.31 | Q39: 65 | R39: 10.38 | T39: 110.50 | U39: 15.00 | V39: 45.00 | W39: 127.50 | X39: 33.46 | Y39: 29.00 | Z39: 45.00 | AA39: 279.92 | AB39: 65.00 | AC39: 75.00 | AD39: 0 | AF39: 122.40 | AG39: 12.22 | AH39: (122.40) | AI39: (12.22) | AJ39: (57.40) | AK39: 62.78 | AM39: 171.70 | AN39: 17.14 | AO39: (171.70) | AP39: (17.14) | AQ39: (106.70) | AR39: 57.86 | AT39: 142.12 | AU39: 14.19 | AV39: (142.12) | AW39: (14.19) | AX39: (77.12) | AY39: 60.81 | BB39: 80.24 | BC39: 8.01 | BD39: (80.24) | BE39: (8.01) | BF39: (15.24) | BG39: 66.99 | BI39: =$E39*$BC$59 -> 34.68 | BJ39: 3.46 | BK39: (34.68) | BL39: (3.46) | BM39: 30.32 | BN39: 71.54 | BP39: 68.00 | BQ39: 17.65 | BR39: (68.00) | BS39: (17.65) | BT39: (3.00) | BU39: 57.35
A40: 65.00 | B40: =($F$58/($F40^($D$52)))^(1/$D$53) -> 14.93 | C40: 36 | D40: 1.75 | E40: =F43/D46 -> 2.24 | F40: 65.00 | G40: 65.00 | H40: 14.93 | I40: 65.00 | J40: 3.73 | K40: 65.00 | L40: 9.55 | M40: 65.00 | N40: 30.43 | O40: 65.00 | P40: 53.31 | Q40: 65 | R40: 10.38 | T40: 113.75 | U40: 15.00 | V40: 45.00 | W40: 131.25 | X40: 33.46 | Y40: 29.00 | Z40: 45.00 | AA40: 279.92 | AB40: 65.00 | AC40: 75.00 | AD40: 0 | AF40: 80.69 | AG40: 18.53 | AH40: (80.69) | AI40: (18.53) | AJ40: =IF((AH40+($AF$15*2)+($D$46-$E$46))>AJ39,AJ39-0.001,(AH40+($AF$15*2)+($D$46-$E$46))) -> (57.40) | AK40: =IF((AI40+($E$47*2)+($D$47-$E$47))<AK39,AK39+0.001,(AI40+($E$47*2)+($D$47-$E$47))) -> 62.78 | AM40: 113.19 | AN40: 26.00 | AO40: (113.19) | AP40: (26.00) | AQ40: =IF((AO40+($AM$15*2)+($AL$48-$AM$48))>AQ39,AQ39-0.001,(AO40+($AM$15*2)+($AL$48-$AM$48))) -> (106.70) | AR40: =IF((AP40+($AN$15*2)+($AL$49-$AM$49))<AR39,AR39+0.001,(AP40+($AN$15*2)+($AL$49-$AM$49))) -> 57.86 | AT40: 93.69 | AU40: 21.52 | AV40: (93.69) | AW40: (21.52) | AX40: =IF((AV40+($AT$15*2)+($AL$59-$AM$59))>AX39,AX39-0.001,(AV40+($AT$15*2)+($AL$59-$AM$59))) -> (77.12) | AY40: =IF((AW40+($AU$15*2)+($AL$60-$AM$60))<AY39,AY39+0.001,(AW40+($AU$15*2)+($AL$60-$AM$60))) -> 60.82 | BB40: 52.90 | BC40: 12.15 | BD40: (52.90) | BE40: (12.15) | BF40: =IF((BD40+($BB$15*2)+($BB$48-$BC$48))>BF39,BF39-0.001,(BD40+($BB$15*2)+($BB$48-$BC$48))) -> (15.24) | BG40: =IF((BE40+($BC$15*2)+($BB$49-$BC$49))<BG39,BG39+0.001,(BE40+($BC$15*2)+($BB$49-$BC$49))) -> 66.99 | BI40: =$E40*$BC$59 -> 22.86 | BJ40: 5.25 | BK40: (22.86) | BL40: (5.25) | BM40: =IF((BK40+($BI$15*2)+($BB$59-$BC$59))>BM39,BM39-0.001,(BK40+($BI$15*2)+($BB$59-$BC$59))) -> 30.32 | BN40: =IF((BL40+($BJ$15*2)+($BB$60-$BC$60))<BN39,BN39+0.001,(BL40+($BJ$15*2)+($BB$60-$BC$60))) -> 71.54 | BP40: 44.83 | BQ40: 26.77 | BR40: (44.83) | BS40: (26.77) | BT40: =IF((BR40+($BP$15*2)+($BK$46-$BL$46))>BT39,BT39-0.001,(BR40+($BP$15*2)+($BK$46-$BL$46))) -> (3.00) | BU40: =IF((BS40+($BQ$15*2)+($BK$47-$BL$47))<BU39,BU39+0.001,(BS40+($BQ$15*2)+($BK$47-$BL$47))) -> 57.35
C41: original | H41: menos 2 | N41: más 1
D42: Individuo A | E42: Individuo B | F42: Total | I42: Individuo A | J42: Individuo B | K42: Total | O42: Individuo A | P42: Individuo B | Q42: Total
C43: Dotación Bien 1 | D43: ='Caja EGC'!C10 -> 45 | E43: ='Caja EGC'!D10 -> 20 | F43: =E43+D43 -> 65 | G43: =($D$52*((D44/D43)^($D$53)))/($D$53*((D43/D44)^($D$52))) -> 0.3333333333 | H43: Dotación Bien 1 | I43: =D43*0.5 -> 22.5 | J43: =K43-I43 -> 42.5 | K43: =F43 -> 65 | N43: Dotación Bien 1 | O43: =((F43-D43)*0.2)+D43 -> 49 | P43: =Q43-O43 -> 16 | Q43: =K43 -> 65 | AK43: MENOS 2 | BA43: MÁS 1
C44: Dotación Bien 2 | D44: ='Caja EGC'!C11 -> 15 | E44: ='Caja EGC'!D11 -> 60 | F44: =E44+D44 -> 75 | G44: =($E$54*((E44/E43)^($E$55)))/($E$55*((E43/E44)^($E$54))) -> 3 | H44: Dotación Bien 2 | I44: =D44*0.5 -> 7.5 | J44: =K44-I44 -> 67.5 | K44: =F44 -> 75 | N44: Dotación Bien 2 | O44: =((F44-D44)*0.4)+D44 -> 39 | P44: =Q44-O44 -> 36 | Q44: =K44 -> 75 | AL44: Individuo A | AM44: Individuo B | AN44: Total | BB44: Individuo A | BC44: Individuo B | BD44: Total | BJ44: DOTACIÓN
C45: UTILIDAD | D45: =D43^($D$52)*D44^($D$53) -> 25.98076211 | E45: =E43^($E$54)*E44^($E$55) -> 34.64101615 | AK45: Dotación Bien 1 | AL45: =I43 -> 22.5 | AM45: 42.5 | AN45: 65 | BA45: Dotación Bien 1 | BB45: =O43 -> 49 | BC45: 16 | BD45: 65 | BK45: Individuo A | BL45: Individuo B | BM45: Total
C46: Demanda Bruta Bien 1 | D46: =(D52*D43)+(E57*D44*D52) -> 29 | E46: =(E54*E43)+(E54*E57*E44) -> 36 | F46: =E46+D46 -> 65 | G46: =($D$52*((D47/D46)^($D$53)))/($D$53*((D46/D47)^($D$52))) -> 1.153846154 | H46: Demanda Bruta Bien 1 | I46: =($D$52*I43)+(J49*I44*$D$52) -> 14.5 | J46: =($E$54*J43)+($E$54*J49*J44) -> 50.5 | K46: =J46+I46 -> 65 | M46: =($D$52*((I47/I46)^($D$53)))/($D$53*((I46/I47)^($D$52))) -> 1.153846154 | N46: Demanda Bruta Bien 1 | O46: =($D$52*O43)+(P49*O44*$D$52) -> 41.4 | P46: =($E$54*P43)+($E$54*P49*P44) -> 23.6 | Q46: =P46+O46 -> 65 | R46: =($D$52*((O47/O46)^($D$53)))/($D$53*((O46/O47)^($D$52))) -> 1.153846154 | AK46: Dotación Bien 2 | AL46: 7.5 | AM46: 67.5 | AN46: 75 | BA46: Dotación Bien 2 | BB46: 39 | BC46: 36 | BD46: 75 | BJ46: Dotación Bien 1 | BK46: =D43 -> 45 | BL46: 20 | BM46: 65
C47: Demanda Bruta Bien 2 | D47: =(D53*E58*D43)+(D53*D44) -> 33.46153846 | E47: =(E55*E58*E43)+(E55*E44) -> 41.53846154 | F47: =E47+D47 -> 75 | G47: =($E$54*((E47/E46)^($E$55)))/($E$55*((E46/E47)^($E$54))) -> 1.153846154 | H47: Demanda Bruta Bien 2 | I47: =($D$53*J50*I43)+($D$53*I44) -> 16.73076923 | J47: =($E$55*J50*J43)+($E$55*J44) -> 58.26923077 | K47: =J47+I47 -> 75 | M47: =($E$54*((J47/J46)^($E$55)))/($E$55*((J46/J47)^($E$54))) -> 1.153846154 | N47: Demanda Bruta Bien 2 | O47: =($D$53*P50*O43)+($D$53*O44) -> 47.76923077 | P47: =($E$55*P50*P43)+($E$55*P44) -> 27.23076923 | Q47: =P47+O47 -> 75 | R47: =($E$54*((P47/P46)^($E$55)))/($E$55*((P46/P47)^($E$54))) -> 1.153846154 | AK47: UTILIDAD | AL47: =AL45^($D$52)*AL46^($D$53) -> 12.99038106 | AM47: =AM45^($E$54)*AM46^($E$55) -> 53.56071321 | BA47: UTILIDAD | BB47: =BB45^($D$52)*BB46^($D$53) -> 43.71498599 | BC47: =BC45^($E$54)*BC46^($E$55) -> 24 | BJ47: Dotación Bien 2 | BK47: 15 | BL47: 60 | BM47: 75
C48: UTILIDAD | D48: =D46^($D$52)*D47^($D$53) -> 31.15099702 | E48: =E46^($E$54)*E47^($E$55) -> 38.6702032 | AK48: Demanda Bruta Bien 1 | AL48: =I46 -> 14.5 | AM48: 50.5 | AN48: 65 | BA48: Demanda Bruta Bien 1 | BB48: =O46 -> 41.4 | BC48: 23.6 | BD48: 65 | BJ48: UTILIDAD | BK48: =BK46^($D$52)*BK47^($D$53) -> 25.98076211 | BL48: =BL46^($E$54)*BL47^($E$55) -> 34.64101615
C49: Demanda Neta Bien 1 | D49: =D46-D43 -> -16 | E49: =D47-D44 -> 18.46153846 | H49: P2/P1 | J49: =(($D$53*I43)+($E$55*J43))/(($D$52*I44)+($E$54*J44)) -> 0.8666666667 | K49: k inicial | N49: P2/P1 | P49: =(($D$53*O43)+($E$55*P43))/(($D$52*O44)+($E$54*P44)) -> 0.8666666667 | Q49: k inicial | AK49: Demanda Bruta Bien 2 | AL49: 16.73076923 | AM49: 58.26923077 | AN49: 75 | BA49: Demanda Bruta Bien 2 | BB49: 47.76923077 | BC49: 27.23076923 | BD49: 75
C50: Demanda Neta Bien 2 | D50: =E46-E43 -> 16 | E50: =E47-E44 -> -18.46153846 | H50: P1/P2 | J50: =1/J49 -> 1.153846154 | K50: =(I46^($D$52))*(I47^($D$53)) -> 15.57549851 | N50: P1/P2 | P50: =1/P49 -> 1.153846154 | Q50: =(O46^($D$52))*(O47^($D$53)) -> 44.47073368 | AK50: UTILIDAD | AL50: =AL48^($D$52)*AL49^($D$53) -> 15.57549851 | AM50: =AM48^($E$54)*AM49^($E$55) -> 54.24570171 | BA50: UTILIDAD | BB50: =BB48^($D$52)*BB49^($D$53) -> 44.47073368 | BC50: =BC48^($E$54)*BC49^($E$55) -> 25.35046654
AK51: P2/P1 | AM51: =J49 -> 0.8666666667 | AN51: =K49 -> k inicial | BA51: P2/P1 | BC51: =P49 -> 0.8666666667 | BD51: =Q49 -> k inicial
C52: a | D52: ='Caja EGC'!C24 -> 0.5 | H52: menos 1 | N52: más 2 | AK52: P1/P2 | AM52: =J50 -> 1.153846154 | AN52: =K50 -> 15.57549851 | BA52: P1/P2 | BC52: =P50 -> 1.153846154 | BD52: =Q50 -> 44.47073368
C53: 1-a | D53: =1-D52 -> 0.5 | I53: Individuo A | J53: Individuo B | K53: Total | O53: Individuo A | P53: Individuo B | Q53: Total
C54: b | E54: ='Caja EGC'!D26 -> 0.5 | H54: Dotación Bien 1 | I54: =D43*0.8 -> 36 | J54: =K54-I54 -> 29 | K54: =K43 -> 65 | N54: Dotación Bien 1 | O54: =((F43-D43)*0.5)+D43 -> 55 | P54: =Q54-O54 -> 10 | Q54: =Q43 -> 65 | AK54: MENOS 1 | BA54: MÁS 2
C55: 1-b | E55: =1-E54 -> 0.5 | H55: Dotación Bien 2 | I55: =D44*0.8 -> 12 | J55: =K55-I55 -> 63 | K55: =K44 -> 75 | N55: Dotación Bien 2 | O55: =((F44-D44)*0.8)+D44 -> 63 | P55: =Q55-O55 -> 12 | Q55: =Q44 -> 75 | AL55: Individuo A | AM55: Individuo B | AN55: Total | BB55: Individuo A | BC55: Individuo B | BD55: Total
AK56: Dotación Bien 1 | AL56: =I54 -> 36 | AM56: 29 | AN56: 65 | BA56: Dotación Bien 1 | BB56: =O54 -> 55 | BC56: 10 | BD56: 65
C57: P2/P1 | E57: =((D53*D43)+(E55*E43))/((D52*D44)+(E54*E44)) -> 0.8666666667 | F57: k inicial | H57: Demanda Bruta Bien 1 | I57: =($D$52*I54)+(J60*I55*$D$52) -> 23.2 | J57: =($E$54*J54)+($E$54*J60*J55) -> 41.8 | K57: =J57+I57 -> 65 | M57: =($D$52*((I58/I57)^($D$53)))/($D$53*((I57/I58)^($D$52))) -> 1.153846154 | N57: Demanda Bruta Bien 1 | O57: =($D$52*O54)+(P60*O55*$D$52) -> 54.8 | P57: =($E$54*P54)+($E$54*P60*P55) -> 10.2 | Q57: =P57+O57 -> 65 | R57: =($D$52*((O58/O57)^($D$53)))/($D$53*((O57/O58)^($D$52))) -> 1.153846154 | AK57: Dotación Bien 2 | AL57: 12 | AM57: 63 | AN57: 75 | BA57: Dotación Bien 2 | BB57: 63 | BC57: 12 | BD57: 75
C58: P1/P2 | E58: =1/E57 -> 1.153846154 | F58: =(D46^($D$52))*(D47^($D$53)) -> 31.15099702 | H58: Demanda Bruta Bien 2 | I58: =($D$53*J61*I54)+($D$53*I55) -> 26.76923077 | J58: =($E$55*J61*J54)+($E$55*J55) -> 48.23076923 | K58: =J58+I58 -> 75 | M58: =($E$54*((J58/J57)^($E$55)))/($E$55*((J57/J58)^($E$54))) -> 1.153846154 | N58: Demanda Bruta Bien 2 | O58: =($D$53*P61*O54)+($D$53*O55) -> 63.23076923 | P58: =($E$55*P61*P54)+($E$55*P55) -> 11.76923077 | Q58: =P58+O58 -> 75 | R58: =($E$54*((P58/P57)^($E$55)))/($E$55*((P57/P58)^($E$54))) -> 1.153846154 | AK58: UTILIDAD | AL58: =AL56^($D$52)*AL57^($D$53) -> 20.78460969 | AM58: =AM56^($E$54)*AM57^($E$55) -> 42.74342055 | BA58: UTILIDAD | BB58: =BB56^($D$52)*BB57^($D$53) -> 58.86425061 | BC58: =BC56^($E$54)*BC57^($E$55) -> 10.95445115
AK59: Demanda Bruta Bien 1 | AL59: =($D$52*AL56)+(AM62*AL57*$D$52) -> 23.2 | AM59: =J57 -> 41.8 | AN59: =K57 -> 65 | BA59: Demanda Bruta Bien 1 | BB59: =O57 -> 54.8 | BC59: 10.2 | BD59: 65
H60: P2/P1 | J60: =(($D$53*I54)+($E$55*J54))/(($D$52*I55)+($E$54*J55)) -> 0.8666666667 | K60: k inicial | N60: P2/P1 | P60: =(($D$53*O54)+($E$55*P54))/(($D$52*O55)+($E$54*P55)) -> 0.8666666667 | Q60: k inicial | AK60: Demanda Bruta Bien 2 | AL60: =($D$53*AM63*AL56)+($D$53*AL57) -> 26.76923077 | AM60: =J58 -> 48.23076923 | AN60: =K58 -> 75 | BA60: Demanda Bruta Bien 2 | BB60: 63.23076923 | BC60: 11.76923077 | BD60: 75
H61: P1/P2 | J61: =1/J60 -> 1.153846154 | K61: =(I57^($D$52))*(I58^($D$53)) -> 24.92079762 | N61: P1/P2 | P61: =1/P60 -> 1.153846154 | Q61: =(O57^($D$52))*(O58^($D$53)) -> 58.86464265 | AK61: UTILIDAD | AL61: =AL59^($D$52)*AL60^($D$53) -> 24.92079762 | AM61: =AM59^($E$54)*AM60^($E$55) -> 44.9004026 | BA61: UTILIDAD | BB61: =BB59^($D$52)*BB60^($D$53) -> 58.86464265 | BC61: =BC59^($E$54)*BC60^($E$55) -> 10.95655757
AK62: P2/P1 | AM62: =J60 -> 0.8666666667 | AN62: =K60 -> k inicial | BA62: P2/P1 | BC62: =P60 -> 0.8666666667 | BD62: =Q60 -> k inicial
D63: curva de tranasformación | E63: Inicio | F63: menos 2 | G63: menos 1 | H63: original | I63: más 1 | J63: más 2 | K63: final | AK63: P1/P2 | AM63: =J61 -> 1.153846154 | AN63: =K61 -> 24.92079762 | BA63: P1/P2 | BC63: =P61 -> 1.153846154 | BD63: =Q61 -> 58.86464265
D64: x1 | E64: 0 | F64: =I46 -> 14.5 | G64: =I57 -> 23.2 | H64: =D46 -> 29 | I64: =O46 -> 41.4 | J64: =O57 -> 54.8 | K64: =F43 -> 65
D65: x2 | E65: 0 | F65: =I47 -> 16.73076923 | G65: =I58 -> 26.76923077 | H65: =D47 -> 33.46153846 | I65: =O47 -> 47.76923077 | J65: =O58 -> 63.23076923 | K65: =F44 -> 75
B70: ÓPTIMO DE PARETO CENTRALIZADO
F71: =POWER((F112/(F98^D107)),1/D106) -> 4.728247135 | G71: =($F$112/($F71^($D$106)))^(1/$D$107) -> 260 | AC71: DOTACIÓN | AD71: =POWER((D99/(F98^D107)),1/D106) -> 4.203284199 | AE71: =($D$99/($AD71^($D$106)))^(1/$D$107) -> 260
A72: =+A94-D84 -> 2.54 | F72: Original | G72: Original | I72: DOTACIÓN | M72: OPTIMO | Q72: CAJA | U72: ORIGINAL | V72: ORIGINAL | W72: NEGATIVO | X72: NEGATIVO | Y72: TRANSFORMADA | AC72: Original | AE72: Original | AG72: ORIGINAL | AH72: ORIGINAL | AI72: NEGATIVO | AJ72: NEGATIVO | AK72: TRANSFORMADA
A73: =+A72/10 -> 0.25 | B73: Unidades | C73: ponderador | E73: x1 | F73: x1 | G73: x2 | I73: x1linedotación | K73: x2line | M73: x1linedotación | O73: x2line | U73: x1 | V73: x2 | W73: MENOS X1 | X73: MENOS X2 | Y73: x1 | Z73: x2 | AC73: x1 | AE73: x2 | AG73: x1 | AH73: x2 | AI73: MENOS X1 | AJ73: MENOS X2 | AK73: x1 | AL73: x2
A74: =+D74 -> 0.01 | B74: 1 | C74: 0 | D74: 0.01 | E74: =$D$100*A74 -> 0.34 | F74: =IF(($F$112/($E74^($D$106)))^(1/$D$107)>$F$98,$F$71,E74) -> 4.728247135 | G74: =($F$112/($F74^($D$106)))^(1/$D$107) -> 260.00 | I74: =C74*$F$97 -> 0 | J74: =$D$98 -> 140.00 | K74: =$D$97 -> 50.00 | L74: =$F$98*C74 -> 0 | M74: =$D$101 -> 158.93 | N74: =$D$100 -> 33.86 | O74: =$D$97 -> 50.00 | P74: =C74*$F$98 -> 0 | Q74: =$F$97 -> 120.00 | R74: =$F$98 -> 260.00 | S74: 0 | U74: =$E$100*D74 -> 0.86 | V74: =(($H$101)/(U74^($E$108)))^(1/$E$109) -> 10,106.67 | W74: =U74*-1 -> (0.86) | X74: =V74*-1 -> (10,106.67) | Y74: =W74+($U$84*2)+($D$100-$E$100) -> 119.14 | Z74: =X74+($V$84*2)+($D$101-$E$101) -> (9,846.67) | AC74: =IF(($D$97*D74)>$F$97,$F$97,($D$97*D74)) -> 0.50 | AD74: =IF(((($D$97^($D$106))*($D$98^($D$107)))/(AC74^($D$106)))^(1/$D$107)>$F$98,$AD$71,AC74) -> 4.20 | AE74: =((($D$97^($D$106))*($D$98^($D$107)))/(AD74^($D$106)))^(1/$D$107) -> 260.00 | AG74: =$E$97*D74 -> 0.70 | AH74: =(($H$98)/(AG74^($E$108)))^(1/$E$109) -> 12,000.00 | AI74: =AG74*-1 -> (0.70) | AJ74: =AH74*-1 -> (12,000.00) | AK74: =IF((AI74+($AG$84*2)+($D$97-$E$97))>$F$97,$F$97,AI74+($AG$84*2)+($D$97-$E$97)) -> 119.30 | AL74: =AJ74+($AH$84*2)+($D$98-$E$98) -> (11,740.00)
A75: =+D75 -> 0.10 | B75: 2 | C75: 0.01 | D75: 0.10 | E75: =$D$100*A75 -> 3.39 | F75: =IF(($F$112/($E75^($D$106)))^(1/$D$107)>$F$98,$F$71,E75) -> 4.728247135 | G75: =($F$112/($F75^($D$106)))^(1/$D$107) -> 260.00 | I75: 1.20 | J75: 140.00 | K75: 50.00 | L75: 2.60 | M75: 158.93 | N75: 33.86 | O75: 50.00 | P75: 2.60 | Q75: 120.00 | R75: 260.00 | S75: 0 | U75: 8.61 | V75: 1,010.67 | W75: (8.61) | X75: (1,010.67) | Y75: 111.39 | Z75: (750.67) | AC75: =IF(($D$97*D75)>$F$97,$F$97,($D$97*D75)) -> 5.00 | AD75: =IF(((($D$97^($D$106))*($D$98^($D$107)))/(AC75^($D$106)))^(1/$D$107)>$F$98,$AD$71,AC75) -> 5.00 | AE75: =((($D$97^($D$106))*($D$98^($D$107)))/(AD75^($D$106)))^(1/$D$107) -> 248.96 | AG75: 7.00 | AH75: 1,200.00 | AI75: (7.00) | AJ75: (1,200.00) | AK75: 113.00 | AL75: =AJ75+($AH$84*2)+($D$98-$E$98) -> (940.00)
A76: 0.20 | B76: 3 | C76: 0.10 | D76: 0.20 | E76: 6.77 | F76: 6.772727273 | G76: 237.66 | I76: 12.00 | J76: 140.00 | K76: 50.00 | L76: 26.00 | M76: 158.93 | N76: 33.86 | O76: 50.00 | P76: 26.00 | Q76: 120.00 | R76: 260.00 | S76: 0 | U76: 17.23 | V76: 505.33 | W76: (17.23) | X76: (505.33) | Y76: 102.77 | Z76: (245.33) | AC76: 10.00 | AD76: 10.00 | AE76: 209.35 | AG76: 14.00 | AH76: 600.00 | AI76: (14.00) | AJ76: (600.00) | AK76: 106.00 | AL76: (340.00)
A77: 0.30 | B77: 4 | C77: 0.15 | D77: 0.30 | E77: 10.16 | F77: 10.15909091 | G77: 214.75 | I77: 18.00 | J77: 140.00 | K77: 50.00 | L77: 39.00 | M77: 158.93 | N77: 33.86 | O77: 50.00 | P77: 39.00 | Q77: 120.00 | R77: 260.00 | S77: 0 | U77: 25.84 | V77: 336.89 | W77: (25.84) | X77: (336.89) | Y77: 94.16 | Z77: (76.89) | AC77: 15.00 | AD77: 15.00 | AE77: 189.17 | AG77: 21.00 | AH77: 400.00 | AI77: (21.00) | AJ77: (400.00) | AK77: 99.00 | AL77: (140.00)
A78: 0.40 | B78: 5 | C78: 0.20 | D78: 0.40 | E78: 13.55 | F78: 13.54545455 | G78: 199.85 | I78: 24.00 | J78: 140.00 | K78: 50.00 | L78: 52.00 | M78: 158.93 | N78: 33.86 | O78: 50.00 | P78: 52.00 | Q78: 120.00 | R78: 260.00 | S78: 0 | U78: 34.45 | V78: 252.67 | W78: (34.45) | X78: (252.67) | Y78: 85.55 | Z78: 7.33 | AC78: 20.00 | AD78: 20.00 | AE78: 176.04 | AG78: 28.00 | AH78: 300.00 | AI78: (28.00) | AJ78: (300.00) | AK78: 92.00 | AL78: (40.00)
A79: 0.50 | B79: 6 | C79: 0.25 | D79: 0.50 | E79: 16.93 | F79: 16.93181818 | G79: 189.00 | I79: 30.00 | J79: 140.00 | K79: 50.00 | L79: 65.00 | M79: 158.93 | N79: 33.86 | O79: 50.00 | P79: 65.00 | Q79: 120.00 | R79: 260.00 | S79: 0 | U79: 43.07 | V79: 202.13 | W79: (43.07) | X79: (202.13) | Y79: 76.93 | Z79: 57.87 | AC79: 25.00 | AD79: 25.00 | AE79: 166.49 | AG79: 35.00 | AH79: 240.00 | AI79: (35.00) | AJ79: (240.00) | AK79: 85.00 | AL79: 20.00
A80: 0.60 | B80: 7 | C80: 0.30 | D80: 0.60 | E80: 20.32 | F80: 20.31818182 | G80: 180.58 | I80: 36.00 | J80: 140.00 | K80: 50.00 | L80: 78.00 | M80: 158.93 | N80: 33.86 | O80: 50.00 | P80: 78.00 | Q80: 120.00 | R80: 260.00 | S80: 0 | U80: 51.68 | V80: 168.44 | W80: (51.68) | X80: (168.44) | Y80: 68.32 | Z80: 91.56 | AC80: 30.00 | AD80: 30.00 | AE80: 159.07 | AG80: 42.00 | AH80: 200.00 | AI80: (42.00) | AJ80: (200.00) | AK80: 78.00 | AL80: 60.00
A81: 0.70 | B81: 8 | C81: 0.35 | D81: 0.70 | E81: 23.70 | F81: 23.70454545 | G81: 173.76 | I81: 42.00 | J81: 140.00 | K81: 50.00 | L81: 91.00 | M81: 158.93 | N81: 33.86 | O81: 50.00 | P81: 91.00 | Q81: 120.00 | R81: 260.00 | S81: 0 | U81: 60.30 | V81: 144.38 | W81: (60.30) | X81: (144.38) | Y81: 59.70 | Z81: 115.62 | AC81: 35.00 | AD81: 35.00 | AE81: 153.06 | AG81: 49.00 | AH81: 171.43 | AI81: (49.00) | AJ81: (171.43) | AK81: 71.00 | AL81: 88.57
A82: 0.80 | B82: 9 | C82: 0.40 | D82: 0.80 | E82: 27.09 | F82: 27.09090909 | G82: 168.05 | I82: 48.00 | J82: 140.00 | K82: 50.00 | L82: 104.00 | M82: 158.93 | N82: 33.86 | O82: 50.00 | P82: 104.00 | Q82: 120.00 | R82: 260.00 | S82: 0 | U82: 68.91 | V82: 126.33 | W82: (68.91) | X82: (126.33) | Y82: 51.09 | Z82: 133.67 | AC82: =IF(($D$97*D82)>$F$97,$F$97,($D$97*D82)) -> 40.00 | AD82: 40.00 | AE82: 148.03 | AG82: 56.00 | AH82: 150.00 | AI82: (56.00) | AJ82: (150.00) | AK82: 64.00 | AL82: 110.00
A83: 0.90 | B83: 10 | C83: 0.45 | D83: 0.90 | E83: 30.48 | F83: 30.47727273 | G83: 163.18 | I83: 54.00 | J83: 140.00 | K83: 50.00 | L83: 117.00 | M83: 158.93 | N83: 33.86 | O83: 50.00 | P83: 117.00 | Q83: 120.00 | R83: 260.00 | S83: 0 | U83: 77.52 | V83: 112.30 | W83: (77.52) | X83: (112.30) | Y83: 42.48 | Z83: 147.70 | AC83: 45.00 | AD83: 45.00 | AE83: 143.74 | AG83: 63.00 | AH83: 133.33 | AI83: (63.00) | AJ83: (133.33) | AK83: 57.00 | AL83: 126.67
A84: =+A85-$A$73 -> 1.00 | B84: 11 | C84: 0.50 | D84: 1.00 | E84: 33.86 | F84: 33.86363636 | G84: 158.93 | I84: 60.00 | J84: 140.00 | K84: 50.00 | L84: 130.00 | M84: 158.93 | N84: 33.86 | O84: 50.00 | P84: 130.00 | Q84: 120.00 | R84: 260.00 | S84: 0 | U84: 86.14 | V84: 101.07 | W84: =U84*-1 -> (86.14) | X84: =V84*-1 -> (101.07) | Y84: 33.86 | Z84: 158.93 | AC84: 50.00 | AD84: 50.00 | AE84: 140.00 | AG84: =$E$97*D84 -> 70.00 | AH84: 120.00 | AI84: =AG84*-1 -> (70.00) | AJ84: =AH84*-1 -> (120.00) | AK84: =IF((AI84+($AG$84*2)+($D$97-$E$97))>$F$97,$F$97,AI84+($AG$84*2)+($D$97-$E$97)) -> 50.00 | AL84: 140.00
A85: 1.25 | B85: 12 | C85: 0.55 | D85: 1.10 | E85: 42.48 | F85: 42.47727273 | G85: 150.18 | I85: 66.00 | J85: 140.00 | K85: 50.00 | L85: 143.00 | M85: 158.93 | N85: 33.86 | O85: 50.00 | P85: 143.00 | Q85: 120.00 | R85: 260.00 | S85: 0 | U85: 94.75 | V85: 91.88 | W85: =U85*-1 -> (94.75) | X85: =V85*-1 -> (91.88) | Y85: 25.25 | Z85: 168.12 | AC85: 55.00 | AD85: 55.00 | AE85: 136.70 | AG85: =$E$97*D85 -> 77.00 | AH85: 109.09 | AI85: =AG85*-1 -> (77.00) | AJ85: =AH85*-1 -> (109.09) | AK85: =IF((AI85+($AG$84*2)+($D$97-$E$97))>$F$97,$F$97,AI85+($AG$84*2)+($D$97-$E$97)) -> 43.00 | AL85: 150.91
A86: 1.51 | B86: 13 | C86: 0.60 | D86: 1.20 | E86: 51.09 | F86: 51.09090909 | G86: 143.40 | I86: 72.00 | J86: 140.00 | K86: 50.00 | L86: 156.00 | M86: 158.93 | N86: 33.86 | O86: 50.00 | P86: 156.00 | Q86: 120.00 | R86: 260.00 | S86: 0 | U86: 103.36 | V86: 84.22 | W86: (103.36) | X86: (84.22) | Y86: 16.64 | Z86: 175.78 | AC86: 60.00 | AD86: 60.00 | AE86: 133.76 | AG86: 84.00 | AH86: 100.00 | AI86: (84.00) | AJ86: (100.00) | AK86: 36.00 | AL86: 160.00
A87: 1.76 | B87: 14 | C87: 0.65 | D87: 1.30 | E87: 59.70 | F87: 59.70454545 | G87: 137.93 | I87: 78.00 | J87: 140.00 | K87: 50.00 | L87: 169.00 | M87: 158.93 | N87: 33.86 | O87: 50.00 | P87: 169.00 | Q87: 120.00 | R87: 260.00 | S87: 0 | U87: 111.98 | V87: 77.74 | W87: (111.98) | X87: (77.74) | Y87: 8.02 | Z87: 182.26 | AC87: 65.00 | AD87: 65.00 | AE87: 131.11 | AG87: 91.00 | AH87: 92.31 | AI87: (91.00) | AJ87: (92.31) | AK87: 29.00 | AL87: 167.69
A88: 2.02 | B88: 15 | C88: 0.70 | D88: 1.40 | E88: 68.32 | F88: 68.31818182 | G88: 133.36 | I88: 84.00 | J88: 140.00 | K88: 50.00 | L88: 182.00 | M88: 158.93 | N88: 33.86 | O88: 50.00 | P88: 182.00 | Q88: 120.00 | R88: 260.00 | S88: 0 | U88: 120.59 | V88: 72.19 | W88: (120.59) | X88: (72.19) | Y88: (0.59) | Z88: 187.81 | AC88: 70.00 | AD88: 70.00 | AE88: 128.71 | AG88: 98.00 | AH88: 85.71 | AI88: (98.00) | AJ88: (85.71) | AK88: 22.00 | AL88: 174.29
A89: 2.27 | B89: 16 | C89: 0.75 | D89: 1.50 | E89: 76.93 | F89: 76.93181818 | G89: 129.46 | I89: 90.00 | J89: 140.00 | K89: 50.00 | L89: 195.00 | M89: 158.93 | N89: 33.86 | O89: 50.00 | P89: 195.00 | Q89: 120.00 | R89: 260.00 | S89: 0 | U89: 129.20 | V89: 67.38 | W89: (129.20) | X89: (67.38) | Y89: (9.20) | Z89: 192.62 | AC89: 75.00 | AD89: 75.00 | AE89: 126.50 | AG89: 105.00 | AH89: 80.00 | AI89: (105.00) | AJ89: (80.00) | AK89: 15.00 | AL89: 180.00
A90: 2.53 | B90: 17 | C90: 0.80 | D90: 1.60 | E90: 85.55 | F90: 85.54545455 | G90: 126.07 | I90: 96.00 | J90: 140.00 | K90: 50.00 | L90: 208.00 | M90: 158.93 | N90: 33.86 | O90: 50.00 | P90: 208.00 | Q90: 120.00 | R90: 260.00 | S90: 0 | U90: 137.82 | V90: 63.17 | W90: (137.82) | X90: (63.17) | Y90: (17.82) | Z90: 196.83 | AC90: 80.00 | AD90: 80.00 | AE90: 124.48 | AG90: 112.00 | AH90: 75.00 | AI90: (112.00) | AJ90: (75.00) | AK90: 8.00 | AL90: 185.00
A91: 2.78 | B91: 18 | C91: 0.85 | D91: 1.70 | E91: 94.16 | F91: 94.15909091 | G91: 123.08 | I91: 102.00 | J91: 140.00 | K91: 50.00 | L91: 221.00 | M91: 158.93 | N91: 33.86 | O91: 50.00 | P91: 221.00 | Q91: 120.00 | R91: 260.00 | S91: 0 | U91: 146.43 | V91: 59.45 | W91: (146.43) | X91: (59.45) | Y91: (26.43) | Z91: 200.55 | AC91: 85.00 | AD91: 85.00 | AE91: 122.61 | AG91: 119.00 | AH91: 70.59 | AI91: (119.00) | AJ91: (70.59) | AK91: 1.00 | AL91: 189.41
A92: 3.03 | B92: 19 | C92: 0.90 | D92: 1.80 | E92: 102.77 | F92: 102.7727273 | G92: 120.41 | I92: 108.00 | J92: 140.00 | K92: 50.00 | L92: 234.00 | M92: 158.93 | N92: 33.86 | O92: 50.00 | P92: 234.00 | Q92: 120.00 | R92: 260.00 | S92: 0 | U92: 155.05 | V92: 56.15 | W92: (155.05) | X92: (56.15) | Y92: (35.05) | Z92: 203.85 | AC92: 90.00 | AD92: 90.00 | AE92: 120.87 | AG92: 126.00 | AH92: 66.67 | AI92: (126.00) | AJ92: (66.67) | AK92: (6.00) | AL92: 193.33
A93: =+A94-$A$73 -> 3.29 | B93: 20 | C93: 0.95 | D93: 1.90 | E93: 111.39 | F93: 111.3863636 | G93: 118.02 | I93: 114.00 | J93: 140.00 | K93: 50.00 | L93: 247.00 | M93: 158.93 | N93: 33.86 | O93: 50.00 | P93: 247.00 | Q93: 120.00 | R93: 260.00 | S93: 0 | U93: 163.66 | V93: 53.19 | W93: (163.66) | X93: (53.19) | Y93: (43.66) | Z93: 206.81 | AC93: 95.00 | AD93: 95.00 | AE93: 119.24 | AG93: 133.00 | AH93: 63.16 | AI93: (133.00) | AJ93: (63.16) | AK93: (13.00) | AL93: 196.84
A94: =+D94 -> 3.54 | B94: 21 | C94: 1.00 | D94: =F97/D100 -> 3.54 | E94: =$D$100*D94 -> 120.00 | F94: 120 | G94: 115.84 | I94: 120.00 | J94: 140.00 | K94: 50.00 | L94: 260.00 | M94: 158.93 | N94: 33.86 | O94: 50.00 | P94: 260.00 | Q94: 120.00 | R94: 260.00 | S94: 0 | U94: 305.23 | V94: 28.52 | W94: (305.23) | X94: (28.52) | AG94: 248.05 | AH94: 33.86 | AI94: (248.05) | AJ94: (33.86) | AK94: =IF((AI94+($AG$84*2)+($D$97-$E$97))>$F$97,$F$97,AI94+($AG$84*2)+($D$97-$E$97)) -> (128.05) | AL94: =AJ94+($AH$84*2)+($D$98-$E$98) -> 226.14
C95: original | I95: original | N95: original | S95: original
D96: Individuo A | E96: Individuo B | F96: Total | J96: Individuo A | K96: Individuo B | L96: Total | O96: Individuo A | P96: Individuo B | Q96: Total | T96: Individuo A | U96: Individuo B | V96: Total | Y96: Individuo A | Z96: Individuo B | AA96: Total
C97: Dotación Bien 1 | D97: ='Optimo Pareto EGC'!C10 -> 50 | E97: ='Optimo Pareto EGC'!D10 -> 70 | F97: =E97+D97 -> 120 | G97: =(D106*((D98/D97)^(D107)))/(D107*((D97/D98)^(D106))) -> 0.7 | H97: =D97^(D106)*D98^(D107) -> 113.9453035 | I97: Dotación Bien 1 | J97: =D97*0.3 -> 15 | K97: =L97-J97 -> 105 | L97: =F97 -> 120 | M97: =(J106*((J98/J97)^(J107)))/(J107*((J97/J98)^(J106))) -> 0.7 | N97: Dotación Bien 1 | O97: =D97*0.7 -> 35 | P97: =Q97-O97 -> 85 | Q97: =L97 -> 120 | R97: =(O106*((O98/O97)^(O107)))/(O107*((O97/O98)^(O106))) -> 0.7 | S97: Dotación Bien 1 | T97: =D97+(E97*0.3) -> 71 | U97: =V97-T97 -> 49 | V97: =Q97 -> 120 | W97: =(T106*((T98/T97)^(T107)))/(T107*((T97/T98)^(T106))) -> 0.6197183099 | X97: Dotación Bien 1 | Y97: =D97+(E97*0.7) -> 99 | Z97: =AA97-Y97 -> 21 | AA97: =V97 -> 120 | AB97: =(Y106*((Y98/Y97)^(Y107)))/(Y107*((Y97/Y98)^(Y106))) -> 0.5656565657
C98: Dotación Bien 2 | D98: ='Optimo Pareto EGC'!C11 -> 140 | E98: ='Optimo Pareto EGC'!D11 -> 120 | F98: =E98+D98 -> 260 | G98: =(E108*((E98/E97)^(E109)))/(E109*((E97/E98)^(E108))) -> 1.714285714 | H98: =E97^(E108)*E98^(E109) -> 91.6515139 | I98: Dotación Bien 2 | J98: =D98*0.3 -> 42 | K98: =L98-J98 -> 218 | L98: =F98 -> 260 | M98: =(K108*((K98/K97)^(K109)))/(K109*((K97/K98)^(K108))) -> 2.076190476 | N98: Dotación Bien 2 | O98: =D98*0.7 -> 98.00 | P98: =Q98-O98 -> 162 | Q98: =L98 -> 260 | R98: =(P108*((P98/P97)^(P109)))/(P109*((P97/P98)^(P108))) -> 1.905882353 | S98: Dotación Bien 2 | T98: =D98+(E98*0.3) -> 176 | U98: =V98-T98 -> 84 | V98: =Q98 -> 260 | W98: =(U108*((U98/U97)^(U109)))/(U109*((U97/U98)^(U108))) -> 1.714285714 | X98: Dotación Bien 2 | Y98: =D98+(E98*0.7) -> 224 | Z98: =AA98-Y98 -> 36 | AA98: =V98 -> 260 | AB98: =(Z108*((Z98/Z97)^(Z109)))/(Z109*((Z97/Z98)^(Z108))) -> 1.714285714
D99: =D97^($D$106)*D98^($D$107) -> 113.9453035 | E99: =E97^($E$108)*E98^($E$109) -> 91.6515139
C100: Demanda Bruta Bien 1 | D100: =(D106*D97)+(E111*D98*D106) -> 33.86363636 | E100: =(E108*E97)+(E108*E111*E98) -> 86.13636364 | F100: =E100+D100 -> 120 | G100: =(D106*((D101/D100)^(D107)))/(D107*((D100/D101)^(D106))) -> 1.173333333 | H100: =D100^(D106)*D101^(D107) -> 116.6591243 | I100: Demanda Bruta Bien 1 | J100: =(J106*J97)+(K111*J98*J106) -> 7.614991482 | K100: =(K108*K97)+(K108*K111*K98) -> 112.3850085 | L100: =K100+J100 -> 120 | M100: =(J106*((J101/J100)^(J107)))/(J107*((J100/J101)^(J106))) -> 1.820155039 | N100: Demanda Bruta Bien 1 | O100: =(O106*O97)+(P111*O98*O106) -> 20.73558648 | P100: =(P108*P97)+(P108*P111*P98) -> 99.26441352 | Q100: =P100+O100 -> 120 | R100: =(O106*((O101/O100)^(O107)))/(O107*((O100/O101)^(O106))) -> 1.426950355 | S100: Demanda Bruta Bien 1 | T100: =(T106*T97)+(U111*T98*T106) -> 51.26943005 | U100: =(U108*U97)+(U108*U111*U98) -> 68.73056995 | V100: =U100+T100 -> 120 | W100: =(T106*((T101/T100)^(T107)))/(T107*((T100/T101)^(T106))) -> 0.9495694957 | X100: Demanda Bruta Bien 1 | Y100: =(Y106*Y97)+(Z111*Y98*Y106) -> 83.78980892 | Z100: =(Z108*Z97)+(Z108*Z111*Z98) -> 36.21019108 | AA100: =Z100+Y100 -> 120 | AB100: =(Y106*((Y101/Y100)^(Y107)))/(Y107*((Y100/Y101)^(Y106))) -> 0.7001114827
C101: Demanda Bruta Bien 2 | D101: =(D107*E112*D97)+(D107*D98) -> 158.9333333 | E101: =(E109*E112*E97)+(E109*E98) -> 101.0666667 | F101: =E101+D101 -> 260 | G101: =(E108*((E101/E100)^(E109)))/(E109*((E100/E101)^(E108))) -> 1.173333333 | H101: =E100^(E108)*E101^(E109) -> 93.30335016 | I101: Demanda Bruta Bien 2 | J101: =(J107*K112*J97)+(J107*J98) -> 55.44186047 | K101: =(K109*K112*K97)+(K109*K98) -> 204.5581395 | L101: =K101+J101 -> 260 | M101: =(K108*((K101/K100)^(K109)))/(K109*((K100/K101)^(K108))) -> 1.820155039 | N101: Demanda Bruta Bien 2 | O101: =(O107*P112*O97)+(O107*O98) -> 118.3546099 | P101: =(P109*P112*P97)+(P109*P98) -> 141.6453901 | Q101: =P101+O101 -> 260 | R101: =(P108*((P101/P100)^(P109)))/(P109*((P100/P101)^(P108))) -> 1.426950355 | S101: Demanda Bruta Bien 2 | T101: =(T107*U112*T97)+(T107*T98) -> 194.7355474 | U101: =(U109*U112*U97)+(U109*U98) -> 65.26445264 | V101: =U101+T101 -> 260 | W101: =(U108*((U101/U100)^(U109)))/(U109*((U100/U101)^(U108))) -> 0.9495694957 | X101: Demanda Bruta Bien 2 | Y101: =(Y107*Z112*Y97)+(Y107*Y98) -> 234.6488294 | Z101: =(Z109*Z112*Z97)+(Z109*Z98) -> 25.35117057 | AA101: =Z101+Y101 -> 260 | AB101: =(Z108*((Z101/Z100)^(Z109)))/(Z109*((Z100/Z101)^(Z108))) -> 0.7001114827
D102: =D100^($D$106)*D101^($D$107) -> 116.6591243 | E102: =E100^($E$108)*E101^($E$109) -> 93.30335016
C103: Demanda Neta Bien 1 | D103: =D100-D97 -> -16.13636364 | E103: =D101-D98 -> 18.93333333 | G103: 35 | H103: 50 | I103: Demanda Neta Bien 1 | J103: =J100-J97 -> -7.385008518 | K103: =J101-J98 -> 13.44186047 | N103: Demanda Neta Bien 1 | O103: =O100-O97 -> -14.26441352 | P103: =O101-O98 -> 20.35460993 | S103: Demanda Neta Bien 1 | T103: =T100-T97 -> -19.73056995 | U103: =T101-T98 -> 18.73554736 | X103: Demanda Neta Bien 1 | Y103: =Y100-Y97 -> -15.21019108 | Z103: =Y101-Y98 -> 10.64882943
C104: Demanda Neta Bien 2 | D104: =E100-E97 -> 16.13636364 | E104: =E101-E98 -> -18.93333333 | G104: 15 | H104: 40 | I104: Demanda Neta Bien 2 | J104: =K100-K97 -> 7.385008518 | K104: =K101-K98 -> -13.44186047 | N104: Demanda Neta Bien 2 | O104: =P100-P97 -> 14.26441352 | P104: =P101-P98 -> -20.35460993 | S104: Demanda Neta Bien 2 | T104: =U100-U97 -> 19.73056995 | U104: =U101-U98 -> -18.73554736 | X104: Demanda Neta Bien 2 | Y104: =Z100-Z97 -> 15.21019108 | Z104: =Z101-Z98 -> -10.64882943
C106: a | D106: ='Optimo Pareto EGC'!C24 -> 0.2 | I106: a | J106: =D106 -> 0.2 | N106: a | O106: =J106 -> 0.2 | S106: a | T106: =O106 -> 0.2 | X106: a | Y106: =T106 -> 0.2
C107: 1-a | D107: =1-D106 -> 0.8 | I107: 1-a | J107: =1-J106 -> 0.8 | N107: 1-a | O107: =1-O106 -> 0.8 | S107: 1-a | T107: =1-T106 -> 0.8 | X107: 1-a | Y107: =1-Y106 -> 0.8
C108: b | E108: ='Optimo Pareto EGC'!D26 -> 0.5 | I108: b | K108: =E108 -> 0.5 | N108: b | P108: =K108 -> 0.5 | S108: b | U108: =P108 -> 0.5 | X108: b | Z108: =U108 -> 0.5
C109: 1-b | E109: =1-E108 -> 0.5 | I109: 1-b | K109: =1-K108 -> 0.5 | N109: 1-b | P109: =1-P108 -> 0.5 | S109: 1-b | U109: =1-U108 -> 0.5 | X109: 1-b | Z109: =1-Z108 -> 0.5
C111: P2/P1 | E111: =((D107*D97)+(E109*E97))/((D106*D98)+(E108*E98)) -> 0.8522727273 | F111: k inicial | I111: P2/P1 | K111: =((J107*J97)+(K109*K97))/((J106*J98)+(K108*K98)) -> 0.5494037479 | L111: k inicial | N111: P2/P1 | P111: =((O107*O97)+(P109*P97))/((O106*O98)+(P108*P98)) -> 0.7007952286 | Q111: k inicial | S111: P2/P1 | U111: =((T107*T97)+(U109*U97))/((T106*T98)+(U108*U98)) -> 1.053108808 | V111: k inicial | X111: P2/P1 | Z111: =((Y107*Y97)+(Z109*Z97))/((Y106*Y98)+(Z108*Z98)) -> 1.428343949 | AA111: k inicial
C112: P1/P2 | E112: =1/E111 -> 1.173333333 | F112: =(D100^(D106))*(D101^(D107)) -> 116.6591243 | I112: P1/P2 | K112: =1/K111 -> 1.820155039 | L112: =(J100^(J106))*(J101^(J107)) -> 37.27383864 | N112: P1/P2 | P112: =1/P111 -> 1.426950355 | Q112: =(O100^(O106))*(O101^(O107)) -> 83.53941071 | S112: P1/P2 | U112: =1/U111 -> 0.9495694957 | V112: =(T100^(T106))*(T101^(T107)) -> 149.1172502 | X112: P1/P2 | Z112: =1/Z111 -> 0.7001114827 | AA112: =(Y100^(Y106))*(Y101^(Y107)) -> 190.9734323
E113: =E112*E114 -> 1.17333
E114: 1
D117: curva de tranasformación | E117: Inicio | F117: menos 2 | G117: menos 1 | H117: original | I117: más 1 | J117: más 2 | K117: final
D118: x1 | E118: 0 | F118: =J100 -> 7.614991482 | G118: =O100 -> 20.73558648 | H118: =D100 -> 33.86363636 | I118: =T100 -> 51.26943005 | J118: =Y100 -> 83.78980892 | K118: =F97 -> 120
D119: x2 | E119: 0 | F119: =J101 -> 55.44186047 | G119: =O101 -> 118.3546099 | H119: =D101 -> 158.9333333 | I119: =T101 -> 194.7355474 | J119: =Y101 -> 234.6488294 | K119: =F98 -> 260
C124: DEMANDAS NETAS
G125: =POWER((F166/(F152^D161)),1/D160) -> 44.23469388 | H125: =($F$166/($G125^($D$160)))^(1/$D$161) -> 70
F126: Original | G126: Original | H126: Original | J126: DOTACIÓN | N126: OPTIMO | R126: CAJA | V126: ORIGINAL | W126: ORIGINAL | X126: NEGATIVO | Y126: NEGATIVO | Z126: TRANSFORMADA
C127: Unidades | D127: ponderador | F127: x1 | G127: x1 | H127: x2 | J127: x1linedotación | L127: x2line | N127: x1linedotación | P127: x2line | V127: x1 | W127: x2 | X127: MENOS X1 | Y127: MENOS X2 | Z127: x1 | AA127: x2
C128: 1 | D128: 0 | E128: 0.01 | F128: =IF(($D$154*E128)>$F$151,$F$151,$D$154*E128) -> 0.73 | G128: =IF(($F$166/($F128^($D$160)))^(1/$D$161)>$F$152,$G$125,F128) -> 44.23 | H128: =($F$166/($G128^($D$160)))^(1/$D$161) -> 70.00 | J128: =D128*$F$151 -> 0 | K128: =$D$152 -> 50.00 | L128: =$D$151 -> 60.00 | M128: =$F$152*D128 -> 0 | N128: =$D$155 -> 42.50 | O128: =$D$154 -> 72.86 | P128: =$D$151 -> 60.00 | Q128: =D128*$F$152 -> 0 | R128: =$F$151 -> 120.00 | S128: =$F$152 -> 70.00 | T128: 0 | V128: =$E$154*E128 -> 0.47 | W128: =(($G$162)/((V128^($E$162))))^(1/$E$163) -> 2,750.00 | X128: =V128*-1 -> (0.47) | Y128: =W128*-1 -> (2,750.00) | Z128: =X128+($V$138*2)+($D$154-$E$154) -> 119.53 | AA128: =Y128+($W$138*2)+($D$155-$E$155) -> (2,680.00)
C129: 2 | D129: 0.01 | E129: 0.10 | F129: =IF(($D$154*E129)>$F$151,$F$151,$D$154*E129) -> 7.29 | G129: =IF(($F$166/($F129^($D$160)))^(1/$D$161)>$F$152,$G$125,F129) -> 44.23 | H129: =($F$166/($G129^($D$160)))^(1/$D$161) -> 70.00 | J129: =D129*$F$151 -> 1.20 | K129: =$D$152 -> 50.00 | L129: =$D$151 -> 60.00 | M129: =$F$152*D129 -> 0.70 | N129: =$D$155 -> 42.50 | O129: =$D$154 -> 72.86 | P129: =$D$151 -> 60.00 | Q129: =D129*$F$152 -> 0.70 | R129: =$F$151 -> 120.00 | S129: =$F$152 -> 70.00 | T129: 0 | V129: 4.71 | W129: 275.00 | X129: =V129*-1 -> (4.71) | Y129: =W129*-1 -> (275.00) | Z129: 115.29 | AA129: (205.00)
C130: 3 | D130: 0.10 | E130: 0.20 | F130: 14.57 | G130: 44.23 | H130: 70.00 | J130: 12.00 | K130: 50.00 | L130: 60.00 | M130: 7.00 | N130: 42.50 | O130: 72.86 | P130: 60.00 | Q130: 7.00 | R130: 120.00 | S130: 70.00 | T130: 0 | V130: 9.43 | W130: 137.50 | X130: (9.43) | Y130: (137.50) | Z130: 110.57 | AA130: (67.50)
C131: 4 | D131: 0.15 | E131: 0.30 | F131: 21.86 | G131: 44.23 | H131: 70.00 | J131: 18.00 | K131: 50.00 | L131: 60.00 | M131: 10.50 | N131: 42.50 | O131: 72.86 | P131: 60.00 | Q131: 10.50 | R131: 120.00 | S131: 70.00 | T131: 0 | V131: 14.14 | W131: 91.67 | X131: (14.14) | Y131: (91.67) | Z131: 105.86 | AA131: (21.67)
C132: 5 | D132: 0.20 | E132: 0.40 | F132: 29.14 | G132: 44.23 | H132: 70.00 | J132: 24.00 | K132: 50.00 | L132: 60.00 | M132: 14.00 | N132: 42.50 | O132: 72.86 | P132: 60.00 | Q132: 14.00 | R132: 120.00 | S132: 70.00 | T132: 0 | V132: 18.86 | W132: 68.75 | X132: (18.86) | Y132: (68.75) | Z132: 101.14 | AA132: 1.25
C133: 6 | D133: 0.25 | E133: 0.50 | F133: 36.43 | G133: 44.23 | H133: 70.00 | J133: 30.00 | K133: 50.00 | L133: 60.00 | M133: 17.50 | N133: 42.50 | O133: 72.86 | P133: 60.00 | Q133: 17.50 | R133: 120.00 | S133: 70.00 | T133: 0 | V133: 23.57 | W133: 55.00 | X133: (23.57) | Y133: (55.00) | Z133: 96.43 | AA133: 15.00
C134: 7 | D134: 0.30 | E134: 0.60 | F134: 43.71 | G134: 44.23 | H134: 70.00 | J134: 36.00 | K134: 50.00 | L134: 60.00 | M134: 21.00 | N134: 42.50 | O134: 72.86 | P134: 60.00 | Q134: 21.00 | R134: 120.00 | S134: 70.00 | T134: 0 | V134: 28.29 | W134: 45.83 | X134: (28.29) | Y134: (45.83) | Z134: 91.71 | AA134: 24.17
C135: 8 | D135: 0.35 | E135: 0.70 | F135: 51.00 | G135: 51.00 | H135: 60.71 | J135: 42.00 | K135: 50.00 | L135: 60.00 | M135: 24.50 | N135: 42.50 | O135: 72.86 | P135: 60.00 | Q135: 24.50 | R135: 120.00 | S135: 70.00 | T135: 0 | V135: 33.00 | W135: 39.29 | X135: (33.00) | Y135: (39.29) | Z135: 87.00 | AA135: 30.71
C136: 9 | D136: 0.40 | E136: 0.80 | F136: 58.29 | G136: 58.29 | H136: 53.13 | J136: 48.00 | K136: 50.00 | L136: 60.00 | M136: 28.00 | N136: 42.50 | O136: 72.86 | P136: 60.00 | Q136: 28.00 | R136: 120.00 | S136: 70.00 | T136: 0 | V136: 37.71 | W136: 34.38 | X136: (37.71) | Y136: (34.38) | Z136: 82.29 | AA136: 35.63
C137: 10 | D137: 0.45 | E137: 0.90 | F137: 65.57 | G137: 65.57 | H137: 47.22 | J137: 54.00 | K137: 50.00 | L137: 60.00 | M137: 31.50 | N137: 42.50 | O137: 72.86 | P137: 60.00 | Q137: 31.50 | R137: 120.00 | S137: 70.00 | T137: 0 | V137: 42.43 | W137: 30.56 | X137: (42.43) | Y137: (30.56) | Z137: 77.57 | AA137: 39.44
C138: 11 | D138: 0.50 | E138: 1.00 | F138: 72.86 | G138: 72.86 | H138: 42.50 | J138: 60.00 | K138: 50.00 | L138: 60.00 | M138: 35.00 | N138: 42.50 | O138: 72.86 | P138: 60.00 | Q138: 35.00 | R138: 120.00 | S138: 70.00 | T138: 0 | V138: =$E$154*E138 -> 47.14 | W138: =(($G$162)/((V138^($E$162))))^(1/$E$163) -> 27.50 | X138: (47.14) | Y138: (27.50) | Z138: 72.86 | AA138: 42.50
C139: 12 | D139: 0.55 | E139: 1.10 | F139: 80.14 | G139: 80.14 | H139: 38.64 | J139: 66.00 | K139: 50.00 | L139: 60.00 | M139: 38.50 | N139: 42.50 | O139: 72.86 | P139: 60.00 | Q139: 38.50 | R139: 120.00 | S139: 70.00 | T139: 0 | V139: =$E$154*E139 -> 51.86 | W139: =(($G$162)/((V139^($E$162))))^(1/$E$163) -> 25.00 | X139: (51.86) | Y139: (25.00) | Z139: 68.14 | AA139: 45.00
C140: 13 | D140: 0.60 | E140: 1.20 | F140: 87.43 | G140: 87.43 | H140: 35.42 | J140: 72.00 | K140: 50.00 | L140: 60.00 | M140: 42.00 | N140: 42.50 | O140: 72.86 | P140: 60.00 | Q140: 42.00 | R140: 120.00 | S140: 70.00 | T140: 0 | V140: 56.57 | W140: 22.92 | X140: (56.57) | Y140: (22.92) | Z140: 63.43 | AA140: 47.08
C141: 14 | D141: 0.65 | E141: 1.30 | F141: 94.71 | G141: 94.71 | H141: 32.69 | J141: 78.00 | K141: 50.00 | L141: 60.00 | M141: 45.50 | N141: 42.50 | O141: 72.86 | P141: 60.00 | Q141: 45.50 | R141: 120.00 | S141: 70.00 | T141: 0 | V141: 61.29 | W141: 21.15 | X141: (61.29) | Y141: (21.15) | Z141: 58.71 | AA141: 48.85
C142: 15 | D142: 0.70 | E142: 1.40 | F142: 102.00 | G142: 102.00 | H142: 30.36 | J142: 84.00 | K142: 50.00 | L142: 60.00 | M142: 49.00 | N142: 42.50 | O142: 72.86 | P142: 60.00 | Q142: 49.00 | R142: 120.00 | S142: 70.00 | T142: 0 | V142: 66.00 | W142: 19.64 | X142: (66.00) | Y142: (19.64) | Z142: 54.00 | AA142: 50.36
C143: 16 | D143: 0.75 | E143: 1.50 | F143: 109.29 | G143: 109.29 | H143: 28.33 | J143: 90.00 | K143: 50.00 | L143: 60.00 | M143: 52.50 | N143: 42.50 | O143: 72.86 | P143: 60.00 | Q143: 52.50 | R143: 120.00 | S143: 70.00 | T143: 0 | V143: 70.71 | W143: 18.33 | X143: (70.71) | Y143: (18.33) | Z143: 49.29 | AA143: 51.67
C144: 17 | D144: 0.80 | E144: 1.60 | F144: 116.57 | G144: 116.57 | H144: 26.56 | J144: 96.00 | K144: 50.00 | L144: 60.00 | M144: 56.00 | N144: 42.50 | O144: 72.86 | P144: 60.00 | Q144: 56.00 | R144: 120.00 | S144: 70.00 | T144: 0 | V144: 75.43 | W144: 17.19 | X144: (75.43) | Y144: (17.19) | Z144: 44.57 | AA144: 52.81
C145: 18 | D145: 0.85 | E145: 1.70 | F145: 120.00 | G145: 120.00 | H145: 25.80 | J145: 102.00 | K145: 50.00 | L145: 60.00 | M145: 59.50 | N145: 42.50 | O145: 72.86 | P145: 60.00 | Q145: 59.50 | R145: 120.00 | S145: 70.00 | T145: 0 | V145: 80.14 | W145: 16.18 | X145: (80.14) | Y145: (16.18) | Z145: 39.86 | AA145: 53.82
C146: 19 | D146: 0.90 | E146: 1.80 | F146: 120.00 | G146: 120.00 | H146: 25.80 | J146: 108.00 | K146: 50.00 | L146: 60.00 | M146: 63.00 | N146: 42.50 | O146: 72.86 | P146: 60.00 | Q146: 63.00 | R146: 120.00 | S146: 70.00 | T146: 0 | V146: 84.86 | W146: 15.28 | X146: (84.86) | Y146: (15.28) | Z146: 35.14 | AA146: 54.72
C147: 20 | D147: 0.95 | E147: 1.90 | F147: 120.00 | G147: 120.00 | H147: 25.80 | J147: 114.00 | K147: 50.00 | L147: 60.00 | M147: 66.50 | N147: 42.50 | O147: 72.86 | P147: 60.00 | Q147: 66.50 | R147: 120.00 | S147: 70.00 | T147: 0 | V147: 89.57 | W147: 14.47 | X147: (89.57) | Y147: (14.47) | Z147: 30.43 | AA147: 55.53
C148: 21 | D148: 1.00 | E148: 3.33 | F148: 120.00 | G148: 120.00 | H148: 25.80 | J148: 120.00 | K148: 50.00 | L148: 60.00 | M148: 70.00 | N148: 42.50 | O148: 72.86 | P148: 60.00 | Q148: 70.00 | R148: 120.00 | S148: 70.00 | T148: 0 | V148: 157.14 | W148: 8.25 | X148: (157.14) | Y148: (8.25) | Z148: (37.14) | AA148: 61.75
C149: original | I149: original | N149: original | S149: original | W149: =E155+(E154*E165) -> 108.32 | X149: original | Y149: =D155+(D154*E166) -> 85.00
D150: Individuo A | E150: Individuo B | F150: Total | J150: Individuo A | K150: Individuo B | L150: Total | O150: Individuo A | P150: Individuo B | Q150: Total | T150: Individuo A | U150: Individuo B | V150: Total | Y150: Individuo A | Z150: Individuo B | AA150: Total
C151: Dotación Bien 1 | D151: ='Demandas Netas EGC'!C10 -> 60 | E151: ='Demandas Netas EGC'!D10 -> 60 | F151: =E151+D151 -> 120 | G151: =(D160*((D152/D151)^(D161)))/(D161*((D151/D152)^(D160))) -> 0.8333333333 | I151: Dotación Bien 1 | J151: =D151*0.3 -> 18 | K151: =L151-J151 -> 102 | L151: =F151 -> 120 | M151: =(J160*((J152/J151)^(J161)))/(J161*((J151/J152)^(J160))) -> 0.8333333333 | N151: Dotación Bien 1 | O151: =D151*0.7 -> 42 | P151: =Q151-O151 -> 78 | Q151: =L151 -> 120 | R151: =(O160*((O152/O151)^(O161)))/(O161*((O151/O152)^(O160))) -> 0.8333333333 | S151: Dotación Bien 1 | T151: =D151+(E151*0.3) -> 78 | U151: =V151-T151 -> 42 | V151: =Q151 -> 120 | W151: =(T160*((T152/T151)^(T161)))/(T161*((T151/T152)^(T160))) -> 0.7179487179 | X151: Dotación Bien 1 | Y151: =D151+(E151*0.7) -> 102 | Z151: =AA151-Y151 -> 18 | AA151: =V151 -> 120 | AB151: =(Y160*((Y152/Y151)^(Y161)))/(Y161*((Y151/Y152)^(Y160))) -> 0.6274509804
C152: Dotación Bien 2 | D152: ='Demandas Netas EGC'!C11 -> 50 | E152: ='Demandas Netas EGC'!D11 -> 20 | F152: =E152+D152 -> 70 | G152: =(E162*((E152/E151)^(E163)))/(E163*((E151/E152)^(E162))) -> 0.3333333333 | I152: Dotación Bien 2 | J152: =D152*0.3 -> 15 | K152: =L152-J152 -> 55 | L152: =F152 -> 70 | M152: =(K162*((K152/K151)^(K163)))/(K163*((K151/K152)^(K162))) -> 0.5392156863 | N152: Dotación Bien 2 | O152: =D152*0.7 -> 35.00 | P152: =Q152-O152 -> 35 | Q152: =L152 -> 70 | R152: =(P162*((P152/P151)^(P163)))/(P163*((P151/P152)^(P162))) -> 0.4487179487 | S152: Dotación Bien 2 | T152: =D152+(E152*0.3) -> 56 | U152: =V152-T152 -> 14 | V152: =Q152 -> 70 | W152: =(U162*((U152/U151)^(U163)))/(U163*((U151/U152)^(U162))) -> 0.3333333333 | X152: Dotación Bien 2 | Y152: =D152+(E152*0.7) -> 64 | Z152: =AA152-Y152 -> 6 | AA152: =V152 -> 70 | AB152: =(Z162*((Z152/Z151)^(Z163)))/(Z163*((Z151/Z152)^(Z162))) -> 0.3333333333
D153: =D151^(D160)*D152^(D161) -> 54.77225575 | E153: =E151^(E162)*E152^(E163) -> 34.64101615
C154: Demanda Bruta Bien 1 | D154: =(D160*D151)+(E165*D152*D160) -> 72.85714286 | E154: =(E162*E151)+(E162*E165*E152) -> 47.14285714 | F154: =E154+D154 -> 120 | G154: =(D160*((D155/D154)^(D161)))/(D161*((D154/D155)^(D160))) -> 0.5833333333 | I154: Demanda Bruta Bien 1 | J154: =(J160*J151)+(K165*J152*J160) -> 21.85714286 | K154: =(K162*K151)+(K162*K165*K152) -> 98.14285714 | L154: =K154+J154 -> 120 | M154: =(J160*((J155/J154)^(J161)))/(J161*((J154/J155)^(J160))) -> 0.5833333333 | N154: Demanda Bruta Bien 1 | O154: =(O160*O151)+(P165*O152*O160) -> 51 | P154: =(P162*P151)+(P162*P165*P152) -> 69 | Q154: =P154+O154 -> 120 | R154: =(O160*((O155/O154)^(O161)))/(O161*((O154/O155)^(O160))) -> 0.5833333333 | S154: Demanda Bruta Bien 1 | T154: =(T160*T151)+(U165*T152*T160) -> 87 | U154: =(U162*U151)+(U162*U165*U152) -> 33 | V154: =U154+T154 -> 120 | W154: =(T160*((T155/T154)^(T161)))/(T161*((T154/T155)^(T160))) -> 0.5833333333 | X154: Demanda Bruta Bien 1 | Y154: =(Y160*Y151)+(Z165*Y152*Y160) -> 105.8571429 | Z154: =(Z162*Z151)+(Z162*Z165*Z152) -> 14.14285714 | AA154: =Z154+Y154 -> 120 | AB154: =(Y160*((Y155/Y154)^(Y161)))/(Y161*((Y154/Y155)^(Y160))) -> 0.5833333333
C155: Demanda Bruta Bien 2 | D155: =(D161*E166*D151)+(D161*D152) -> 42.5 | E155: =(E163*E166*E151)+(E163*E152) -> 27.5 | F155: =E155+D155 -> 70 | G155: =(E162*((E155/E154)^(E163)))/(E163*((E154/E155)^(E162))) -> 0.5833333333 | I155: Demanda Bruta Bien 2 | J155: =(J161*K166*J151)+(J161*J152) -> 12.75 | K155: =(K163*K166*K151)+(K163*K152) -> 57.25 | L155: =K155+J155 -> 70 | M155: =(K162*((K155/K154)^(K163)))/(K163*((K154/K155)^(K162))) -> 0.5833333333 | N155: Demanda Bruta Bien 2 | O155: =(O161*P166*O151)+(O161*O152) -> 29.75 | P155: =(P163*P166*P151)+(P163*P152) -> 40.25 | Q155: =P155+O155 -> 70 | R155: =(P162*((P155/P154)^(P163)))/(P163*((P154/P155)^(P162))) -> 0.5833333333 | S155: Demanda Bruta Bien 2 | T155: =(T161*U166*T151)+(T161*T152) -> 50.75 | U155: =(U163*U166*U151)+(U163*U152) -> 19.25 | V155: =U155+T155 -> 70 | W155: =(U162*((U155/U154)^(U163)))/(U163*((U154/U155)^(U162))) -> 0.5833333333 | X155: Demanda Bruta Bien 2 | Y155: =(Y161*Z166*Y151)+(Y161*Y152) -> 61.75 | Z155: =(Z163*Z166*Z151)+(Z163*Z152) -> 8.25 | AA155: =Z155+Y155 -> 70 | AB155: =(Z162*((Z155/Z154)^(Z163)))/(Z163*((Z154/Z155)^(Z162))) -> 0.5833333333
D156: =D154^(D160)*D155^(D161) -> 55.64556201 | E156: =E154^(E162)*E155^(E163) -> 36.00595189
C157: Demanda Neta Bien 1 | D157: =D154-D151 -> 12.85714286 | E157: =E154-E151 -> -12.85714286 | I157: Demanda Neta Bien 1 | J157: =J154-J151 -> 3.857142857 | K157: =J155-J152 -> -2.25 | N157: Demanda Neta Bien 1 | O157: =O154-O151 -> 9 | P157: =O155-O152 -> -5.25 | S157: Demanda Neta Bien 1 | T157: =T154-T151 -> 9 | U157: =T155-T152 -> -5.25 | X157: Demanda Neta Bien 1 | Y157: =Y154-Y151 -> 3.857142857 | Z157: =Y155-Y152 -> -2.25
C158: Demanda Neta Bien 2 | D158: =D155-D152 -> -7.5 | E158: =E155-E152 -> 7.5 | I158: Demanda Neta Bien 2 | J158: =K154-K151 -> -3.857142857 | K158: =K155-K152 -> 2.25 | N158: Demanda Neta Bien 2 | O158: =P154-P151 -> -9 | P158: =P155-P152 -> 5.25 | S158: Demanda Neta Bien 2 | T158: =U154-U151 -> -9 | U158: =U155-U152 -> 5.25 | X158: Demanda Neta Bien 2 | Y158: =Z154-Z151 -> -3.857142857 | Z158: =Z155-Z152 -> 2.25
C160: a | D160: ='Demandas Netas EGC'!C24 -> 0.5 | I160: a | J160: =D160 -> 0.5 | N160: a | O160: =J160 -> 0.5 | S160: a | T160: =O160 -> 0.5 | X160: a | Y160: =T160 -> 0.5
C161: 1-a | D161: =1-D160 -> 0.5 | G161: =D154^(D160)*D155^(D161) -> 55.64556201 | I161: 1-a | J161: =1-J160 -> 0.5 | N161: 1-a | O161: =1-O160 -> 0.5 | S161: 1-a | T161: =1-T160 -> 0.5 | X161: 1-a | Y161: =1-Y160 -> 0.5
C162: b | E162: ='Demandas Netas EGC'!D26 -> 0.5 | G162: =E154^(E162)*E155^(E163) -> 36.00595189 | I162: b | K162: =E162 -> 0.5 | N162: b | P162: =K162 -> 0.5 | S162: b | U162: =P162 -> 0.5 | X162: b | Z162: =U162 -> 0.5
C163: 1-b | E163: =1-E162 -> 0.5 | I163: 1-b | K163: =1-K162 -> 0.5 | N163: 1-b | P163: =1-P162 -> 0.5 | S163: 1-b | U163: =1-U162 -> 0.5 | X163: 1-b | Z163: =1-Z162 -> 0.5
C165: P2/P1 | E165: =((D161*D151)+(E163*E151))/((D160*D152)+(E162*E152)) -> 1.714285714 | F165: k inicial | I165: P2/P1 | K165: =((J161*J151)+(K163*K151))/((J160*J152)+(K162*K152)) -> 1.714285714 | L165: k inicial | N165: P2/P1 | P165: =((O161*O151)+(P163*P151))/((O160*O152)+(P162*P152)) -> 1.714285714 | Q165: k inicial | S165: P2/P1 | U165: =((T161*T151)+(U163*U151))/((T160*T152)+(U162*U152)) -> 1.714285714 | V165: k inicial | X165: P2/P1 | Z165: =((Y161*Y151)+(Z163*Z151))/((Y160*Y152)+(Z162*Z152)) -> 1.714285714 | AA165: k inicial
C166: P1/P2 | E166: =1/E165 -> 0.5833333333 | F166: =(D154^(D160))*(D155^(D161)) -> 55.64556201 | I166: P1/P2 | K166: =1/K165 -> 0.5833333333 | L166: =(J154^(J160))*(J155^(J161)) -> 16.6936686 | N166: P1/P2 | P166: =1/P165 -> 0.5833333333 | Q166: =(O154^(O160))*(O155^(O161)) -> 38.95189341 | S166: P1/P2 | U166: =1/U165 -> 0.5833333333 | V166: =(T154^(T160))*(T155^(T161)) -> 66.44734758 | X166: P1/P2 | Z166: =1/Z165 -> 0.5833333333 | AA166: =(Y154^(Y160))*(Y155^(Y161)) -> 80.84972833
D171: curva de tranasformación | E171: Inicio | F171: menos 2 | G171: menos 1 | H171: original | I171: más 1 | J171: más 2 | K171: final
D172: x1 | E172: 0 | F172: =J154 -> 21.85714286 | G172: =O154 -> 51 | H172: =D154 -> 72.85714286 | I172: =T154 -> 87 | J172: =Y154 -> 105.8571429 | K172: =F151 -> 120
D173: x2 | E173: 0 | F173: =J155 -> 12.75 | G173: =O155 -> 29.75 | H173: =D155 -> 42.5 | I173: =T155 -> 50.75 | J173: =Y155 -> 61.75 | K173: =F152 -> 70
D175: DEMANDAS NETAS DE LOS BIENES 1 Y 2, CORRESPONDIENTES A LOS AGENTES A Y B
D176: 0 | E176: =$D$151+($D$157*D176) -> 60 | F176: =$D$152 -> 50 | G176: =$D$154 -> 72.85714286 | H176: =$D$152+($D$158*D176) -> 50 | I176: =$D$155 -> 42.5 | J176: =$D$151 -> 60
D177: 0.2 | E177: 62.57142857 | F177: 50 | G177: 72.85714286 | H177: 48.5 | I177: 42.5 | J177: 60
D178: 0.4 | E178: 65.14285714 | F178: 50 | G178: 72.85714286 | H178: 47 | I178: 42.5 | J178: 60
D179: 0.6 | E179: 67.71428571 | F179: 50 | G179: 72.85714286 | H179: 45.5 | I179: 42.5 | J179: 60
D180: 0.8 | E180: 70.28571429 | F180: 50 | G180: 72.85714286 | H180: 44 | I180: 42.5 | J180: 60
D181: 1 | E181: 72.85714286 | F181: 50 | G181: 72.85714286 | H181: 42.5 | I181: 42.5 | J181: 60
C185: FRONTERA DE POSIBILIDADES DE UTILIDAD
G186: =POWER((F242/(F228^D237)),1/D236) -> 20.78427978 | H186: =($F$242/($G186^($D$236)))^(1/$D$237) -> 95 | I186: =POWER((K234/(K228^D237)),1/D236) -> 5.196069945 | J186: =($K$234/($I186^($D$236)))^(1/$D$237) -> 95 | K186: =POWER((K245/(K239^D237)),1/D236) -> 13.30193906 | L186: =($K$245/($K186^($D$236)))^(1/$D$237) -> 95 | M186: =POWER((Q234/(Q228^D237)),1/D236) -> 27.1468144 | N186: =($Q$234/($M186^($D$236)))^(1/$D$237) -> 95 | O186: =POWER((Q245/(Q239^D237)),1/D236) -> 36.4613054 | P186: =($Q$245/($O186^($D$236)))^(1/$D$237) -> 95 | Q186: =POWER((D229/(F228^D237)),1/D236) -> 19.73684211 | R186: =($D$229/($Q186^($D$236)))^(1/$D$237) -> 95 | AA186: ORIGINAL | AH186: MENOS 2 | AO186: MENOS 1 | AW186: MAS 1 | BD186: MAS 2 | BK186: DOTACIÓN
A187: Original | B187: Original | F187: Original | H187: Original | I187: menos 2 | J187: menos 2 | K187: menos 1 | L187: menos 1 | M187: mas 1 | N187: mas 1 | O187: masn2 | P187: masn2 | T187: DOTACIÓN | X187: OPTIMO | AB187: CAJA | AF187: ORIGINAL | AG187: ORIGINAL | AH187: NEGATIVO | AI187: NEGATIVO | AJ187: TRANSFORMADA | AM187: ORIGINAL | AN187: ORIGINAL | AO187: NEGATIVO | AP187: NEGATIVO | AQ187: TRANSFORMADA | AT187: ORIGINAL | AU187: ORIGINAL | AV187: NEGATIVO | AW187: NEGATIVO | AX187: TRANSFORMADA | BB187: ORIGINAL | BC187: ORIGINAL | BD187: NEGATIVO | BE187: NEGATIVO | BF187: TRANSFORMADA | BI187: ORIGINAL | BJ187: ORIGINAL | BK187: NEGATIVO | BL187: NEGATIVO | BM187: TRANSFORMADA | BP187: ORIGINAL | BQ187: ORIGINAL | BR187: NEGATIVO | BS187: NEGATIVO | BT187: TRANSFORMADA
A188: x1 | B188: x2 | C188: Unidades | D188: ponderador | F188: x1 | G188: x1 | H188: x2 | I188: x1 | J188: x2 | K188: x1 | L188: x2 | M188: x1 | N188: x2 | O188: x1 | P188: x2 | Q188: DOTA | R188: DOTA | T188: < | V188: x2line | X188: x1linedotación | Z188: x2line | AF188: x1 | AG188: x2 | AH188: MENOS X1 | AI188: MENOS X2 | AJ188: x1 | AK188: x2 | AM188: x1 | AN188: x2 | AO188: MENOS X1 | AP188: MENOS X2 | AQ188: x1 | AR188: x2 | AT188: x1 | AU188: x2 | AV188: MENOS X1 | AW188: MENOS X2 | AX188: x1 | AY188: x2 | BB188: x1 | BC188: x2 | BD188: MENOS X1 | BE188: MENOS X2 | BF188: x1 | BG188: x2 | BI188: x1 | BJ188: x2 | BK188: MENOS X1 | BL188: MENOS X2 | BM188: x1 | BN188: x2 | BP188: x1 | BQ188: x2 | BR188: MENOS X1 | BS188: MENOS X2 | BT188: x1 | BU188: x2
A189: =$D$230*E189 -> 0.32 | B189: =($F$242/($A189^($D$236)))^(1/$D$237) -> 6,125.00 | C189: 1 | D189: 0 | E189: 0.01 | F189: =IF($D$230*E189>$F$227,$F$227,$D$230*E189) -> 0.32 | G189: =IF(($F$242/($F189^($D$236)))^(1/$D$237)>$F$228,$G$186,$F189) -> 20.78 | H189: =($F$242/($G189^($D$236)))^(1/$D$237) -> 95.00 | I189: =IF(($K$234/($F189^($D$236)))^(1/$D$237)>$F$228,$I$186,F189) -> 5.20 | J189: =($K$234/($I189^($D$236)))^(1/$D$237) -> 95.00 | K189: =IF(($K$245/($F189^($D$236)))^(1/$D$237)>$F$228,$K$186,F189) -> 13.30 | L189: =($K$245/($K189^($D$236)))^(1/$D$237) -> 95.00 | M189: =IF(($Q$234/($F189^($D$236)))^(1/$D$237)>$F$228,$M$186,F189) -> 27.15 | N189: =($Q$234/($M189^($D$236)))^(1/$D$237) -> 95.00 | O189: =IF(($Q$245/($F189^($D$236)))^(1/$D$237)>$F$228,$O$186,F189) -> 36.46 | P189: =($Q$245/($O189^($D$236)))^(1/$D$237) -> 95.00 | Q189: =IF(($D$229/($F189^($D$236)))^(1/$D$237)>$F$228,$Q$186,F189) -> 19.73684211 | R189: =($D$229/($Q189^($D$236)))^(1/$D$237) -> 95.00 | S189: =IF(B189>$F$228,1,0) -> 1 | T189: =D189*$F$227 -> 0 | U189: =$D$228 -> 75.00 | V189: =$D$227 -> 25.00 | W189: =$F$228*D189 -> 0 | X189: =$D$231 -> 61.25 | Y189: =$D$230 -> 32.24 | Z189: =$D$227 -> 25.00 | AA189: =$F$228*J189 -> 9,025.00 | AB189: =$F$227 -> 50.00 | AC189: =$F$228 -> 95.00 | AD189: 0 | AF189: =$E189*$E$230 -> 0.18 | AG189: =(($E$232)/(AF189^($E$238)))^(1/$E$239) -> 3,375.00 | AH189: =AF189*-1 -> (0.18) | AI189: =AG189*-1 -> (3,375.00) | AJ189: =AH189+($AF$199*2)+($D$230-$E$230) -> 49.82 | AK189: =AI189+($E$231*2)+($D$231-$E$231) -> (3,280.00) | AM189: =$E189*$AM$232 -> 0.34 | AN189: =(($AM$234)/(AM189^($E$238)))^(1/$E$239) -> 6,437.50 | AO189: =AM189*-1 -> (0.34) | AP189: =AN189*-1 -> (6,437.50) | AQ189: =AO189+($AM$199*2)+($AL$232-$AM$232) -> 49.66 | AR189: =AP189+($AN$199*2)+($AL$233-$AM$233) -> (6,342.50) | AT189: =$E189*$AM$243 -> 0.24 | AU189: =(($AM$245)/(AT189^($E$238)))^(1/$E$239) -> 4,600.00 | AV189: =AT189*-1 -> (0.24) | AW189: =AU189*-1 -> (4,600.00) | AX189: =AV189+($AT$199*2)+($AL$243-$AM$243) -> 49.76 | AY189: =AW189+($AU$199*2)+($AL$244-$AM$244) -> (4,505.00) | BB189: =$E189*$BC$232 -> 0.13 | BC189: =(($BC$234)/(BB189^($E$238)))^(1/$E$239) -> 2,500.00 | BD189: =BB189*-1 -> (0.13) | BE189: =BC189*-1 -> (2,500.00) | BF189: =BD189+($BB$199*2)+($BB$232-$BC$232) -> 49.87 | BG189: =BE189+($BC$199*2)+($BB$233-$BC$233) -> (2,405.00) | BI189: =$E189*$BC$243 -> 0.07 | BJ189: =(($BC$245)/(BI189^($E$238)))^(1/$E$239) -> 1,387.50 | BK189: =BI189*-1 -> (0.07) | BL189: =BJ189*-1 -> (1,387.50) | BM189: =BK189+($BI$199*2)+($BB$243-$BC$243) -> 49.93 | BN189: =BL189+($BJ$199*2)+($BB$244-$BC$244) -> (1,292.50) | BP189: =$E189*$BL$230 -> 0.25 | BQ189: =(($BL$232)/(BP189^($E$238)))^(1/$E$239) -> 2,000.00 | BR189: =BP189*-1 -> (0.25) | BS189: =BQ189*-1 -> (2,000.00) | BT189: =BR189+($BP$199*2)+($BK$230-$BL$230) -> 49.75 | BU189: =BS189+($BQ$199*2)+($BK$231-$BL$231) -> (1,905.00)
A190: =$D$230*E190 -> 3.22 | B190: =($F$242/($A190^($D$236)))^(1/$D$237) -> 612.50 | C190: 2 | D190: 0.01 | E190: 0.10 | F190: =IF($D$230*E190>$F$227,$F$227,$D$230*E190) -> 3.22 | G190: =IF(($F$242/($F190^($D$236)))^(1/$D$237)>$F$228,$G$186,$F190) -> 20.78 | H190: =($F$242/($G190^($D$236)))^(1/$D$237) -> 95.00 | I190: =IF(($K$234/($F190^($D$236)))^(1/$D$237)>$F$228,$I$186,F190) -> 5.20 | J190: =($K$234/($I190^($D$236)))^(1/$D$237) -> 95.00 | K190: =IF(($K$245/($F190^($D$236)))^(1/$D$237)>$F$228,$K$186,F190) -> 13.30 | L190: =($K$245/($K190^($D$236)))^(1/$D$237) -> 95.00 | M190: =IF(($Q$234/($F190^($D$236)))^(1/$D$237)>$F$228,$M$186,F190) -> 27.15 | N190: =($Q$234/($M190^($D$236)))^(1/$D$237) -> 95.00 | O190: =IF(($Q$245/($F190^($D$236)))^(1/$D$237)>$F$228,$O$186,F190) -> 36.46 | P190: =($Q$245/($O190^($D$236)))^(1/$D$237) -> 95.00 | Q190: =IF(($D$229/($F190^($D$236)))^(1/$D$237)>$F$228,$Q$186,F190) -> 19.73684211 | R190: =($D$229/($Q190^($D$236)))^(1/$D$237) -> 95.00 | S190: =IF(B190>$F$228,1,0) -> 1 | T190: =D190*$F$227 -> 0.50 | U190: =$D$228 -> 75.00 | V190: =$D$227 -> 25.00 | W190: =$F$228*D190 -> 0.95 | X190: =$D$231 -> 61.25 | Y190: =$D$230 -> 32.24 | Z190: =$D$227 -> 25.00 | AA190: =$F$228*J190 -> 9,025.00 | AB190: =$F$227 -> 50.00 | AC190: =$F$228 -> 95.00 | AD190: 0 | AF190: =$E190*$E$230 -> 1.78 | AG190: =(($E$232)/(AF190^($E$238)))^(1/$E$239) -> 337.50 | AH190: =AF190*-1 -> (1.78) | AI190: =AG190*-1 -> (337.50) | AJ190: =AH190+($AF$199*2)+($D$230-$E$230) -> 48.22 | AK190: =AI190+($E$231*2)+($D$231-$E$231) -> (242.50) | AM190: =$E190*$AM$232 -> 3.39 | AN190: =(($AM$234)/(AM190^($E$238)))^(1/$E$239) -> 643.75 | AO190: =AM190*-1 -> (3.39) | AP190: =AN190*-1 -> (643.75) | AQ190: =AO190+($AM$199*2)+($AL$232-$AM$232) -> 46.61 | AR190: =AP190+($AN$199*2)+($AL$233-$AM$233) -> (548.75) | AT190: =$E190*$AM$243 -> 2.42 | AU190: =(($AM$245)/(AT190^($E$238)))^(1/$E$239) -> 460.00 | AV190: =AT190*-1 -> (2.42) | AW190: =AU190*-1 -> (460.00) | AX190: =AV190+($AT$199*2)+($AL$243-$AM$243) -> 47.58 | AY190: =AW190+($AU$199*2)+($AL$244-$AM$244) -> (365.00) | BB190: =$E190*$BC$232 -> 1.32 | BC190: =(($BC$234)/(BB190^($E$238)))^(1/$E$239) -> 250.00 | BD190: =BB190*-1 -> (1.32) | BE190: =BC190*-1 -> (250.00) | BF190: =BD190+($BB$199*2)+($BB$232-$BC$232) -> 48.68 | BG190: =BE190+($BC$199*2)+($BB$233-$BC$233) -> (155.00) | BI190: =$E190*$BC$243 -> 0.73 | BJ190: =(($BC$245)/(BI190^($E$238)))^(1/$E$239) -> 138.75 | BK190: =BI190*-1 -> (0.73) | BL190: =BJ190*-1 -> (138.75) | BM190: =BK190+($BI$199*2)+($BB$243-$BC$243) -> 49.27 | BN190: =BL190+($BJ$199*2)+($BB$244-$BC$244) -> (43.75) | BP190: =$E190*$BL$230 -> 2.50 | BQ190: =(($BL$232)/(BP190^($E$238)))^(1/$E$239) -> 200.00 | BR190: =BP190*-1 -> (2.50) | BS190: =BQ190*-1 -> (200.00) | BT190: =BR190+($BP$199*2)+($BK$230-$BL$230) -> 47.50 | BU190: =BS190+($BQ$199*2)+($BK$231-$BL$231) -> (105.00)
A191: 6.45 | B191: 306.25 | C191: 3 | D191: 0.10 | E191: 0.20 | F191: 6.45 | G191: 20.78 | H191: 95.00 | I191: 6.45 | J191: 76.56 | K191: 13.30 | L191: 95.00 | M191: 27.15 | N191: 95.00 | O191: 36.46 | P191: 95.00 | Q191: 19.73684211 | R191: 95.00 | S191: 1 | T191: 5.00 | U191: 75.00 | V191: 25.00 | W191: 9.50 | X191: 61.25 | Y191: 32.24 | Z191: 25.00 | AA191: 7,273.44 | AB191: 50.00 | AC191: 95.00 | AD191: 0 | AF191: 3.55 | AG191: 168.75 | AH191: (3.55) | AI191: (168.75) | AJ191: 46.45 | AK191: (73.75) | AM191: 6.78 | AN191: 321.88 | AO191: (6.78) | AP191: (321.88) | AQ191: 43.22 | AR191: (226.88) | AT191: 4.84 | AU191: 230.00 | AV191: (4.84) | AW191: (230.00) | AX191: 45.16 | AY191: (135.00) | BB191: 2.63 | BC191: 125.00 | BD191: (2.63) | BE191: (125.00) | BF191: 47.37 | BG191: (30.00) | BI191: 1.46 | BJ191: 69.38 | BK191: (1.46) | BL191: (69.38) | BM191: 48.54 | BN191: 25.63 | BP191: 5.00 | BQ191: 100.00 | BR191: (5.00) | BS191: (100.00) | BT191: 45.00 | BU191: (5.00)
A192: 9.67 | B192: 204.17 | C192: 4 | D192: 0.15 | E192: 0.30 | F192: 9.67 | G192: 20.78 | H192: 95.00 | I192: 9.67 | J192: 51.04 | K192: 13.30 | L192: 95.00 | M192: 27.15 | N192: 95.00 | O192: 36.46 | P192: 95.00 | Q192: 19.73684211 | R192: 95.00 | S192: 1 | T192: 7.50 | U192: 75.00 | V192: 25.00 | W192: 14.25 | X192: 61.25 | Y192: 32.24 | Z192: 25.00 | AA192: 4,848.96 | AB192: 50.00 | AC192: 95.00 | AD192: 0 | AF192: 5.33 | AG192: 112.50 | AH192: (5.33) | AI192: (112.50) | AJ192: 44.67 | AK192: (17.50) | AM192: 10.16 | AN192: 214.58 | AO192: (10.16) | AP192: (214.58) | AQ192: 39.84 | AR192: (119.58) | AT192: 7.26 | AU192: 153.33 | AV192: (7.26) | AW192: (153.33) | AX192: 42.74 | AY192: (58.33) | BB192: 3.95 | BC192: 83.33 | BD192: (3.95) | BE192: (83.33) | BF192: 46.05 | BG192: 11.67 | BI192: 2.19 | BJ192: 46.25 | BK192: (2.19) | BL192: (46.25) | BM192: 47.81 | BN192: 48.75 | BP192: 7.50 | BQ192: 66.67 | BR192: (7.50) | BS192: (66.67) | BT192: 42.50 | BU192: 28.33
A193: 12.89 | B193: 153.13 | C193: 5 | D193: 0.20 | E193: 0.40 | F193: 12.89 | G193: 20.78 | H193: 95.00 | I193: 12.89 | J193: 38.28 | K193: 13.30 | L193: 95.00 | M193: 27.15 | N193: 95.00 | O193: 36.46 | P193: 95.00 | Q193: 19.73684211 | R193: 95.00 | S193: 1 | T193: 10.00 | U193: 75.00 | V193: 25.00 | W193: 19.00 | X193: 61.25 | Y193: 32.24 | Z193: 25.00 | AA193: 3,636.72 | AB193: 50.00 | AC193: 95.00 | AD193: 0 | AF193: 7.11 | AG193: 84.38 | AH193: (7.11) | AI193: (84.38) | AJ193: 42.89 | AK193: 10.63 | AM193: 13.55 | AN193: 160.94 | AO193: (13.55) | AP193: (160.94) | AQ193: 36.45 | AR193: (65.94) | AT193: 9.68 | AU193: 115.00 | AV193: (9.68) | AW193: (115.00) | AX193: 40.32 | AY193: (20.00) | BB193: 5.26 | BC193: 62.50 | BD193: (5.26) | BE193: (62.50) | BF193: 44.74 | BG193: 32.50 | BI193: 2.92 | BJ193: 34.69 | BK193: (2.92) | BL193: (34.69) | BM193: 47.08 | BN193: 60.31 | BP193: 10.00 | BQ193: 50.00 | BR193: (10.00) | BS193: (50.00) | BT193: 40.00 | BU193: 45.00
A194: 16.12 | B194: 122.50 | C194: 6 | D194: 0.25 | E194: 0.50 | F194: 16.12 | G194: 20.78 | H194: 95.00 | I194: 16.12 | J194: 30.63 | K194: 16.12 | L194: 78.40 | M194: 27.15 | N194: 95.00 | O194: 36.46 | P194: 95.00 | Q194: 19.73684211 | R194: 95.00 | S194: =IF(B194>$F$228,1,0) -> 1 | T194: 12.50 | U194: 75.00 | V194: 25.00 | W194: 23.75 | X194: 61.25 | Y194: 32.24 | Z194: 25.00 | AA194: 2,909.38 | AB194: 50.00 | AC194: 95.00 | AD194: 0 | AF194: 8.88 | AG194: 67.50 | AH194: (8.88) | AI194: (67.50) | AJ194: 41.12 | AK194: 27.50 | AM194: 16.94 | AN194: 128.75 | AO194: (16.94) | AP194: (128.75) | AQ194: 33.06 | AR194: (33.75) | AT194: 12.11 | AU194: 92.00 | AV194: (12.11) | AW194: (92.00) | AX194: 37.89 | AY194: 3.00 | BB194: 6.58 | BC194: 50.00 | BD194: (6.58) | BE194: (50.00) | BF194: 43.42 | BG194: 45.00 | BI194: 3.65 | BJ194: 27.75 | BK194: (3.65) | BL194: (27.75) | BM194: 46.35 | BN194: 67.25 | BP194: 12.50 | BQ194: 40.00 | BR194: (12.50) | BS194: (40.00) | BT194: 37.50 | BU194: 55.00
A195: 19.34 | B195: 102.08 | C195: 7 | D195: 0.30 | E195: 0.60 | F195: 19.34 | G195: 20.78 | H195: 95.00 | I195: 19.34 | J195: 25.52 | K195: 19.34 | L195: 65.33 | M195: 27.15 | N195: 95.00 | O195: 36.46 | P195: 95.00 | Q195: 19.73684211 | R195: 95.00 | S195: 1 | T195: 15.00 | U195: 75.00 | V195: 25.00 | W195: 28.50 | X195: 61.25 | Y195: 32.24 | Z195: 25.00 | AA195: 2,424.48 | AB195: 50.00 | AC195: 95.00 | AD195: 0 | AF195: 10.66 | AG195: 56.25 | AH195: (10.66) | AI195: (56.25) | AJ195: 39.34 | AK195: 38.75 | AM195: 20.33 | AN195: 107.29 | AO195: (20.33) | AP195: (107.29) | AQ195: 29.67 | AR195: (12.29) | AT195: 14.53 | AU195: 76.67 | AV195: (14.53) | AW195: (76.67) | AX195: 35.47 | AY195: 18.33 | BB195: 7.89 | BC195: 41.67 | BD195: (7.89) | BE195: (41.67) | BF195: 42.11 | BG195: 53.33 | BI195: 4.38 | BJ195: 23.13 | BK195: (4.38) | BL195: (23.13) | BM195: 45.62 | BN195: 71.88 | BP195: 15.00 | BQ195: 33.33 | BR195: (15.00) | BS195: (33.33) | BT195: 35.00 | BU195: 61.67
A196: 22.57 | B196: 87.50 | C196: 8 | D196: 0.35 | E196: 0.70 | F196: 22.57 | G196: 22.57 | H196: 87.50 | I196: 22.57 | J196: 21.88 | K196: 22.57 | L196: 56.00 | M196: 27.15 | N196: 95.00 | O196: 36.46 | P196: 95.00 | Q196: 22.56578947 | R196: 83.09 | S196: 0 | T196: 17.50 | U196: 75.00 | V196: 25.00 | W196: 33.25 | X196: 61.25 | Y196: 32.24 | Z196: 25.00 | AA196: 2,078.13 | AB196: 50.00 | AC196: 95.00 | AD196: 0 | AF196: 12.43 | AG196: 48.21 | AH196: (12.43) | AI196: (48.21) | AJ196: 37.57 | AK196: 46.79 | AM196: 23.72 | AN196: 91.96 | AO196: (23.72) | AP196: (91.96) | AQ196: 26.28 | AR196: 3.04 | AT196: 16.95 | AU196: 65.71 | AV196: (16.95) | AW196: (65.71) | AX196: 33.05 | AY196: 29.29 | BB196: 9.21 | BC196: 35.71 | BD196: (9.21) | BE196: (35.71) | BF196: 40.79 | BG196: 59.29 | BI196: 5.11 | BJ196: 19.82 | BK196: (5.11) | BL196: (19.82) | BM196: 44.89 | BN196: 75.18 | BP196: 17.50 | BQ196: 28.57 | BR196: (17.50) | BS196: (28.57) | BT196: 32.50 | BU196: 66.43
A197: 25.79 | B197: 76.56 | C197: 9 | D197: 0.40 | E197: 0.80 | F197: 25.79 | G197: 25.79 | H197: 76.56 | I197: 25.79 | J197: 19.14 | K197: 25.79 | L197: 49.00 | M197: 27.15 | N197: 95.00 | O197: 36.46 | P197: 95.00 | Q197: 25.78947368 | R197: 72.70 | S197: 0 | T197: 20.00 | U197: 75.00 | V197: 25.00 | W197: 38.00 | X197: 61.25 | Y197: 32.24 | Z197: 25.00 | AA197: 1,818.36 | AB197: 50.00 | AC197: 95.00 | AD197: 0 | AF197: 14.21 | AG197: 42.19 | AH197: (14.21) | AI197: (42.19) | AJ197: 35.79 | AK197: 52.81 | AM197: 27.11 | AN197: 80.47 | AO197: (27.11) | AP197: (80.47) | AQ197: 22.89 | AR197: 14.53 | AT197: 19.37 | AU197: 57.50 | AV197: (19.37) | AW197: (57.50) | AX197: 30.63 | AY197: 37.50 | BB197: 10.53 | BC197: 31.25 | BD197: (10.53) | BE197: (31.25) | BF197: 39.47 | BG197: 63.75 | BI197: 5.84 | BJ197: 17.34 | BK197: (5.84) | BL197: (17.34) | BM197: 44.16 | BN197: 77.66 | BP197: 20.00 | BQ197: 25.00 | BR197: (20.00) | BS197: (25.00) | BT197: 30.00 | BU197: 70.00
A198: 29.01 | B198: 68.06 | C198: 10 | D198: 0.45 | E198: 0.90 | F198: 29.01 | G198: 29.01 | H198: 68.06 | I198: 29.01 | J198: 17.01 | K198: 29.01 | L198: 43.56 | M198: 29.01 | N198: 88.89 | O198: 36.46 | P198: 95.00 | Q198: 29.01315789 | R198: 64.63 | S198: 0 | T198: 22.50 | U198: 75.00 | V198: 25.00 | W198: 42.75 | X198: 61.25 | Y198: 32.24 | Z198: 25.00 | AA198: 1,616.32 | AB198: 50.00 | AC198: 95.00 | AD198: 0 | AF198: 15.99 | AG198: 37.50 | AH198: (15.99) | AI198: (37.50) | AJ198: 34.01 | AK198: 57.50 | AM198: 30.49 | AN198: 71.53 | AO198: (30.49) | AP198: (71.53) | AQ198: 19.51 | AR198: 23.47 | AT198: 21.79 | AU198: 51.11 | AV198: (21.79) | AW198: (51.11) | AX198: 28.21 | AY198: 43.89 | BB198: 11.84 | BC198: 27.78 | BD198: (11.84) | BE198: (27.78) | BF198: 38.16 | BG198: 67.22 | BI198: 6.57 | BJ198: 15.42 | BK198: (6.57) | BL198: (15.42) | BM198: 43.43 | BN198: 79.58 | BP198: 22.50 | BQ198: 22.22 | BR198: (22.50) | BS198: (22.22) | BT198: 27.50 | BU198: 72.78
A199: 32.24 | B199: =($F$242/($F199^($D$236)))^(1/$D$237) -> 61.25 | C199: 11 | D199: 0.50 | E199: 1.00 | F199: 32.24 | G199: 32.24 | H199: 61.25 | I199: 32.24 | J199: 15.31 | K199: 32.24 | L199: 39.20 | M199: 32.24 | N199: 80.00 | O199: 36.46 | P199: 95.00 | Q199: 32.23684211 | R199: 58.16 | T199: 25.00 | U199: 75.00 | V199: 25.00 | W199: 47.50 | X199: 61.25 | Y199: 32.24 | Z199: 25.00 | AA199: 1,454.69 | AB199: 50.00 | AC199: 95.00 | AD199: 0 | AF199: 17.76 | AG199: 33.75 | AH199: (17.76) | AI199: (33.75) | AJ199: 32.24 | AK199: 61.25 | AM199: 33.88 | AN199: 64.38 | AO199: (33.88) | AP199: (64.38) | AQ199: 16.12 | AR199: 30.63 | AT199: 24.21 | AU199: 46.00 | AV199: (24.21) | AW199: (46.00) | AX199: 25.79 | AY199: 49.00 | BB199: 13.16 | BC199: 25.00 | BD199: (13.16) | BE199: (25.00) | BF199: 36.84 | BG199: 70.00 | BI199: 7.30 | BJ199: 13.88 | BK199: (7.30) | BL199: (13.88) | BM199: 42.70 | BN199: 81.13 | BP199: 25.00 | BQ199: 20.00 | BR199: (25.00) | BS199: (20.00) | BT199: 25.00 | BU199: 75.00
A200: 35.46 | B200: 55.68 | C200: 12 | D200: 0.55 | E200: 1.10 | F200: 35.46 | G200: 35.46 | H200: 55.68 | I200: 35.46 | J200: 13.92 | K200: 35.46 | L200: 35.64 | M200: 35.46 | N200: 72.73 | O200: 36.46 | P200: 95.00 | Q200: 35.46052632 | R200: 52.88 | T200: 27.50 | U200: 75.00 | V200: 25.00 | W200: 52.25 | X200: 61.25 | Y200: 32.24 | Z200: 25.00 | AA200: 1,322.44 | AB200: 50.00 | AC200: 95.00 | AD200: 0 | AF200: 19.54 | AG200: 30.68 | AH200: (19.54) | AI200: (30.68) | AJ200: 30.46 | AK200: 64.32 | AM200: 37.27 | AN200: 58.52 | AO200: (37.27) | AP200: (58.52) | AQ200: 12.73 | AR200: 36.48 | AT200: 26.63 | AU200: 41.82 | AV200: (26.63) | AW200: (41.82) | AX200: 23.37 | AY200: 53.18 | BB200: 14.47 | BC200: 22.73 | BD200: (14.47) | BE200: (22.73) | BF200: 35.53 | BG200: 72.27 | BI200: 8.03 | BJ200: 12.61 | BK200: (8.03) | BL200: (12.61) | BM200: 41.97 | BN200: 82.39 | BP200: 27.50 | BQ200: 18.18 | BR200: (27.50) | BS200: (18.18) | BT200: 22.50 | BU200: 76.82
A201: 38.68 | B201: 51.04 | C201: 13 | D201: 0.60 | E201: 1.20 | F201: 38.68 | G201: 38.68 | H201: 51.04 | I201: 38.68 | J201: 12.76 | K201: 38.68 | L201: 32.67 | M201: 38.68 | N201: 66.67 | O201: 38.68 | P201: 89.54 | Q201: 38.68421053 | R201: 48.47 | T201: 30.00 | U201: 75.00 | V201: 25.00 | W201: 57.00 | X201: 61.25 | Y201: 32.24 | Z201: 25.00 | AA201: 1,212.24 | AB201: 50.00 | AC201: 95.00 | AD201: 0 | AF201: 21.32 | AG201: 28.13 | AH201: (21.32) | AI201: (28.13) | AJ201: 28.68 | AK201: 66.88 | AM201: 40.66 | AN201: 53.65 | AO201: (40.66) | AP201: (53.65) | AQ201: 9.34 | AR201: 41.35 | AT201: 29.05 | AU201: 38.33 | AV201: (29.05) | AW201: (38.33) | AX201: 20.95 | AY201: 56.67 | BB201: 15.79 | BC201: 20.83 | BD201: (15.79) | BE201: (20.83) | BF201: 34.21 | BG201: 74.17 | BI201: 8.76 | BJ201: 11.56 | BK201: (8.76) | BL201: (11.56) | BM201: 41.24 | BN201: 83.44 | BP201: 30.00 | BQ201: 16.67 | BR201: (30.00) | BS201: (16.67) | BT201: 20.00 | BU201: 78.33
A202: 41.91 | B202: 47.12 | C202: 14 | D202: 0.65 | E202: 1.30 | F202: 41.91 | G202: 41.91 | H202: 47.12 | I202: 41.91 | J202: 11.78 | K202: 41.91 | L202: 30.15 | M202: 41.91 | N202: 61.54 | O202: 41.91 | P202: 82.65 | Q202: 41.90789474 | R202: 44.74 | T202: 32.50 | U202: 75.00 | V202: 25.00 | W202: 61.75 | X202: 61.25 | Y202: 32.24 | Z202: 25.00 | AA202: 1,118.99 | AB202: 50.00 | AC202: 95.00 | AD202: 0 | AF202: 23.09 | AG202: 25.96 | AH202: (23.09) | AI202: (25.96) | AJ202: 26.91 | AK202: 69.04 | AM202: 44.05 | AN202: 49.52 | AO202: (44.05) | AP202: (49.52) | AQ202: 5.95 | AR202: 45.48 | AT202: 31.47 | AU202: 35.38 | AV202: (31.47) | AW202: (35.38) | AX202: 18.53 | AY202: 59.62 | BB202: 17.11 | BC202: 19.23 | BD202: (17.11) | BE202: (19.23) | BF202: 32.89 | BG202: 75.77 | BI202: 9.49 | BJ202: 10.67 | BK202: (9.49) | BL202: (10.67) | BM202: 40.51 | BN202: 84.33 | BP202: 32.50 | BQ202: 15.38 | BR202: (32.50) | BS202: (15.38) | BT202: 17.50 | BU202: 79.62
A203: 45.13 | B203: 43.75 | C203: 15 | D203: 0.70 | E203: 1.40 | F203: 45.13 | G203: 45.13 | H203: 43.75 | I203: 45.13 | J203: 10.94 | K203: 45.13 | L203: 28.00 | M203: 45.13 | N203: 57.14 | O203: 45.13 | P203: 76.75 | Q203: 45.13157895 | R203: 41.55 | T203: 35.00 | U203: 75.00 | V203: 25.00 | W203: 66.50 | X203: 61.25 | Y203: 32.24 | Z203: 25.00 | AA203: 1,039.06 | AB203: 50.00 | AC203: 95.00 | AD203: 0 | AF203: 24.87 | AG203: 24.11 | AH203: (24.87) | AI203: (24.11) | AJ203: 25.13 | AK203: 70.89 | AM203: 47.43 | AN203: 45.98 | AO203: (47.43) | AP203: (45.98) | AQ203: 2.57 | AR203: 49.02 | AT203: 33.89 | AU203: 32.86 | AV203: (33.89) | AW203: (32.86) | AX203: 16.11 | AY203: 62.14 | BB203: 18.42 | BC203: 17.86 | BD203: (18.42) | BE203: (17.86) | BF203: 31.58 | BG203: 77.14 | BI203: 10.22 | BJ203: 9.91 | BK203: (10.22) | BL203: (9.91) | BM203: 39.78 | BN203: 85.09 | BP203: 35.00 | BQ203: 14.29 | BR203: (35.00) | BS203: (14.29) | BT203: 15.00 | BU203: 80.71
A204: 48.36 | B204: 40.83 | C204: 16 | D204: 0.75 | E204: 1.50 | F204: 48.36 | G204: 48.36 | H204: 40.83 | I204: 48.36 | J204: 10.21 | K204: 48.36 | L204: 26.13 | M204: 48.36 | N204: 53.33 | O204: 48.36 | P204: 71.63 | Q204: 48.35526316 | R204: 38.78 | T204: 37.50 | U204: 75.00 | V204: 25.00 | W204: 71.25 | X204: 61.25 | Y204: 32.24 | Z204: 25.00 | AA204: 969.79 | AB204: 50.00 | AC204: 95.00 | AD204: 0 | AF204: 26.64 | AG204: 22.50 | AH204: (26.64) | AI204: (22.50) | AJ204: 23.36 | AK204: 72.50 | AM204: 50.82 | AN204: 42.92 | AO204: (50.82) | AP204: (42.92) | AQ204: (0.82) | AR204: 52.08 | AT204: 36.32 | AU204: 30.67 | AV204: (36.32) | AW204: (30.67) | AX204: 13.68 | AY204: 64.33 | BB204: 19.74 | BC204: 16.67 | BD204: (19.74) | BE204: (16.67) | BF204: 30.26 | BG204: 78.33 | BI204: 10.95 | BJ204: 9.25 | BK204: (10.95) | BL204: (9.25) | BM204: 39.05 | BN204: 85.75 | BP204: 37.50 | BQ204: 13.33 | BR204: (37.50) | BS204: (13.33) | BT204: 12.50 | BU204: 81.67
A205: 51.58 | B205: 39.49 | C205: 17 | D205: 0.80 | E205: 1.60 | F205: 50.00 | G205: 50.00 | H205: 39.49 | I205: 50.00 | J205: 9.87 | K205: 50.00 | L205: 25.27 | M205: 50.00 | N205: 51.58 | O205: 50.00 | P205: 69.28 | Q205: 50 | R205: 37.50 | T205: 40.00 | U205: 75.00 | V205: 25.00 | W205: 76.00 | X205: 61.25 | Y205: 32.24 | Z205: 25.00 | AA205: 937.89 | AB205: 50.00 | AC205: 95.00 | AD205: 0 | AF205: 28.42 | AG205: 21.09 | AH205: (28.42) | AI205: (21.09) | AJ205: 21.58 | AK205: 73.91 | AM205: 54.21 | AN205: 40.23 | AO205: (54.21) | AP205: (40.23) | AQ205: (4.21) | AR205: 54.77 | AT205: 38.74 | AU205: 28.75 | AV205: (38.74) | AW205: (28.75) | AX205: 11.26 | AY205: 66.25 | BB205: 21.05 | BC205: 15.63 | BD205: (21.05) | BE205: (15.63) | BF205: 28.95 | BG205: 79.38 | BI205: 11.68 | BJ205: 8.67 | BK205: (11.68) | BL205: (8.67) | BM205: 38.32 | BN205: 86.33 | BP205: 40.00 | BQ205: 12.50 | BR205: (40.00) | BS205: (12.50) | BT205: 10.00 | BU205: 82.50
A206: 54.80 | B206: 39.49 | C206: 18 | D206: 0.85 | E206: 1.70 | F206: 50.00 | G206: 50.00 | H206: 39.49 | I206: 50.00 | J206: 9.87 | K206: 50.00 | L206: 25.27 | M206: 50.00 | N206: 51.58 | O206: 50.00 | P206: 69.28 | Q206: 50 | R206: 37.50 | T206: 42.50 | U206: 75.00 | V206: 25.00 | W206: 80.75 | X206: 61.25 | Y206: 32.24 | Z206: 25.00 | AA206: 937.89 | AB206: 50.00 | AC206: 95.00 | AD206: 0 | AF206: 30.20 | AG206: 19.85 | AH206: (30.20) | AI206: (19.85) | AJ206: 19.80 | AK206: 75.15 | AM206: 57.60 | AN206: 37.87 | AO206: (57.60) | AP206: (37.87) | AQ206: (7.60) | AR206: 57.13 | AT206: 41.16 | AU206: 27.06 | AV206: (41.16) | AW206: (27.06) | AX206: 8.84 | AY206: 67.94 | BB206: 22.37 | BC206: 14.71 | BD206: (22.37) | BE206: (14.71) | BF206: 27.63 | BG206: 80.29 | BI206: 12.41 | BJ206: 8.16 | BK206: (12.41) | BL206: (8.16) | BM206: 37.59 | BN206: 86.84 | BP206: 42.50 | BQ206: 11.76 | BR206: (42.50) | BS206: (11.76) | BT206: 7.50 | BU206: 83.24
A207: 58.03 | B207: 39.49 | C207: 19 | D207: 0.90 | E207: 1.80 | F207: 50.00 | G207: 50.00 | H207: 39.49 | I207: 50.00 | J207: 9.87 | K207: 50.00 | L207: 25.27 | M207: 50.00 | N207: 51.58 | O207: 50.00 | P207: 69.28 | Q207: 50 | R207: 37.50 | T207: 45.00 | U207: 75.00 | V207: 25.00 | W207: 85.50 | X207: 61.25 | Y207: 32.24 | Z207: 25.00 | AA207: 937.89 | AB207: 50.00 | AC207: 95.00 | AD207: 0 | AF207: 31.97 | AG207: 18.75 | AH207: (31.97) | AI207: (18.75) | AJ207: 18.03 | AK207: 76.25 | AM207: 60.99 | AN207: 35.76 | AO207: (60.99) | AP207: (35.76) | AQ207: (10.99) | AR207: 59.24 | AT207: 43.58 | AU207: 25.56 | AV207: (43.58) | AW207: (25.56) | AX207: 6.42 | AY207: 69.44 | BB207: 23.68 | BC207: 13.89 | BD207: (23.68) | BE207: (13.89) | BF207: 26.32 | BG207: 81.11 | BI207: 13.14 | BJ207: 7.71 | BK207: (13.14) | BL207: (7.71) | BM207: 36.86 | BN207: 87.29 | BP207: 45.00 | BQ207: 11.11 | BR207: (45.00) | BS207: (11.11) | BT207: 5.00 | BU207: 83.89
A208: 61.25 | B208: 39.49 | C208: 20 | D208: 0.95 | E208: 1.90 | F208: 50.00 | G208: 50.00 | H208: 39.49 | I208: 50.00 | J208: 9.87 | K208: 50.00 | L208: 25.27 | M208: 50.00 | N208: 51.58 | O208: 50.00 | P208: 69.28 | Q208: 50 | R208: 37.50 | T208: 47.50 | U208: 75.00 | V208: 25.00 | W208: 90.25 | X208: 61.25 | Y208: 32.24 | Z208: 25.00 | AA208: 937.89 | AB208: 50.00 | AC208: 95.00 | AD208: 0 | AF208: 33.75 | AG208: 17.76 | AH208: (33.75) | AI208: (17.76) | AJ208: 16.25 | AK208: 77.24 | AM208: 64.38 | AN208: 33.88 | AO208: (64.38) | AP208: (33.88) | AQ208: (14.38) | AR208: 61.12 | AT208: 46.00 | AU208: 24.21 | AV208: (46.00) | AW208: (24.21) | AX208: 4.00 | AY208: 70.79 | BB208: 25.00 | BC208: 13.16 | BD208: (25.00) | BE208: (13.16) | BF208: 25.00 | BG208: 81.84 | BI208: 13.88 | BJ208: 7.30 | BK208: (13.88) | BL208: (7.30) | BM208: 36.13 | BN208: 87.70 | BP208: 47.50 | BQ208: 10.53 | BR208: (47.50) | BS208: (10.53) | BT208: 2.50 | BU208: 84.47
A209: 64.47 | B209: 39.49 | C209: 21 | D209: 1.00 | E209: 2.00 | F209: 50.00 | G209: 50.00 | H209: 39.49 | I209: 50.00 | J209: 9.87 | K209: 50.00 | L209: 25.27 | M209: 50.00 | N209: 51.58 | O209: 50.00 | P209: 69.28 | Q209: 50 | R209: 37.50 | T209: 50.00 | U209: 75.00 | V209: 25.00 | W209: 95.00 | X209: 61.25 | Y209: 32.24 | Z209: 25.00 | AA209: 937.89 | AB209: 50.00 | AC209: 95.00 | AD209: 0 | AF209: 35.53 | AG209: 16.88 | AH209: (35.53) | AI209: (16.88) | AJ209: 14.47 | AK209: 78.13 | AM209: 67.76 | AN209: 32.19 | AO209: (67.76) | AP209: (32.19) | AQ209: (17.76) | AR209: 62.81 | AT209: 48.42 | AU209: 23.00 | AV209: (48.42) | AW209: (23.00) | AX209: 1.58 | AY209: 72.00 | BB209: 26.32 | BC209: 12.50 | BD209: (26.32) | BE209: (12.50) | BF209: 23.68 | BG209: 82.50 | BI209: 14.61 | BJ209: 6.94 | BK209: (14.61) | BL209: (6.94) | BM209: 35.39 | BN209: 88.06 | BP209: 50.00 | BQ209: 10.00 | BR209: (50.00) | BS209: (10.00) | BT209: 0 | BU209: 85.00
A210: 67.70 | B210: 39.49 | C210: 22 | D210: 1.05 | E210: 2.10 | F210: 50.00 | G210: 50.00 | H210: 39.49 | I210: 50.00 | J210: 9.87 | K210: 50.00 | L210: 25.27 | M210: 50.00 | N210: 51.58 | O210: 50.00 | P210: 69.28 | Q210: 50 | R210: 37.50 | T210: 52.50 | U210: 75.00 | V210: 25.00 | W210: 99.75 | X210: 61.25 | Y210: 32.24 | Z210: 25.00 | AA210: 937.89 | AB210: 50.00 | AC210: 95.00 | AD210: 0 | AF210: 37.30 | AG210: 16.07 | AH210: (37.30) | AI210: (16.07) | AJ210: 12.70 | AK210: 78.93 | AM210: 71.15 | AN210: 30.65 | AO210: (71.15) | AP210: (30.65) | AQ210: (21.15) | AR210: 64.35 | AT210: 50.84 | AU210: 21.90 | AV210: (50.84) | AW210: (21.90) | AX210: (0.84) | AY210: 73.10 | BB210: 27.63 | BC210: 11.90 | BD210: (27.63) | BE210: (11.90) | BF210: 22.37 | BG210: 83.10 | BI210: 15.34 | BJ210: 6.61 | BK210: (15.34) | BL210: (6.61) | BM210: 34.66 | BN210: 88.39 | BP210: 52.50 | BQ210: 9.52 | BR210: (52.50) | BS210: (9.52) | BT210: (2.50) | BU210: 85.48
A211: 70.92 | B211: 39.49 | C211: 23 | D211: 1.10 | E211: 2.20 | F211: 50.00 | G211: 50.00 | H211: 39.49 | I211: 50.00 | J211: 9.87 | K211: 50.00 | L211: 25.27 | M211: 50.00 | N211: 51.58 | O211: 50.00 | P211: 69.28 | Q211: 50 | R211: 37.50 | T211: 55.00 | U211: 75.00 | V211: 25.00 | W211: 104.50 | X211: 61.25 | Y211: 32.24 | Z211: 25.00 | AA211: 937.89 | AB211: 50.00 | AC211: 95.00 | AD211: 0 | AF211: 39.08 | AG211: 15.34 | AH211: (39.08) | AI211: (15.34) | AJ211: 10.92 | AK211: 79.66 | AM211: 74.54 | AN211: 29.26 | AO211: (74.54) | AP211: (29.26) | AQ211: (24.54) | AR211: 65.74 | AT211: 53.26 | AU211: 20.91 | AV211: (53.26) | AW211: (20.91) | AX211: (3.26) | AY211: 74.09 | BB211: 28.95 | BC211: 11.36 | BD211: (28.95) | BE211: (11.36) | BF211: 21.05 | BG211: 83.64 | BI211: 16.07 | BJ211: 6.31 | BK211: (16.07) | BL211: (6.31) | BM211: 33.93 | BN211: 88.69 | BP211: 55.00 | BQ211: 9.09 | BR211: (55.00) | BS211: (9.09) | BT211: (5.00) | BU211: 85.91
A212: 74.14 | B212: 39.49 | C212: 24 | D212: 1.15 | E212: 2.30 | F212: 50.00 | G212: 50.00 | H212: 39.49 | I212: 50.00 | J212: 9.87 | K212: 50.00 | L212: 25.27 | M212: 50.00 | N212: 51.58 | O212: 50.00 | P212: 69.28 | Q212: 50 | R212: 37.50 | T212: 57.50 | U212: 75.00 | V212: 25.00 | W212: 109.25 | X212: 61.25 | Y212: 32.24 | Z212: 25.00 | AA212: 937.89 | AB212: 50.00 | AC212: 95.00 | AD212: 0 | AF212: 40.86 | AG212: 14.67 | AH212: (40.86) | AI212: (14.67) | AJ212: 9.14 | AK212: 80.33 | AM212: 77.93 | AN212: 27.99 | AO212: (77.93) | AP212: (27.99) | AQ212: (27.93) | AR212: 67.01 | AT212: 55.68 | AU212: 20.00 | AV212: (55.68) | AW212: (20.00) | AX212: (5.68) | AY212: 75.00 | BB212: 30.26 | BC212: 10.87 | BD212: (30.26) | BE212: (10.87) | BF212: 19.74 | BG212: 84.13 | BI212: 16.80 | BJ212: 6.03 | BK212: (16.80) | BL212: (6.03) | BM212: 33.20 | BN212: 88.97 | BP212: 57.50 | BQ212: 8.70 | BR212: (57.50) | BS212: (8.70) | BT212: (7.50) | BU212: 86.30
A213: 77.37 | B213: 39.49 | C213: 25 | D213: 1.20 | E213: 2.40 | F213: 50.00 | G213: 50.00 | H213: 39.49 | I213: 50.00 | J213: 9.87 | K213: 50.00 | L213: 25.27 | M213: 50.00 | N213: 51.58 | O213: 50.00 | P213: 69.28 | Q213: 50 | R213: 37.50 | T213: 60.00 | U213: 75.00 | V213: 25.00 | W213: 114.00 | X213: 61.25 | Y213: 32.24 | Z213: 25.00 | AA213: 937.89 | AB213: 50.00 | AC213: 95.00 | AD213: 0 | AF213: 42.63 | AG213: 14.06 | AH213: (42.63) | AI213: (14.06) | AJ213: 7.37 | AK213: 80.94 | AM213: 81.32 | AN213: 26.82 | AO213: (81.32) | AP213: (26.82) | AQ213: (31.32) | AR213: 68.18 | AT213: 58.11 | AU213: 19.17 | AV213: (58.11) | AW213: (19.17) | AX213: (8.11) | AY213: 75.83 | BB213: 31.58 | BC213: 10.42 | BD213: (31.58) | BE213: (10.42) | BF213: 18.42 | BG213: 84.58 | BI213: 17.53 | BJ213: 5.78 | BK213: (17.53) | BL213: (5.78) | BM213: 32.47 | BN213: 89.22 | BP213: 60.00 | BQ213: 8.33 | BR213: (60.00) | BS213: (8.33) | BT213: (10.00) | BU213: 86.67
A214: 80.59 | B214: 39.49 | C214: 26 | D214: 1.25 | E214: 2.50 | F214: 50.00 | G214: 50.00 | H214: 39.49 | I214: 50.00 | J214: 9.87 | K214: 50.00 | L214: 25.27 | M214: 50.00 | N214: 51.58 | O214: 50.00 | P214: 69.28 | Q214: 50 | R214: 37.50 | T214: 62.50 | U214: 75.00 | V214: 25.00 | W214: 118.75 | X214: 61.25 | Y214: 32.24 | Z214: 25.00 | AA214: 937.89 | AB214: 50.00 | AC214: 95.00 | AD214: 0 | AF214: 44.41 | AG214: 13.50 | AH214: (44.41) | AI214: (13.50) | AJ214: 5.59 | AK214: 81.50 | AM214: 84.70 | AN214: 25.75 | AO214: (84.70) | AP214: (25.75) | AQ214: (34.70) | AR214: 69.25 | AT214: 60.53 | AU214: 18.40 | AV214: (60.53) | AW214: (18.40) | AX214: (10.53) | AY214: 76.60 | BB214: 32.89 | BC214: 10.00 | BD214: (32.89) | BE214: (10.00) | BF214: 17.11 | BG214: 85.00 | BI214: 18.26 | BJ214: 5.55 | BK214: (18.26) | BL214: (5.55) | BM214: 31.74 | BN214: 89.45 | BP214: 62.50 | BQ214: 8.00 | BR214: (62.50) | BS214: (8.00) | BT214: (12.50) | BU214: 87.00
A215: 83.82 | B215: 39.49 | C215: 27 | D215: 1.30 | E215: 2.60 | F215: 50.00 | G215: 50.00 | H215: 39.49 | I215: 50.00 | J215: 9.87 | K215: 50.00 | L215: 25.27 | M215: 50.00 | N215: 51.58 | O215: 50.00 | P215: 69.28 | Q215: 50 | R215: 37.50 | T215: 65.00 | U215: 75.00 | V215: 25.00 | W215: 123.50 | X215: 61.25 | Y215: 32.24 | Z215: 25.00 | AA215: 937.89 | AB215: 50.00 | AC215: 95.00 | AD215: 0 | AF215: 46.18 | AG215: 12.98 | AH215: (46.18) | AI215: (12.98) | AJ215: 3.82 | AK215: 82.02 | AM215: 88.09 | AN215: 24.76 | AO215: (88.09) | AP215: (24.76) | AQ215: (38.09) | AR215: 70.24 | AT215: 62.95 | AU215: 17.69 | AV215: (62.95) | AW215: (17.69) | AX215: (12.95) | AY215: 77.31 | BB215: 34.21 | BC215: 9.62 | BD215: (34.21) | BE215: (9.62) | BF215: 15.79 | BG215: 85.38 | BI215: 18.99 | BJ215: 5.34 | BK215: (18.99) | BL215: (5.34) | BM215: 31.01 | BN215: 89.66 | BP215: 65.00 | BQ215: 7.69 | BR215: (65.00) | BS215: (7.69) | BT215: (15.00) | BU215: 87.31
A216: 87.04 | B216: 39.49 | C216: 28 | D216: 1.35 | E216: 2.70 | F216: 50.00 | G216: 50.00 | H216: 39.49 | I216: 50.00 | J216: 9.87 | K216: 50.00 | L216: 25.27 | M216: 50.00 | N216: 51.58 | O216: 50.00 | P216: 69.28 | Q216: 50 | R216: 37.50 | T216: 67.50 | U216: 75.00 | V216: 25.00 | W216: 128.25 | X216: 61.25 | Y216: 32.24 | Z216: 25.00 | AA216: 937.89 | AB216: 50.00 | AC216: 95.00 | AD216: 0 | AF216: 47.96 | AG216: 12.50 | AH216: (47.96) | AI216: (12.50) | AJ216: 2.04 | AK216: 82.50 | AM216: 91.48 | AN216: 23.84 | AO216: (91.48) | AP216: (23.84) | AQ216: (41.48) | AR216: 71.16 | AT216: 65.37 | AU216: 17.04 | AV216: (65.37) | AW216: (17.04) | AX216: (15.37) | AY216: 77.96 | BB216: 35.53 | BC216: 9.26 | BD216: (35.53) | BE216: (9.26) | BF216: 14.47 | BG216: 85.74 | BI216: 19.72 | BJ216: 5.14 | BK216: (19.72) | BL216: (5.14) | BM216: 30.28 | BN216: 89.86 | BP216: 67.50 | BQ216: 7.41 | BR216: (67.50) | BS216: (7.41) | BT216: (17.50) | BU216: 87.59
A217: 90.26 | B217: 39.49 | C217: 29 | D217: 1.40 | E217: 2.80 | F217: 50.00 | G217: 50.00 | H217: 39.49 | I217: 50.00 | J217: 9.87 | K217: 50.00 | L217: 25.27 | M217: 50.00 | N217: 51.58 | O217: 50.00 | P217: 69.28 | Q217: 50 | R217: 37.50 | T217: 70.00 | U217: 75.00 | V217: 25.00 | W217: 133.00 | X217: 61.25 | Y217: 32.24 | Z217: 25.00 | AA217: 937.89 | AB217: 50.00 | AC217: 95.00 | AD217: 0 | AF217: 49.74 | AG217: 12.05 | AH217: (49.74) | AI217: (12.05) | AJ217: 0.26 | AK217: 82.95 | AM217: 94.87 | AN217: 22.99 | AO217: (94.87) | AP217: (22.99) | AQ217: (44.87) | AR217: 72.01 | AT217: 67.79 | AU217: 16.43 | AV217: (67.79) | AW217: (16.43) | AX217: (17.79) | AY217: 78.57 | BB217: 36.84 | BC217: 8.93 | BD217: (36.84) | BE217: (8.93) | BF217: 13.16 | BG217: 86.07 | BI217: 20.45 | BJ217: 4.96 | BK217: (20.45) | BL217: (4.96) | BM217: 29.55 | BN217: 90.04 | BP217: 70.00 | BQ217: 7.14 | BR217: (70.00) | BS217: (7.14) | BT217: (20.00) | BU217: 87.86
A218: 93.49 | B218: 39.49 | C218: 30 | D218: 1.45 | E218: 2.90 | F218: 50.00 | G218: 50.00 | H218: 39.49 | I218: 50.00 | J218: 9.87 | K218: 50.00 | L218: 25.27 | M218: 50.00 | N218: 51.58 | O218: 50.00 | P218: 69.28 | Q218: 50 | R218: 37.50 | T218: 72.50 | U218: 75.00 | V218: 25.00 | W218: 137.75 | X218: 61.25 | Y218: 32.24 | Z218: 25.00 | AA218: 937.89 | AB218: 50.00 | AC218: 95.00 | AD218: 0 | AF218: 51.51 | AG218: 11.64 | AH218: (51.51) | AI218: (11.64) | AJ218: (1.51) | AK218: 83.36 | AM218: 98.26 | AN218: 22.20 | AO218: (98.26) | AP218: (22.20) | AQ218: (48.26) | AR218: 72.80 | AT218: 70.21 | AU218: 15.86 | AV218: (70.21) | AW218: (15.86) | AX218: (20.21) | AY218: 79.14 | BB218: 38.16 | BC218: 8.62 | BD218: (38.16) | BE218: (8.62) | BF218: 11.84 | BG218: 86.38 | BI218: 21.18 | BJ218: 4.78 | BK218: (21.18) | BL218: (4.78) | BM218: 28.82 | BN218: 90.22 | BP218: 72.50 | BQ218: 6.90 | BR218: (72.50) | BS218: (6.90) | BT218: (22.50) | BU218: 88.10
A219: 96.71 | B219: 39.49 | C219: 31 | D219: 1.50 | E219: 3.00 | F219: 50.00 | G219: 50.00 | H219: 39.49 | I219: 50.00 | J219: 9.87 | K219: 50.00 | L219: 25.27 | M219: 50.00 | N219: 51.58 | O219: 50.00 | P219: 69.28 | Q219: 50 | R219: 37.50 | T219: 75.00 | U219: 75.00 | V219: 25.00 | W219: 142.50 | X219: 61.25 | Y219: 32.24 | Z219: 25.00 | AA219: 937.89 | AB219: 50.00 | AC219: 95.00 | AD219: 0 | AF219: 53.29 | AG219: 11.25 | AH219: (53.29) | AI219: (11.25) | AJ219: (3.29) | AK219: 83.75 | AM219: 101.64 | AN219: 21.46 | AO219: (101.64) | AP219: (21.46) | AQ219: (51.64) | AR219: 73.54 | AT219: 72.63 | AU219: 15.33 | AV219: (72.63) | AW219: (15.33) | AX219: (22.63) | AY219: 79.67 | BB219: 39.47 | BC219: 8.33 | BD219: (39.47) | BE219: (8.33) | BF219: 10.53 | BG219: 86.67 | BI219: 21.91 | BJ219: 4.63 | BK219: (21.91) | BL219: (4.63) | BM219: 28.09 | BN219: 90.38 | BP219: 75.00 | BQ219: 6.67 | BR219: (75.00) | BS219: (6.67) | BT219: (25.00) | BU219: 88.33
A220: 99.93 | B220: 39.49 | C220: 32 | D220: 1.55 | E220: 3.10 | F220: 50.00 | G220: 50.00 | H220: 39.49 | I220: 50.00 | J220: 9.87 | K220: 50.00 | L220: 25.27 | M220: 50.00 | N220: 51.58 | O220: 50.00 | P220: 69.28 | Q220: 50 | R220: 37.50 | T220: 77.50 | U220: 75.00 | V220: 25.00 | W220: 147.25 | X220: 61.25 | Y220: 32.24 | Z220: 25.00 | AA220: 937.89 | AB220: 50.00 | AC220: 95.00 | AD220: 0 | AF220: 55.07 | AG220: 10.89 | AH220: (55.07) | AI220: (10.89) | AJ220: (5.07) | AK220: 84.11 | AM220: 105.03 | AN220: 20.77 | AO220: (105.03) | AP220: (20.77) | AQ220: (55.03) | AR220: 74.23 | AT220: 75.05 | AU220: 14.84 | AV220: (75.05) | AW220: (14.84) | AX220: (25.05) | AY220: 80.16 | BB220: 40.79 | BC220: 8.06 | BD220: (40.79) | BE220: (8.06) | BF220: 9.21 | BG220: 86.94 | BI220: 22.64 | BJ220: 4.48 | BK220: (22.64) | BL220: (4.48) | BM220: 27.36 | BN220: 90.52 | BP220: 77.50 | BQ220: 6.45 | BR220: (77.50) | BS220: (6.45) | BT220: (27.50) | BU220: 88.55
A221: 103.16 | B221: 39.49 | C221: 33 | D221: 1.60 | E221: 3.20 | F221: 50.00 | G221: 50.00 | H221: 39.49 | I221: 50.00 | J221: 9.87 | K221: 50.00 | L221: 25.27 | M221: 50.00 | N221: 51.58 | O221: 50.00 | P221: 69.28 | Q221: 50 | R221: 37.50 | T221: 80.00 | U221: 75.00 | V221: 25.00 | W221: 152.00 | X221: 61.25 | Y221: 32.24 | Z221: 25.00 | AA221: 937.89 | AB221: 50.00 | AC221: 95.00 | AD221: 0 | AF221: 56.84 | AG221: 10.55 | AH221: (56.84) | AI221: (10.55) | AJ221: (6.84) | AK221: 84.45 | AM221: 108.42 | AN221: 20.12 | AO221: (108.42) | AP221: (20.12) | AQ221: (58.42) | AR221: 74.88 | AT221: 77.47 | AU221: 14.38 | AV221: (77.47) | AW221: (14.38) | AX221: (27.47) | AY221: 80.63 | BB221: 42.11 | BC221: 7.81 | BD221: (42.11) | BE221: (7.81) | BF221: 7.89 | BG221: 87.19 | BI221: 23.37 | BJ221: 4.34 | BK221: (23.37) | BL221: (4.34) | BM221: 26.63 | BN221: 90.66 | BP221: 80.00 | BQ221: 6.25 | BR221: (80.00) | BS221: (6.25) | BT221: (30.00) | BU221: 88.75
A222: 106.38 | B222: 39.49 | C222: 34 | D222: 1.65 | E222: 3.30 | F222: 50.00 | G222: 50.00 | H222: 39.49 | I222: 50.00 | J222: 9.87 | K222: 50.00 | L222: 25.27 | M222: 50.00 | N222: 51.58 | O222: 50.00 | P222: 69.28 | Q222: 50 | R222: 37.50 | T222: 82.50 | U222: 75.00 | V222: 25.00 | W222: 156.75 | X222: 61.25 | Y222: 32.24 | Z222: 25.00 | AA222: 937.89 | AB222: 50.00 | AC222: 95.00 | AD222: 0 | AF222: 58.62 | AG222: 10.23 | AH222: (58.62) | AI222: (10.23) | AJ222: (8.62) | AK222: 84.77 | AM222: 111.81 | AN222: 19.51 | AO222: (111.81) | AP222: (19.51) | AQ222: (61.81) | AR222: 75.49 | AT222: 79.89 | AU222: 13.94 | AV222: (79.89) | AW222: (13.94) | AX222: (29.89) | AY222: 81.06 | BB222: 43.42 | BC222: 7.58 | BD222: (43.42) | BE222: (7.58) | BF222: 6.58 | BG222: 87.42 | BI222: 24.10 | BJ222: 4.20 | BK222: (24.10) | BL222: (4.20) | BM222: 25.90 | BN222: 90.80 | BP222: 82.50 | BQ222: 6.06 | BR222: (82.50) | BS222: (6.06) | BT222: (32.50) | BU222: 88.94
... 80 more rows
